NUMERO_MANDATO;RIGA_MANDATO;QUIET;IMPORTO_RIGA;IMPORTO_MANDATO;BENEFICIARIO;CIG;TITOLO_PAGAMENTO;DATA_MANDATO;CAPITOLO;ARTICOLO;NUMERO_IMPEGNO;TITOLO;DESCR_TITOLO;LIVELLO_II;DESCR_LIVELLO_II;LIVELLO_III;DESCR_LIVELLO_III;LIVELLO_IV;DESCR_LIVELLO_IV;LIVELLO_V;DESCR_LIVELLO_V;DATA_PAG_EFF;
1228;1;1833;"1.518,37";"2.125,72";FIORE SALVATORE VITTORIO; ;INDENNITA' FUNZIONE SETTEMBRE 2018;01-10-2018;1001;0;18;1;Spese correnti;3;Acquisto di beni e servizi;2;Acquisto di servizi;1;Organi e incarichi istituzionali dell'amministrazione;1;Organi istituzionali dell'amministrazione - Indennità;04-10-2018;
1228;2;1834;"151,83";"2.125,72";INTERDONATO ARMANDO; ;INDENNITA' FUNZIONE SETTEMBRE 2018;01-10-2018;1001;0;18;1;Spese correnti;3;Acquisto di beni e servizi;2;Acquisto di servizi;1;Organi e incarichi istituzionali dell'amministrazione;1;Organi istituzionali dell'amministrazione - Indennità;04-10-2018;
1228;3;1835;"227,76";"2.125,72";LAMANCUSA MARCO; ;INDENNITA' FUNZIONE SETTEMBRE 2018;01-10-2018;1001;0;18;1;Spese correnti;3;Acquisto di beni e servizi;2;Acquisto di servizi;1;Organi e incarichi istituzionali dell'amministrazione;1;Organi istituzionali dell'amministrazione - Indennità;04-10-2018;
1228;4;1836;"227,76";"2.125,72";PETTINATO  ROSA SANDRA; ;INDENNITA' FUNZIONE SETTEMBRE 2018;01-10-2018;1001;0;18;1;Spese correnti;3;Acquisto di beni e servizi;2;Acquisto di servizi;1;Organi e incarichi istituzionali dell'amministrazione;1;Organi istituzionali dell'amministrazione - Indennità;04-10-2018;
1229;1;1837;"227,76";"227,76";FORZANO GIUSEPPE; ;INDENNITA' FUNZIONE PRESIDENTE C.C. SETTEMBRE 2018;01-10-2018;1001;0;56;1;Spese correnti;3;Acquisto di beni e servizi;2;Acquisto di servizi;1;Organi e incarichi istituzionali dell'amministrazione;1;Organi istituzionali dell'amministrazione - Indennità;04-10-2018;
1230;1;1838;"728,75";"728,75";ASMEL CONSORTILE ARL; ;QUOTA ASSOCIATIVA ASMEL ANNO 2018;04-10-2018;1060;9;198;1;Spese correnti;4;Trasferimenti correnti;1;Trasferimenti correnti a Amministrazioni Pubbliche;2;Trasferimenti correnti a Amministrazioni Locali;999;Trasferimenti correnti a altre Amministrazioni Locali n.a.c.;04-10-2018;
1231;1;1839;"80,00";"80,00";ECONOMO COMUNALE; ;RIMBORSO SPESE ECONOMATO 3^ TRIMESTRE 2018;04-10-2018;1040;0;313;1;Spese correnti;3;Acquisto di beni e servizi;2;Acquisto di servizi;4;Acquisto di servizi per formazione e addestramento del personale dell'ente;4;Acquisto di servizi per formazione obbligatoria;04-10-2018;
1232;1;1840;"114,30";"114,30";ECONOMO COMUNALE; ;RIMBORSO SPESE ECONOMATO 3^ TRIMESTRE 2018;04-10-2018;1410;0;266;1;Spese correnti;3;Acquisto di beni e servizi;2;Acquisto di servizi;99;Altri servizi;999;Altri servizi diversi n.a.c.;04-10-2018;
1233;1;1841;"495,08";"495,08";ECONOMO COMUNALE; ;RIMBORSO SPESE ECONOMATO 3^ TRIMESTRE 2018;04-10-2018;1571;0;285;1;Spese correnti;3;Acquisto di beni e servizi;2;Acquisto di servizi;9;Manutenzione ordinaria e riparazioni;8;Manutenzione ordinaria e riparazioni di beni immobili;04-10-2018;
1234;1;1842;"299,91";"299,91";ECONOMO COMUNALE; ;RIMBORSO SPESE ECONOMATO 3^ TRIMESTRE 2018;04-10-2018;1676;0;286;1;Spese correnti;3;Acquisto di beni e servizi;1;Acquisto di beni;2;Altri beni di consumo;999;Altri beni e materiali di consumo n.a.c.;04-10-2018;
1235;1;1843;"219,22";"219,22";ECONOMO COMUNALE; ;RIMBORSO SPESE ECONOMATO 3^ TRIMESTRE 2018;04-10-2018;1829;0;287;1;Spese correnti;3;Acquisto di beni e servizi;1;Acquisto di beni;2;Altri beni di consumo;999;Altri beni e materiali di consumo n.a.c.;04-10-2018;
1236;1;1844;"174,38";"174,38";ECONOMO COMUNALE; ;RIMBORSO SPESE ECONOMATO 3^ TRIMESTRE 2018;04-10-2018;2120;2;274;1;Spese correnti;3;Acquisto di beni e servizi;2;Acquisto di servizi;9;Manutenzione ordinaria e riparazioni;11;Manutenzione ordinaria e riparazioni di altri beni materiali;04-10-2018;
1237;1;1845;"88,65";"88,65";ECONOMO COMUNALE; ;RIMBORSO SPESE ECONOMATO 3^ TRIMESTRE 2018;04-10-2018;2150;2;277;2;Spese in conto capitale;2;Investimenti fissi lordi e acquisto di terreni;1;Beni materiali;7;Hardware;999;Hardware n.a.c.;04-10-2018;
1238;1;1846;"51,00";"51,00";ECONOMO COMUNALE; ;RIMBORSO SPESE ECONOMATO 3^ TRIMESTRE 2018;04-10-2018;2150;8;304;2;Spese in conto capitale;2;Investimenti fissi lordi e acquisto di terreni;1;Beni materiali;7;Hardware;999;Hardware n.a.c.;04-10-2018;
1239;1;1847;"150,00";"150,00";ECONOMO COMUNALE; ;RIMBORSO SPESE ECONOMATO 3^ TRIMESTRE 2018;04-10-2018;6050;0;271;1;Spese correnti;3;Acquisto di beni e servizi;1;Acquisto di beni;2;Altri beni di consumo;1;"Carta, cancelleria e stampati";04-10-2018;
1240;1;1848;"96,50";"96,50";ECONOMO COMUNALE; ;RIMBORSO SPESE ECONOMATO 3^ TRIMESTRE 2018;04-10-2018;6050;5;272;1;Spese correnti;3;Acquisto di beni e servizi;1;Acquisto di beni;2;Altri beni di consumo;1;"Carta, cancelleria e stampati";04-10-2018;
1241;1;1849;"100,00";"100,00";ECONOMO COMUNALE; ;RIMBORSO SPESE ECONOMATO 3^ TRIMESTRE 2018;04-10-2018;6050;6;312;1;Spese correnti;3;Acquisto di beni e servizi;1;Acquisto di beni;2;Altri beni di consumo;1;"Carta, cancelleria e stampati";04-10-2018;
1242;1;1850;"134,00";"134,00";ECONOMO COMUNALE; ;RIMBORSO SPESE ECONOMATO 3^ TRIMESTRE 2018;04-10-2018;6050;9;307;1;Spese correnti;3;Acquisto di beni e servizi;1;Acquisto di beni;2;Altri beni di consumo;1;"Carta, cancelleria e stampati";04-10-2018;
1243;1;1851;"198,40";"198,40";ECONOMO COMUNALE; ;RIMBORSO SPESE ECONOMATO 3^ TRIMESTRE 2018;04-10-2018;6050;14;308;1;Spese correnti;3;Acquisto di beni e servizi;1;Acquisto di beni;2;Altri beni di consumo;1;"Carta, cancelleria e stampati";04-10-2018;
1244;1;1852;"238,85";"238,85";ECONOMO COMUNALE; ;RIMBORSO SPESE ECONOMATO 3^ TRIMESTRE 2018;04-10-2018;6120;0;295;1;Spese correnti;3;Acquisto di beni e servizi;2;Acquisto di servizi;9;Manutenzione ordinaria e riparazioni;8;Manutenzione ordinaria e riparazioni di beni immobili;04-10-2018;
1246;1;1854;"240,00";"240,00";CAFARELLI TINDARO;ZF323EAC33;SALDO Fatt.n. 000004-2018-CATI  del 07/09/2018 SALDO INTEGRAZIONE FORNITURA GASOLIO;10-10-2018;1579;0;253;1;Spese correnti;3;Acquisto di beni e servizi;2;Acquisto di servizi;9;Manutenzione ordinaria e riparazioni;8;Manutenzione ordinaria e riparazioni di beni immobili;10-10-2018;
1247;1;1855;"22.575,74";"45.151,48";ECOLANDIA SRL;75280149AB;"SALDO Fatt.n. 160/PA  del 31/08/2018 SERVIZIO DI SPAZZAMENTO, RACCOLTA E TRASPORTO ALLO SMALTIMENTO DEI RIFIUTI SOLIDI URBANI DIFFERENZIATI E INDIFFERENZIATI, PER IL COMUNE DI SAN PIERO PATTI (ME). CIG 75280149AB-luglio 2018";10-10-2018;1744;0;227;1;Spese correnti;3;Acquisto di beni e servizi;2;Acquisto di servizi;15;Contratti di servizio pubblico;5;Contratti di servizio per il conferimento in discarica dei rifiuti;10-10-2018;
1247;2;1855;"22.575,74";"45.151,48";ECOLANDIA SRL;75280149AB;"SALDO Fatt.n. 161/PA  del 31/08/2018 SERVIZIO DI SPAZZAMENTO, RACCOLTA E TRASPORTO ALLO SMALTIMENTO DEI RIFIUTI SOLIDI URBANI DIFFERENZIATI E INDIFFERENZIATI, PER IL COMUNE DI SAN PIERO PATTI (ME). CIG 75280149AB-agosto 2018";10-10-2018;1744;0;227;1;Spese correnti;3;Acquisto di beni e servizi;2;Acquisto di servizi;15;Contratti di servizio pubblico;5;Contratti di servizio per il conferimento in discarica dei rifiuti;10-10-2018;
1248;1;1856;"1.563,32";"1.563,32";TRINACRIA AMBIENTE E TECNOLOGIE S.R.L.;ZCB23E55EC;SALDO Fatt.n. FATTPA 40_18  del 12/09/2018 MANUTENZ. E GESTIONE IMP. DEPURAZIONE ARABITE LUG./AGO.2018;10-10-2018;1577;1;183;1;Spese correnti;3;Acquisto di beni e servizi;2;Acquisto di servizi;9;Manutenzione ordinaria e riparazioni;11;Manutenzione ordinaria e riparazioni di altri beni materiali;10-10-2018;
1249;1;1867;"12,44";"12,44";EDISON ENERGIE S.P.A.; ;SALDO Fatt.n. FI18366000007673  del 24/08/2018 FATTURAZIONE 01/07-31/07/2018;11-10-2018;6160;3;397;1;Spese correnti;3;Acquisto di beni e servizi;2;Acquisto di servizi;5;Utenze e canoni;6;Gas;12-10-2018;
1250;1;1860;"124,07";"5.258,14";SIAE; ;SALDO Fatt.n. 1618029993  del 12/09/2018 DIRITTI SIAE SPETTACOLI;11-10-2018;1512;1;209;1;Spese correnti;3;Acquisto di beni e servizi;2;Acquisto di servizi;2;"Organizzazione eventi, pubblicita` e servizi per trasferta";5;Organizzazione e partecipazione a manifestazioni e convegni;11-10-2018;
1250;2;1860;"243,27";"5.258,14";SIAE; ;SALDO Fatt.n. 1618029988  del 12/09/2018 diritti siae spettacoli;11-10-2018;1512;1;209;1;Spese correnti;3;Acquisto di beni e servizi;2;Acquisto di servizi;2;"Organizzazione eventi, pubblicita` e servizi per trasferta";5;Organizzazione e partecipazione a manifestazioni e convegni;11-10-2018;
1250;3;1860;"330,93";"5.258,14";SIAE; ;SALDO Fatt.n. 1618029987  del 12/09/2018 DIRITTI SIAE TEATRO;11-10-2018;1512;1;209;1;Spese correnti;3;Acquisto di beni e servizi;2;Acquisto di servizi;2;"Organizzazione eventi, pubblicita` e servizi per trasferta";5;Organizzazione e partecipazione a manifestazioni e convegni;11-10-2018;
1250;4;1860;"351,97";"5.258,14";SIAE; ;SALDO Fatt.n. 1618029990  del 12/09/2018 DIRITTI SIAE SPETTACOLI;11-10-2018;1512;1;209;1;Spese correnti;3;Acquisto di beni e servizi;2;Acquisto di servizi;2;"Organizzazione eventi, pubblicita` e servizi per trasferta";5;Organizzazione e partecipazione a manifestazioni e convegni;11-10-2018;
1250;5;1860;"579,87";"5.258,14";SIAE; ;SALDO Fatt.n. 1618029994  del 12/09/2018 DIRITTI SIAE SPETTACOLI;11-10-2018;1512;1;209;1;Spese correnti;3;Acquisto di beni e servizi;2;Acquisto di servizi;2;"Organizzazione eventi, pubblicita` e servizi per trasferta";5;Organizzazione e partecipazione a manifestazioni e convegni;11-10-2018;
1250;6;1860;"583,16";"5.258,14";SIAE; ;SALDO Fatt.n. 1618029991  del 12/09/2018 DIRITTI SIAE SPETTACOLI;11-10-2018;1512;1;209;1;Spese correnti;3;Acquisto di beni e servizi;2;Acquisto di servizi;2;"Organizzazione eventi, pubblicita` e servizi per trasferta";5;Organizzazione e partecipazione a manifestazioni e convegni;11-10-2018;
1250;7;1860;"699,06";"5.258,14";SIAE; ;SALDO Fatt.n. 1618029986  del 12/09/2018 DIRITTI SIAE SPETTACOLI;11-10-2018;1512;1;209;1;Spese correnti;3;Acquisto di beni e servizi;2;Acquisto di servizi;2;"Organizzazione eventi, pubblicita` e servizi per trasferta";5;Organizzazione e partecipazione a manifestazioni e convegni;11-10-2018;
1250;8;1860;"702,35";"5.258,14";SIAE; ;SALDO Fatt.n. 1618029989  del 12/09/2018 diritti siae spettacoli;11-10-2018;1512;1;209;1;Spese correnti;3;Acquisto di beni e servizi;2;Acquisto di servizi;2;"Organizzazione eventi, pubblicita` e servizi per trasferta";5;Organizzazione e partecipazione a manifestazioni e convegni;11-10-2018;
1250;9;1860;"1.643,46";"5.258,14";SIAE; ;SALDO Fatt.n. 1618029992  del 12/09/2018 diritti siae spettacoli;11-10-2018;1512;1;209;1;Spese correnti;3;Acquisto di beni e servizi;2;Acquisto di servizi;2;"Organizzazione eventi, pubblicita` e servizi per trasferta";5;Organizzazione e partecipazione a manifestazioni e convegni;11-10-2018;
1251;1;1859;"197,15";"197,15";TELECOM ITALIA S.P.A.-TIM SPA; ;SALDO Fatt.n. 8V00432971  del 10/09/2018 FATT. 5 BIM. 2018 TEL. 661033;11-10-2018;6040;9;392;1;Spese correnti;3;Acquisto di beni e servizi;2;Acquisto di servizi;5;Utenze e canoni;1;Telefonia fissa;11-10-2018;
1252;1;1861;"60,00";"125,00";KUWAIT PETROLEUM ITALIA S.P.A.;6516542493;Fatt.n. PJ00304820 del 31/08/2018;11-10-2018;6080;2;23;1;Spese correnti;3;Acquisto di beni e servizi;1;Acquisto di beni;2;Altri beni di consumo;2;"Carburanti, combustibili e lubrificanti";11-10-2018;
1252;2;1861;"65,00";"125,00";KUWAIT PETROLEUM ITALIA S.P.A.;6516542493;Fatt.n. PJ00304820 del 31/08/2018;11-10-2018;6080;2;23;1;Spese correnti;3;Acquisto di beni e servizi;1;Acquisto di beni;2;Altri beni di consumo;2;"Carburanti, combustibili e lubrificanti";11-10-2018;
1253;1;1862;"141,00";"141,00";KUWAIT PETROLEUM ITALIA S.P.A.;6516542493;Fatt.n. PJ00304820 del 31/08/2018;11-10-2018;6080;3;24;1;Spese correnti;3;Acquisto di beni e servizi;1;Acquisto di beni;2;Altri beni di consumo;2;"Carburanti, combustibili e lubrificanti";11-10-2018;
1254;1;1863;"354,00";"354,00";KUWAIT PETROLEUM ITALIA S.P.A.;6516542493;Fatt.n. PJ00304820 del 31/08/2018;11-10-2018;6080;4;25;1;Spese correnti;3;Acquisto di beni e servizi;1;Acquisto di beni;2;Altri beni di consumo;2;"Carburanti, combustibili e lubrificanti";11-10-2018;
1255;1;1864;"767,00";"767,00";KUWAIT PETROLEUM ITALIA S.P.A.;6516542493;Fatt.n. PJ00304820 del 31/08/2018;11-10-2018;6080;5;26;1;Spese correnti;3;Acquisto di beni e servizi;1;Acquisto di beni;2;Altri beni di consumo;2;"Carburanti, combustibili e lubrificanti";11-10-2018;
1256;1;1865;"8,19";"46,66";AUTOSTRADE PER L'ITALIA S.p.A.; ;ACCONTO Fatt.n. 900019377D  del 30/09/2018;11-10-2018;1017;0;28;1;Spese correnti;3;Acquisto di beni e servizi;2;Acquisto di servizi;99;Altri servizi;999;Altri servizi diversi n.a.c.;11-10-2018;
1256;2;1832;"37,21";"46,66";AUTOSTRADE PER L'ITALIA S.p.A.; ;SALDO Fatt.n. 900019377D  del 30/09/2018;11-10-2018;1017;0;28;1;Spese correnti;3;Acquisto di beni e servizi;2;Acquisto di servizi;99;Altri servizi;999;Altri servizi diversi n.a.c.;11-10-2018;
1256;3;1866;"0,23";"46,66";TELEPASS SPA; ;ACCONTO Fatt.n. 900019444T  del 30/09/2018 CANONE TELEPASS SETT.2018;11-10-2018;1017;0;28;1;Spese correnti;3;Acquisto di beni e servizi;2;Acquisto di servizi;99;Altri servizi;999;Altri servizi diversi n.a.c.;11-10-2018;
1256;4;1866;"1,03";"46,66";TELEPASS SPA; ;SALDO Fatt.n. 900019444T  del 30/09/2018 CANONE TELEPASS SETT.2018;11-10-2018;1017;0;28;1;Spese correnti;3;Acquisto di beni e servizi;2;Acquisto di servizi;99;Altri servizi;999;Altri servizi diversi n.a.c.;11-10-2018;
1258;1;1868;"3.513,60";"3.513,60";APKAPPA SRL;ZCA2413004;SALDO Fatt.n. 0002102223  del 29/06/2018 canone assistenza anno 2018 FATT. IVA SPLIT P.;15-10-2018;2100;0;182;1;Spese correnti;3;Acquisto di beni e servizi;2;Acquisto di servizi;19;Servizi informatici e di telecomunicazioni;5;Servizi per i sistemi e relativa manutenzione;15-10-2018;
1259;1;1900;"837,02";"837,02";BENFATTA SALVATORE & C. S.N.C.;Z2724E883E;SALDO Fatt.n. 000005-2018-FATTURE  del 19/09/2018 DETERMINA N.172 DEL 13/09/2018-MANUTENZ. E PULITURA GORNDE ALLOGGI POPOLARI CARMINE;17-10-2018;3010;5;320;2;Spese in conto capitale;2;Investimenti fissi lordi e acquisto di terreni;1;Beni materiali;9;Beni immobili;1;Fabbricati ad uso abitativo;17-10-2018;
1260;1;1901;"1.862,50";"1.862,50";Wind Tre S.p.A.; ;SALDO Fatt.n. 2018E000008061  del 20/09/2018 FATTURAZIONE PERIODO 01/07-31/08/2018;18-10-2018;6040;5;390;1;Spese correnti;3;Acquisto di beni e servizi;2;Acquisto di servizi;5;Utenze e canoni;1;Telefonia fissa;18-10-2018;
1261;1;1902;"285,74";"285,74";AL CENTESIMO SOC. COOP. S.R.L.;ZAF20DE63B;SALDO Fatt.n. 13/E  del 31/07/2018 GENERI ALIMENTARI PER ASILO NIDO LUG.2018;18-10-2018;1776;1;408;1;Spese correnti;3;Acquisto di beni e servizi;1;Acquisto di beni;2;Altri beni di consumo;999;Altri beni e materiali di consumo n.a.c.;18-10-2018;
1262;1;1903;"34,71";"206,64";AL CENTESIMO SOC. COOP. S.R.L.;ZC12122971;SALDO Fatt.n. 14/E  del 31/07/2018 CARNE PER ASILO NIDO LUG.2018;18-10-2018;1776;1;454;1;Spese correnti;3;Acquisto di beni e servizi;1;Acquisto di beni;2;Altri beni di consumo;999;Altri beni e materiali di consumo n.a.c.;18-10-2018;
1262;2;1903;"171,93";"206,64";AL CENTESIMO SOC. COOP. S.R.L.;ZC12122971;SALDO Fatt.n. 12/E  del 31/07/2018 CARNE PER ASILO NIDO GIU.2018;18-10-2018;1776;1;454;1;Spese correnti;3;Acquisto di beni e servizi;1;Acquisto di beni;2;Altri beni di consumo;999;Altri beni e materiali di consumo n.a.c.;18-10-2018;
1263;1;1904;"47,13";"47,13";HERA COMM S.r.l.; ;Fatt.n. 411807520412 del 08/09/2018 FORNITURA SERVIZIO ENERGIA ELETTRICA 01/08-31/08/2018;18-10-2018;6030;6;460;1;Spese correnti;3;Acquisto di beni e servizi;2;Acquisto di servizi;5;Utenze e canoni;4;Energia elettrica;18-10-2018;
1264;1;1905;"35,63";"35,63";HERA COMM S.r.l.; ;Fatt.n. 411807520428 del 08/09/2018 FORNITURA SERVIZIO ENERGIA ELETTRICA 01/08-31/08/2018;18-10-2018;6030;7;461;1;Spese correnti;3;Acquisto di beni e servizi;2;Acquisto di servizi;5;Utenze e canoni;4;Energia elettrica;18-10-2018;
1265;1;1906;"20,34";"105,49";HERA COMM S.r.l.; ;Fatt.n. 411807520415 del 08/09/2018 FORNITURA SERVIZIO ENERGIA ELETTRICA 01/08-31/08/2018;18-10-2018;6030;8;462;1;Spese correnti;3;Acquisto di beni e servizi;2;Acquisto di servizi;5;Utenze e canoni;4;Energia elettrica;18-10-2018;
1265;2;1906;"37,31";"105,49";HERA COMM S.r.l.; ;Fatt.n. 411807520393 del 08/09/2018 FORNITURA SERVIZIO ENERGIA ELETTRICA 01/08-31/08/2018;18-10-2018;6030;8;462;1;Spese correnti;3;Acquisto di beni e servizi;2;Acquisto di servizi;5;Utenze e canoni;4;Energia elettrica;18-10-2018;
1265;3;1906;"47,84";"105,49";HERA COMM S.r.l.; ;Fatt.n. 411807520429 del 08/09/2018 FORNITURA SERVIZIO ENERGIA ELETTRICA 01/08-31/08/2018;18-10-2018;6030;8;462;1;Spese correnti;3;Acquisto di beni e servizi;2;Acquisto di servizi;5;Utenze e canoni;4;Energia elettrica;18-10-2018;
1266;1;1907;"346,33";"346,33";HERA COMM S.r.l.; ;Fatt.n. 411807520420 del 08/09/2018 FORNITURA SERVIZIO ENERGIA ELETTRICA 01/08-31/08/2018;18-10-2018;6030;9;463;1;Spese correnti;3;Acquisto di beni e servizi;2;Acquisto di servizi;5;Utenze e canoni;4;Energia elettrica;18-10-2018;
1267;1;1908;"919,47";"919,47";HERA COMM S.r.l.; ;Fatt.n. 411807642015 del 08/09/2018 FORNITURA SERVIZIO ENERGIA ELETTRICA 01/08-31/08/2018;18-10-2018;6030;10;464;1;Spese correnti;3;Acquisto di beni e servizi;2;Acquisto di servizi;5;Utenze e canoni;4;Energia elettrica;18-10-2018;
1268;1;1909;"140,76";"381,73";HERA COMM S.r.l.; ;Fatt.n. 411807520398 del 08/09/2018 FORNITURA SERVIZIO ENERGIA ELETTRICA 01/08-31/08/2018;18-10-2018;6030;11;465;1;Spese correnti;3;Acquisto di beni e servizi;2;Acquisto di servizi;5;Utenze e canoni;4;Energia elettrica;18-10-2018;
1268;2;1909;"240,97";"381,73";HERA COMM S.r.l.; ;Fatt.n. 411807520391 del 08/09/2018 FORNITURA SERVIZIO ENERGIA ELETTRICA 01/08-31/08/2018;18-10-2018;6030;11;465;1;Spese correnti;3;Acquisto di beni e servizi;2;Acquisto di servizi;5;Utenze e canoni;4;Energia elettrica;18-10-2018;
1269;1;1910;"12,09";"8.597,67";HERA COMM S.r.l.; ;Fatt.n. 411807520419 del 08/09/2018 FORNITURA SERVIZIO ENERGIA ELETTRICA 01/08-31/08/2018;18-10-2018;6030;12;466;1;Spese correnti;3;Acquisto di beni e servizi;2;Acquisto di servizi;5;Utenze e canoni;4;Energia elettrica;18-10-2018;
1269;2;1910;"13,36";"8.597,67";HERA COMM S.r.l.; ;Fatt.n. 411801275621 del 08/02/2018 FORNITURA SERVIZIO ENERGIA ELETTRICA GEN.2018;18-10-2018;6030;12;466;1;Spese correnti;3;Acquisto di beni e servizi;2;Acquisto di servizi;5;Utenze e canoni;4;Energia elettrica;18-10-2018;
1269;3;1910;"29,47";"8.597,67";HERA COMM S.r.l.; ;Fatt.n. 411807520400 del 08/09/2018 FORNITURA SERVIZIO ENERGIA ELETTRICA 01/08-31/08/2018;18-10-2018;6030;12;466;1;Spese correnti;3;Acquisto di beni e servizi;2;Acquisto di servizi;5;Utenze e canoni;4;Energia elettrica;18-10-2018;
1269;4;1910;"35,52";"8.597,67";HERA COMM S.r.l.; ;Fatt.n. 411807520403 del 08/09/2018 FORNITURA SERVIZIO ENERGIA ELETTRICA 01/08-31/08/2018;18-10-2018;6030;12;466;1;Spese correnti;3;Acquisto di beni e servizi;2;Acquisto di servizi;5;Utenze e canoni;4;Energia elettrica;18-10-2018;
1269;5;1910;"48,50";"8.597,67";HERA COMM S.r.l.; ;Fatt.n. 411807520427 del 08/09/2018 FORNITURA SERVIZIO ENERGIA ELETTRICA 01/08-31/08/2018;18-10-2018;6030;12;466;1;Spese correnti;3;Acquisto di beni e servizi;2;Acquisto di servizi;5;Utenze e canoni;4;Energia elettrica;18-10-2018;
1269;6;1910;"55,66";"8.597,67";HERA COMM S.r.l.; ;Fatt.n. 411807520417 del 08/09/2018 FORNITURA SERVIZIO ENERGIA ELETTRICA;18-10-2018;6030;12;466;1;Spese correnti;3;Acquisto di beni e servizi;2;Acquisto di servizi;5;Utenze e canoni;4;Energia elettrica;18-10-2018;
1269;7;1910;"86,93";"8.597,67";HERA COMM S.r.l.; ;Fatt.n. 411807520406 del 08/09/2018 FORNITURA SERVIZIO ENERGIA ELETTRICA 01/08-31/08/2018;18-10-2018;6030;12;466;1;Spese correnti;3;Acquisto di beni e servizi;2;Acquisto di servizi;5;Utenze e canoni;4;Energia elettrica;18-10-2018;
1269;8;1910;"87,58";"8.597,67";HERA COMM S.r.l.; ;Fatt.n. 411807520387 del 08/09/2018 FORNITURA SERVIZIO ENERGIA ELETTRICA 01/08-31/08/2018;18-10-2018;6030;12;466;1;Spese correnti;3;Acquisto di beni e servizi;2;Acquisto di servizi;5;Utenze e canoni;4;Energia elettrica;18-10-2018;
1269;9;1910;"93,90";"8.597,67";HERA COMM S.r.l.; ;Fatt.n. 411807520418 del 08/09/2018 FORNITURA SERVIZIO ENERGIA ELETTRICA 01/08-31/08/2018;18-10-2018;6030;12;466;1;Spese correnti;3;Acquisto di beni e servizi;2;Acquisto di servizi;5;Utenze e canoni;4;Energia elettrica;18-10-2018;
1269;10;1910;"102,27";"8.597,67";HERA COMM S.r.l.; ;Fatt.n. 411807520397 del 08/09/2018 FORNITURA SERVIZIO ENERGIA ELETTRICA 01/08-31/08/2018;18-10-2018;6030;12;466;1;Spese correnti;3;Acquisto di beni e servizi;2;Acquisto di servizi;5;Utenze e canoni;4;Energia elettrica;18-10-2018;
1269;11;1910;"105,28";"8.597,67";HERA COMM S.r.l.; ;Fatt.n. 411807520395 del 08/09/2018 FORNITURA SERVIZIO ENERGIA ELETTRICA 01/08-31/08/2018;18-10-2018;6030;12;466;1;Spese correnti;3;Acquisto di beni e servizi;2;Acquisto di servizi;5;Utenze e canoni;4;Energia elettrica;18-10-2018;
1269;12;1910;"121,23";"8.597,67";HERA COMM S.r.l.; ;Fatt.n. 411807520383 del 08/09/2018 FORNITURA SERVIZIO ENERGIA ELETTRICA 01/08-31/08/2018;18-10-2018;6030;12;466;1;Spese correnti;3;Acquisto di beni e servizi;2;Acquisto di servizi;5;Utenze e canoni;4;Energia elettrica;18-10-2018;
1269;13;1910;"122,36";"8.597,67";HERA COMM S.r.l.; ;Fatt.n. 411807520402 del 08/09/2018 FORNITURA SERVIZIO ENERGIA ELETTRICA 01/08-31/08/2018;18-10-2018;6030;12;466;1;Spese correnti;3;Acquisto di beni e servizi;2;Acquisto di servizi;5;Utenze e canoni;4;Energia elettrica;18-10-2018;
1269;14;1910;"158,62";"8.597,67";HERA COMM S.r.l.; ;Fatt.n. 411807520382 del 08/09/2018 FORNITURA SERVIZIO ENERGIA ELETTRICA 01/08-31/08/2018;18-10-2018;6030;12;466;1;Spese correnti;3;Acquisto di beni e servizi;2;Acquisto di servizi;5;Utenze e canoni;4;Energia elettrica;18-10-2018;
1269;15;1910;"161,43";"8.597,67";HERA COMM S.r.l.; ;Fatt.n. 411807520384 del 08/09/2018 FORNITURA SERVIZIO ENERGIA ELETTRICA;18-10-2018;6030;12;466;1;Spese correnti;3;Acquisto di beni e servizi;2;Acquisto di servizi;5;Utenze e canoni;4;Energia elettrica;18-10-2018;
1269;16;1910;"165,28";"8.597,67";HERA COMM S.r.l.; ;Fatt.n. 411807520394 del 08/09/2018 FORNITURA SERVIZIO ENERGIA ELETTRICA 01/08-31/08/2018;18-10-2018;6030;12;466;1;Spese correnti;3;Acquisto di beni e servizi;2;Acquisto di servizi;5;Utenze e canoni;4;Energia elettrica;18-10-2018;
1269;17;1910;"215,74";"8.597,67";HERA COMM S.r.l.; ;Fatt.n. 411807520425 del 08/09/2018 FORNITURA SERVIZIO ENERGIA ELETTRICA 01/08-31/08/2018;18-10-2018;6030;12;466;1;Spese correnti;3;Acquisto di beni e servizi;2;Acquisto di servizi;5;Utenze e canoni;4;Energia elettrica;18-10-2018;
1269;18;1910;"233,14";"8.597,67";HERA COMM S.r.l.; ;Fatt.n. 411807520401 del 08/09/2018 FORNITURA SERVIZIO ENERGIA ELETTRICA 01/08-31/08/2018;18-10-2018;6030;12;466;1;Spese correnti;3;Acquisto di beni e servizi;2;Acquisto di servizi;5;Utenze e canoni;4;Energia elettrica;18-10-2018;
1269;19;1910;"333,59";"8.597,67";HERA COMM S.r.l.; ;Fatt.n. 411807520404 del 08/09/2018 FORNITURA SERVIZIO ENERGIA ELETTRICA 01/08-31/08/2018;18-10-2018;6030;12;466;1;Spese correnti;3;Acquisto di beni e servizi;2;Acquisto di servizi;5;Utenze e canoni;4;Energia elettrica;18-10-2018;
1269;20;1910;"364,19";"8.597,67";HERA COMM S.r.l.; ;Fatt.n. 411807520426 del 08/09/2018 FORNITURA SERVIZIO ENERGIA ELETTRICA 01/08-31/08/2018;18-10-2018;6030;12;466;1;Spese correnti;3;Acquisto di beni e servizi;2;Acquisto di servizi;5;Utenze e canoni;4;Energia elettrica;18-10-2018;
1269;21;1910;"411,95";"8.597,67";HERA COMM S.r.l.; ;Fatt.n. 411807520409 del 08/09/2018 FORNITURA SERVIZIO ENERGIA ELETTRICA 01/08-31/08/2018;18-10-2018;6030;12;466;1;Spese correnti;3;Acquisto di beni e servizi;2;Acquisto di servizi;5;Utenze e canoni;4;Energia elettrica;18-10-2018;
1269;22;1910;"419,15";"8.597,67";HERA COMM S.r.l.; ;Fatt.n. 411807520388 del 08/09/2018 FORNITURA SERVIZIO ENERGIA ELETTRICA 01/08-31/08/2018;18-10-2018;6030;12;466;1;Spese correnti;3;Acquisto di beni e servizi;2;Acquisto di servizi;5;Utenze e canoni;4;Energia elettrica;18-10-2018;
1269;23;1910;"464,01";"8.597,67";HERA COMM S.r.l.; ;Fatt.n. 411807520421 del 08/09/2018 FORNITURA SERVIZIO ENERGIA ELETTRICA 01/08-31/08/2018;18-10-2018;6030;12;466;1;Spese correnti;3;Acquisto di beni e servizi;2;Acquisto di servizi;5;Utenze e canoni;4;Energia elettrica;18-10-2018;
1269;24;1910;"555,83";"8.597,67";HERA COMM S.r.l.; ;Fatt.n. 411807520410 del 08/09/2018 FORNITURA SERVIZIO ENERGIA ELETTRICA 01/08-31/08/2018;18-10-2018;6030;12;466;1;Spese correnti;3;Acquisto di beni e servizi;2;Acquisto di servizi;5;Utenze e canoni;4;Energia elettrica;18-10-2018;
1269;25;1910;"767,42";"8.597,67";HERA COMM S.r.l.; ;Fatt.n. 411807520423 del 08/09/2018 FORNITURA SERVIZIO ENERGIA ELETTRICA 01/08-31/08/2018;18-10-2018;6030;12;466;1;Spese correnti;3;Acquisto di beni e servizi;2;Acquisto di servizi;5;Utenze e canoni;4;Energia elettrica;18-10-2018;
1269;26;1910;"777,34";"8.597,67";HERA COMM S.r.l.; ;Fatt.n. 411807520407 del 08/09/2018 FORNITURA SERVIZIO ENERGIA ELETTRICA 01/08-31/08/2018;18-10-2018;6030;12;466;1;Spese correnti;3;Acquisto di beni e servizi;2;Acquisto di servizi;5;Utenze e canoni;4;Energia elettrica;18-10-2018;
1269;27;1910;"2.655,83";"8.597,67";HERA COMM S.r.l.; ;Fatt.n. 411807520424 del 08/09/2018 FORNITURA SERVIZIO ENERGIA ELETTRICA 01/08-31/08/2018;18-10-2018;6030;12;466;1;Spese correnti;3;Acquisto di beni e servizi;2;Acquisto di servizi;5;Utenze e canoni;4;Energia elettrica;18-10-2018;
1270;1;1911;"13,71";"13,71";HERA COMM S.r.l.; ;Fatt.n. 411800384418 del 11/01/2018 FORNITURA SERVIZIO ENERGIA ELETTRICA DIC.2017;18-10-2018;6030;12;419;1;Spese correnti;3;Acquisto di beni e servizi;2;Acquisto di servizi;5;Utenze e canoni;4;Energia elettrica;18-10-2018;
1271;1;1912;"17,36";"1.558,75";HERA COMM S.r.l.; ;Fatt.n. 411807520396 del 08/09/2018 FORNITURA SERVIZIO ENERGIA ELETTRICA 01/08-31/08/2018;18-10-2018;6030;13;467;1;Spese correnti;3;Acquisto di beni e servizi;2;Acquisto di servizi;5;Utenze e canoni;4;Energia elettrica;18-10-2018;
1271;2;1912;"19,11";"1.558,75";HERA COMM S.r.l.; ;Fatt.n. 411807520389 del 08/09/2018 FORNITURA SERVIZIO ENERGIA ELETTRICA 01/08-31/08/2018;18-10-2018;6030;13;467;1;Spese correnti;3;Acquisto di beni e servizi;2;Acquisto di servizi;5;Utenze e canoni;4;Energia elettrica;18-10-2018;
1271;3;1912;"19,11";"1.558,75";HERA COMM S.r.l.; ;Fatt.n. 411807520422 del 08/09/2018 FORNITURA SERVIZIO ENERGIA ELETTRICA 01/08-31/08/2018;18-10-2018;6030;13;467;1;Spese correnti;3;Acquisto di beni e servizi;2;Acquisto di servizi;5;Utenze e canoni;4;Energia elettrica;18-10-2018;
1271;4;1912;"56,77";"1.558,75";HERA COMM S.r.l.; ;Fatt.n. 411807520411 del 08/09/2018 FORNITURA SERVIZIO ENERGIA ELETTRICA 01/08-31/08/2018;18-10-2018;6030;13;467;1;Spese correnti;3;Acquisto di beni e servizi;2;Acquisto di servizi;5;Utenze e canoni;4;Energia elettrica;18-10-2018;
1271;5;1912;"60,77";"1.558,75";HERA COMM S.r.l.; ;Fatt.n. 411807520392 del 08/09/2018 FORNITURA SERVIZIO ENERGIA ELETTRICA 01/08-31/08/2018;18-10-2018;6030;13;467;1;Spese correnti;3;Acquisto di beni e servizi;2;Acquisto di servizi;5;Utenze e canoni;4;Energia elettrica;18-10-2018;
1271;6;1912;"74,08";"1.558,75";HERA COMM S.r.l.; ;Fatt.n. 411807520408 del 08/09/2018 FORNITURA SERVIZIO ENERGIA ELETTRICA 01/08-31/08/2018;18-10-2018;6030;13;467;1;Spese correnti;3;Acquisto di beni e servizi;2;Acquisto di servizi;5;Utenze e canoni;4;Energia elettrica;18-10-2018;
1271;7;1912;"1.311,55";"1.558,75";HERA COMM S.r.l.; ;Fatt.n. 411807520414 del 08/09/2018 FORNITURA SERVIZIO ENERGIA ELETTRICA 01/08-31/08/2018;18-10-2018;6030;13;467;1;Spese correnti;3;Acquisto di beni e servizi;2;Acquisto di servizi;5;Utenze e canoni;4;Energia elettrica;18-10-2018;
1272;1;1913;"167,03";"167,03";HERA COMM S.r.l.; ;Fatt.n. 411807520390 del 08/09/2018 FORNITURA SERVIZIO ENERGIA ELETTRICA 01/08-31/08/2018;18-10-2018;6030;14;468;1;Spese correnti;3;Acquisto di beni e servizi;2;Acquisto di servizi;5;Utenze e canoni;4;Energia elettrica;18-10-2018;
1273;1;1914;"38,98";"570,10";HERA COMM S.r.l.; ;Fatt.n. 411807520405 del 08/09/2018 FORNITURA SERVIZIO ENERGIA ELETTRICA 01/08-31/08/2018;18-10-2018;6030;16;469;1;Spese correnti;3;Acquisto di beni e servizi;2;Acquisto di servizi;5;Utenze e canoni;4;Energia elettrica;18-10-2018;
1273;2;1914;"77,30";"570,10";HERA COMM S.r.l.; ;Fatt.n. 411807520399 del 08/09/2018 FORNITURA SERVIZIO ENERGIA ELETTRICA;18-10-2018;6030;16;469;1;Spese correnti;3;Acquisto di beni e servizi;2;Acquisto di servizi;5;Utenze e canoni;4;Energia elettrica;18-10-2018;
1273;3;1914;"453,82";"570,10";HERA COMM S.r.l.; ;Fatt.n. 411807520386 del 08/09/2018 FORNITURA SERVIZIO ENERGIA ELETTRICA 01/08-31/08/2018;18-10-2018;6030;16;469;1;Spese correnti;3;Acquisto di beni e servizi;2;Acquisto di servizi;5;Utenze e canoni;4;Energia elettrica;18-10-2018;
1274;1;1915;"234,76";"234,76";HERA COMM S.r.l.; ;Fatt.n. 411807520385 del 08/09/2018 FORNITURA SERVIZIO ENERGIA ELETTRICA 01/08-31/08/2018;18-10-2018;6030;17;470;1;Spese correnti;3;Acquisto di beni e servizi;2;Acquisto di servizi;5;Utenze e canoni;4;Energia elettrica;18-10-2018;
1275;1;1916;"19,11";"19,11";HERA COMM S.r.l.; ;Fatt.n. 411807520413 del 08/09/2018 FORNITURA SERVIZIO ENERGIA ELETTRICA 01/08-31/08/2018;18-10-2018;6030;18;471;1;Spese correnti;3;Acquisto di beni e servizi;2;Acquisto di servizi;5;Utenze e canoni;4;Energia elettrica;18-10-2018;
1276;1;1917;"133,70";"133,70";HERA COMM S.r.l.; ;Fatt.n. 411807520416 del 08/09/2018 FORNITURA SERVIZIO ENERGIA ELETTRICA 01/08-31/08/2018;18-10-2018;6030;19;472;1;Spese correnti;3;Acquisto di beni e servizi;2;Acquisto di servizi;5;Utenze e canoni;4;Energia elettrica;18-10-2018;
1277;1;1918;"1.000,00";"1.000,00";ASSOCIAZIONE FRATERNITA' MISERICORDIA; ;accordo di collaborazione per garantire livelli di sicurezza in occasione di manifestazioni pubbliche;19-10-2018;1595;0;316;1;Spese correnti;4;Trasferimenti correnti;2;Trasferimenti correnti a Famiglie;1;Interventi previdenziali;999;Altri sussidi e assegni;19-10-2018;
1278;1;1919;"8.000,00";"8.000,00";CERTO CARMELA; ;VERTENZA CERTO CARMELA - TRANSAZIONE;19-10-2018;1058;6;265;1;Spese correnti;4;Trasferimenti correnti;2;Trasferimenti correnti a Famiglie;5;Altri trasferimenti a famiglie;999;Altri trasferimenti a famiglie n.a.c.;19-10-2018;
1279;1;1920;"344,74";"344,74";ORIFICI CARMELO-MARTINO CARMELA; ;CANONE LOCAZIONE IMMOBILE P.M. OTT. 2018;19-10-2018;2230;0;154;1;Spese correnti;3;Acquisto di beni e servizi;2;Acquisto di servizi;7;Utilizzo di beni di terzi;1;Locazione di beni immobili;19-10-2018;
1281;1;1922;"800,00";"800,00";GRANDI IMPIANTI SERVICE S.A.S.;ZB62165A0D;SALDO Fatt.n. 1/PA-18  del 30/03/2018 computer per uff. elettorale;19-10-2018;2140;5;505;1;Spese correnti;3;Acquisto di beni e servizi;1;Acquisto di beni;2;Altri beni di consumo;6;Materiale informatico;19-10-2018;
1282;1;1995;"1.708,00";"1.708,00";ROSSELLO GIUSEPPE;ZB52471544;SALDO Fatt.n. 000001-2018-PA  del 13/09/2018 Determina affidamento n. 27 del 23-07-2018 lavori di manutenzione marciapiede in Via P. Profeta.;19-10-2018;4035;0;317;2;Spese in conto capitale;2;Investimenti fissi lordi e acquisto di terreni;1;Beni materiali;9;Beni immobili;13;Altre vie di comunicazione;26-10-2018;
1283;1;1924;"55,14";"55,14";EDISON ENERGIE S.P.A.; ;SALDO Fatt.n. FI18366000008077  del 24/09/2018 FATTURAZIONE PERIODO 01/08-31/08/18;22-10-2018;6160;3;397;1;Spese correnti;3;Acquisto di beni e servizi;2;Acquisto di servizi;5;Utenze e canoni;6;Gas;23-10-2018;
1284;1;1923;"3.216,76";"3.216,76";LO PRESTI GIORGIO;Z662506124;SALDO Fatt.n. FATTPA 9_18  del 24/09/2018 VERBALE SOMMA URGENZA DEL 24/08/2018-RISPRISTINO ACQUEDOTTO;22-10-2018;4035;0;322;2;Spese in conto capitale;2;Investimenti fissi lordi e acquisto di terreni;1;Beni materiali;9;Beni immobili;13;Altre vie di comunicazione;22-10-2018;
1333;1;1942;"5.691,29";"5.691,29";SICULA TRASPORTI S.R.L.;6150991658;SALDO Fatt.n. 1605/03  del 31/08/2018 CONFERIMENTO RSU DISCARICA AGO.2018;24-10-2018;1743;0;330;1;Spese correnti;3;Acquisto di beni e servizi;2;Acquisto di servizi;15;Contratti di servizio pubblico;5;Contratti di servizio per il conferimento in discarica dei rifiuti;24-10-2018;
1334;1;1996;"768,60";"768,60";CLIMA.NET SRL DI FERRO TINDARO LUCA;ZB5244F420;SALDO Fatt.n. 2/E  del 30/08/2018 fornitura e installazione condizionatore palazzo municipale;25-10-2018;1025;0;235;1;Spese correnti;3;Acquisto di beni e servizi;2;Acquisto di servizi;9;Manutenzione ordinaria e riparazioni;8;Manutenzione ordinaria e riparazioni di beni immobili;26-10-2018;
1335;1;1997;"1.181,51";"1.181,51";BENFATTA SALVATORE & C. S.N.C.;Z252505F4F;ACCONTO Fatt.n. 000006-2018-FATTURE  del 27/09/2018 somma urgenza del 24/08/2018 ripristino condotte fognarie DETERMINA N.12894/177 DEL 26/09/2018-;25-10-2018;3304;8;325;2;Spese in conto capitale;2;Investimenti fissi lordi e acquisto di terreni;1;Beni materiali;9;Beni immobili;10;Infrastrutture idrauliche;26-10-2018;
1336;1;1998;"0,62";"0,62";BENFATTA SALVATORE & C. S.N.C.;Z252505F4F;ACCONTO Fatt.n. 000006-2018-FATTURE  del 27/09/2018 somma urgenza del 24/08/2018 ripristino condotte fognarie DETERMINA N.12894/177 DEL 26/09/2018-;25-10-2018;1577;0;326;1;Spese correnti;3;Acquisto di beni e servizi;2;Acquisto di servizi;9;Manutenzione ordinaria e riparazioni;11;Manutenzione ordinaria e riparazioni di altri beni materiali;26-10-2018;
1337;1;1999;"1.351,25";"1.351,25";BENFATTA SALVATORE & C. S.N.C.;Z252505F4F;SALDO Fatt.n. 000006-2018-FATTURE  del 27/09/2018 somma urgenza del 24/08/2018 ripristino condotte fognarie DETERMINA N.12894/177 DEL 26/09/2018-;25-10-2018;4035;1;327;2;Spese in conto capitale;2;Investimenti fissi lordi e acquisto di terreni;1;Beni materiali;9;Beni immobili;13;Altre vie di comunicazione;26-10-2018;
1338;1;2000;"1.343,69";"1.343,69";LO PRESTI GIORGIO;Z4D24C678A;SALDO Fatt.n. FATTPA 11_18  del 26/09/2018 VERBALE SOMMA URGENZA DEL 20/08/2018-RIPRISTINO CONDOTTA IDRICA;25-10-2018;3304;8;319;2;Spese in conto capitale;2;Investimenti fissi lordi e acquisto di terreni;1;Beni materiali;9;Beni immobili;10;Infrastrutture idrauliche;26-10-2018;
1340;1;2001;"-447,28";"5.237,66";HERA COMM S.r.l.; ;SALDO Fatt.n. 411808076667  del 26/09/2018 FORNITURA SERVIZIO ENERGIA ELETTRICA;26-10-2018;6030;13;467;1;Spese correnti;3;Acquisto di beni e servizi;2;Acquisto di servizi;5;Utenze e canoni;4;Energia elettrica;26-10-2018;
1340;2;2001;"194,59";"5.237,66";HERA COMM S.r.l.; ;SALDO Fatt.n. 411808076669  del 26/09/2018 FORNITURA SERVIZIO ENERGIA ELETTRICA 01/08-31/08/18;26-10-2018;6030;13;467;1;Spese correnti;3;Acquisto di beni e servizi;2;Acquisto di servizi;5;Utenze e canoni;4;Energia elettrica;26-10-2018;
1340;3;2001;"5.490,35";"5.237,66";HERA COMM S.r.l.; ;SALDO Fatt.n. 411808076668  del 26/09/2018 FORNITURA SERVIZIO ENERGIA ELETTRICA  01/08-31/08/18;26-10-2018;6030;13;467;1;Spese correnti;3;Acquisto di beni e servizi;2;Acquisto di servizi;5;Utenze e canoni;4;Energia elettrica;26-10-2018;
1342;1;2009;"1.518,37";"2.068,78";FIORE SALVATORE VITTORIO; ;INDENNITA' FUNZIONE MESE DI OTTOBRE 2018;02-11-2018;1001;0;18;1;Spese correnti;3;Acquisto di beni e servizi;2;Acquisto di servizi;1;Organi e incarichi istituzionali dell'amministrazione;1;Organi istituzionali dell'amministrazione - Indennità;02-11-2018;
1342;2;2010;"151,83";"2.068,78";INTERDONATO ARMANDO; ;INDENNITA' FUNZIONE MESE DI OTTOBRE 2018;02-11-2018;1001;0;18;1;Spese correnti;3;Acquisto di beni e servizi;2;Acquisto di servizi;1;Organi e incarichi istituzionali dell'amministrazione;1;Organi istituzionali dell'amministrazione - Indennità;02-11-2018;
1342;3;2011;"227,76";"2.068,78";LAMANCUSA MARCO; ;INDENNITA' FUNZIONE MESE DI OTTOBRE 2018;02-11-2018;1001;0;18;1;Spese correnti;3;Acquisto di beni e servizi;2;Acquisto di servizi;1;Organi e incarichi istituzionali dell'amministrazione;1;Organi istituzionali dell'amministrazione - Indennità;02-11-2018;
1342;4;2012;"170,82";"2.068,78";PETTINATO  ROSA SANDRA; ;INDENNITA' FUNZIONE MESE DI OTTOBRE 2018;02-11-2018;1001;0;18;1;Spese correnti;3;Acquisto di beni e servizi;2;Acquisto di servizi;1;Organi e incarichi istituzionali dell'amministrazione;1;Organi istituzionali dell'amministrazione - Indennità;02-11-2018;
1343;1;2013;"227,76";"227,76";FORZANO GIUSEPPE; ;INDENNITA' FUNZIONE PRESIDENTE C.C. OTT. 2018;02-11-2018;1001;0;56;1;Spese correnti;3;Acquisto di beni e servizi;2;Acquisto di servizi;1;Organi e incarichi istituzionali dell'amministrazione;1;Organi istituzionali dell'amministrazione - Indennità;02-11-2018;
1344;1;2014;"1.907,01";"1.907,01";LOPRESTI MARIA GABRIELLA; ;SALDO Fatt.n. 13/E  del 28/09/2018 COMP. REVISORE DEI CONTI 01/07-30/09/2018;02-11-2018;1046;0;115;1;Spese correnti;3;Acquisto di beni e servizi;2;Acquisto di servizi;1;Organi e incarichi istituzionali dell'amministrazione;1;Organi istituzionali dell'amministrazione - Indennità;02-11-2018;
1345;1;2015;"4.344,42";"4.344,42";CARTAREGIA COSIMO;ZEF24B4CB5;ACCONTO Fatt.n. 19/PA  del 01/10/2018 lRif. Determina n.67  prot. n.11500 del 24/08/2018-ADEGUAMENTO NORMATIVA ANTINCENDIO VILLA MARIA';02-11-2018;3010;5;259;2;Spese in conto capitale;2;Investimenti fissi lordi e acquisto di terreni;1;Beni materiali;9;Beni immobili;1;Fabbricati ad uso abitativo;02-11-2018;
1346;1;2016;"805,20";"805,20";CARTAREGIA COSIMO;ZEF24B4CB5;SALDO Fatt.n. 19/PA  del 01/10/2018 lRif. Determina n.67  prot. n.11500 del 24/08/2018-ADEGUAMENTO NORMATIVA ANTINCENDIO VILLA MARIA';02-11-2018;3010;5;332;2;Spese in conto capitale;2;Investimenti fissi lordi e acquisto di terreni;1;Beni materiali;9;Beni immobili;1;Fabbricati ad uso abitativo;02-11-2018;
1347;1;2017;"750,20";"750,20";HALLEY SUD SRL;Z001C8D941;ACCONTO Fatt.n. 201800605  del 02/10/2018 Canone di assistenza Software dal 01/07/2018 al 30/09/2018;02-11-2018;2100;1;495;1;Spese correnti;3;Acquisto di beni e servizi;2;Acquisto di servizi;19;Servizi informatici e di telecomunicazioni;5;Servizi per i sistemi e relativa manutenzione;02-11-2018;
1348;1;2018;"1.427,50";"1.427,50";HALLEY SUD SRL;Z001C8D941;SALDO Fatt.n. 201800605  del 02/10/2018 Canone di assistenza Software dal 01/07/2018 al 30/09/2018;02-11-2018;2100;2;496;1;Spese correnti;3;Acquisto di beni e servizi;2;Acquisto di servizi;19;Servizi informatici e di telecomunicazioni;5;Servizi per i sistemi e relativa manutenzione;02-11-2018;
1349;1;2019;"18.992,00";"18.992,00";ECOLANDIA SRL;75280149AB;"ACCONTO Fatt.n. 178/PA  del 30/09/2018 SERVIZIO DI SPAZZAMENTO, RACCOLTA E TRASPORTO ALLO SMALTIMENTO DEI RIFIUTI SOLIDI URBANI DIFFERENZIATI E INDIFFERENZIATI, PER IL COMUNE DI SAN PIERO PATTI (ME). CIG 75280149AB";02-11-2018;1744;0;227;1;Spese correnti;3;Acquisto di beni e servizi;2;Acquisto di servizi;15;Contratti di servizio pubblico;5;Contratti di servizio per il conferimento in discarica dei rifiuti;02-11-2018;
1350;1;2020;"3.583,74";"3.583,74";ECOLANDIA SRL;75280149AB;"SALDO Fatt.n. 178/PA  del 30/09/2018 SERVIZIO DI SPAZZAMENTO, RACCOLTA E TRASPORTO ALLO SMALTIMENTO DEI RIFIUTI SOLIDI URBANI DIFFERENZIATI E INDIFFERENZIATI, PER IL COMUNE DI SAN PIERO PATTI (ME). CIG 75280149AB";02-11-2018;1744;0;228;1;Spese correnti;3;Acquisto di beni e servizi;2;Acquisto di servizi;15;Contratti di servizio pubblico;5;Contratti di servizio per il conferimento in discarica dei rifiuti;02-11-2018;
1351;1;2021;"50,40";"50,40";EDISON ENERGIE S.P.A.; ;SALDO Fatt.n. FI18366000008450  del 09/10/2018 canoni e consumi gas metano 22/058-17/09/2018;02-11-2018;6160;0;394;1;Spese correnti;3;Acquisto di beni e servizi;2;Acquisto di servizi;5;Utenze e canoni;6;Gas;05-11-2018;
1352;1;2022;"167,90";"554,07";Ministero dell'Interno Dipartimento Servizi Demografici; ;COMUNE DI SAN PIERO PATTI-CORRISPETTIVO RILASCIO N.10 C.I.E. DAL 16/09 AL 30/09/2018;05-11-2018;1037;2;360;1;Spese correnti;4;Trasferimenti correnti;1;Trasferimenti correnti a Amministrazioni Pubbliche;1;Trasferimenti correnti a Amministrazioni Centrali;1;Trasferimenti correnti a Ministeri;05-11-2018;
1352;2;2022;"386,17";"554,07";Ministero dell'Interno Dipartimento Servizi Demografici; ;COMUNE DI SAN PIERO PATTI-CORRISPETTIVO RILASCIO N.23 C.I.E.-DAL 01 AL 15 SETT.2018;05-11-2018;1037;2;360;1;Spese correnti;4;Trasferimenti correnti;1;Trasferimenti correnti a Amministrazioni Pubbliche;1;Trasferimenti correnti a Amministrazioni Centrali;1;Trasferimenti correnti a Ministeri;05-11-2018;
1353;1;2023;"185,92";"185,92";Ministero dell'Interno Dipartimento Servizi Demografici; ;COMUNE DI S.PIERO PATTI CORRISPETTIVO RILASCIO 11 C.I.E. DAL 01 AL 15 OTT.2018;05-11-2018;1037;2;366;1;Spese correnti;4;Trasferimenti correnti;1;Trasferimenti correnti a Amministrazioni Pubbliche;1;Trasferimenti correnti a Amministrazioni Centrali;1;Trasferimenti correnti a Ministeri;05-11-2018;
1354;1;2024;"344,74";"344,74";ORIFICI CARMELO-MARTINO CARMELA; ;CANONE LOCAZIONE IMMOBILE P.M. NOV 2018;05-11-2018;2230;0;154;1;Spese correnti;3;Acquisto di beni e servizi;2;Acquisto di servizi;7;Utilizzo di beni di terzi;1;Locazione di beni immobili;05-11-2018;
1355;1;2025;"7,23";"41,36";AUTOSTRADE PER L'ITALIA S.p.A.; ;ACCONTO Fatt.n. 900021579D  del 30/10/2018 PEDAGGI AUTOSTRADALI OTT.2018;07-11-2018;1017;0;28;1;Spese correnti;3;Acquisto di beni e servizi;2;Acquisto di servizi;99;Altri servizi;999;Altri servizi diversi n.a.c.;07-11-2018;
1355;2;2008;"32,87";"41,36";AUTOSTRADE PER L'ITALIA S.p.A.; ;SALDO Fatt.n. 900021579D  del 30/10/2018 PEDAGGI AUTOSTRADALI OTT.2018;07-11-2018;1017;0;28;1;Spese correnti;3;Acquisto di beni e servizi;2;Acquisto di servizi;99;Altri servizi;999;Altri servizi diversi n.a.c.;07-11-2018;
1355;3;2026;"0,23";"41,36";TELEPASS SPA; ;ACCONTO Fatt.n. 900021608T  del 30/10/2018 CANONE TELEPASS OTT.2018;07-11-2018;1017;0;28;1;Spese correnti;3;Acquisto di beni e servizi;2;Acquisto di servizi;99;Altri servizi;999;Altri servizi diversi n.a.c.;07-11-2018;
1355;4;2026;"1,03";"41,36";TELEPASS SPA; ;SALDO Fatt.n. 900021608T  del 30/10/2018 CANONE TELEPASS OTT.2018;07-11-2018;1017;0;28;1;Spese correnti;3;Acquisto di beni e servizi;2;Acquisto di servizi;99;Altri servizi;999;Altri servizi diversi n.a.c.;07-11-2018;
1356;1;2027;"1.800,00";"1.800,00";GARITO GIUSEPPINA; ;SALDO Fatt.n. 2/E  del 09/10/2018 VS. DETERMINA SINDACALE N. 24 DEL 26/09/2018 PROT. GEN. N. 12892-ACC. CAUSA CIVILE C/CUR.FALL. P.C.E. SRL;07-11-2018;1058;0;331;1;Spese correnti;3;Acquisto di beni e servizi;2;Acquisto di servizi;99;Altri servizi;2;Altre spese legali;07-11-2018;
1358;1;2029;"619,80";"619,80";CASELLA ROBERTA; ;EROGAZIONE SUSSIDIO RAGAZZE MADRI ANNO 2018;08-11-2018;1878;6;324;1;Spese correnti;4;Trasferimenti correnti;2;Trasferimenti correnti a Famiglie;1;Interventi previdenziali;999;Altri sussidi e assegni;08-11-2018;
1359;1;2030;"500,00";"500,00";PARROCCHIA S.MARIA E S.PANCRAZIO; ;FUNZIONAMENTO OROLOGIO PUBBLICO CHIESA S.MARIA ANNO 2018;08-11-2018;1160;1;323;1;Spese correnti;3;Acquisto di beni e servizi;2;Acquisto di servizi;9;Manutenzione ordinaria e riparazioni;11;Manutenzione ordinaria e riparazioni di altri beni materiali;08-11-2018;
1360;1;2034;"350,00";"1.050,00";CAFFARELLI FIORENTINO; ;spazzamento strrade disciplina assistenza economica 10/09-09/10/2018;08-11-2018;1900;0;318;1;Spese correnti;4;Trasferimenti correnti;2;Trasferimenti correnti a Famiglie;1;Interventi previdenziali;999;Altri sussidi e assegni;09-11-2018;
1360;2;2033;"350,00";"1.050,00";MOSCHELLI DAVIDE; ;spazzamento strrade disciplina assistenza economica 10/09-09/10/2018;08-11-2018;1900;0;318;1;Spese correnti;4;Trasferimenti correnti;2;Trasferimenti correnti a Famiglie;1;Interventi previdenziali;999;Altri sussidi e assegni;09-11-2018;
1360;3;2031;"350,00";"1.050,00";STARVAGGI DANIELA; ;spazzamento strrade disciplina assistenza economica 10/09-09/10/2018;08-11-2018;1900;0;318;1;Spese correnti;4;Trasferimenti correnti;2;Trasferimenti correnti a Famiglie;1;Interventi previdenziali;999;Altri sussidi e assegni;08-11-2018;
1361;1;2032;"203,87";"203,87";SIAE; ;SALDO Fatt.n. 1618034165  del 11/10/2018 DIRITTI SIAE MUSICA IN ARTE VARIA E CABARET;08-11-2018;1512;1;175;1;Spese correnti;3;Acquisto di beni e servizi;2;Acquisto di servizi;2;"Organizzazione eventi, pubblicita` e servizi per trasferta";5;Organizzazione e partecipazione a manifestazioni e convegni;08-11-2018;
1362;1;2035;"55,14";"55,14";EDISON ENERGIE S.P.A.; ;SALDO Fatt.n. FI18366000008487  del 19/10/2018 PERIODO DI FATTURAZIONE DAL 07/02 AL 18/09/2018;09-11-2018;6160;2;396;1;Spese correnti;3;Acquisto di beni e servizi;2;Acquisto di servizi;5;Utenze e canoni;999;Utenze e canoni per altri servizi n.a.c.;12-11-2018;
1363;1;2036;"6.340,48";"6.340,48";IALITE ONLUS;ZA020E82FC;"SALDO Fatt.n. 156  del 20/09/2018 SERVIZIO DI ASSISTENZA DOMICILIARE IN FAVORE DI         ANZIANI,MINORI, DIVERSAMENTE ABILI E NUCLEI FAMILIARI IN CONDIZIONI DI         DISAGIO - DAL 01.08.2018 AL 31.08.2018 - CIG: ZA020E82FC";12-11-2018;1878;2;35;1;Spese correnti;3;Acquisto di beni e servizi;2;Acquisto di servizi;15;Contratti di servizio pubblico;9;Contratti di servizio di assistenza sociale domiciliare;12-11-2018;
1364;1;2042;"4,96";"2.714,07";TELECOM ITALIA S.P.A.-TIM SPA; ;Fatt.n. 8A00732162 del 05/10/2018 6 BIM 2018;12-11-2018;6040;5;390;1;Spese correnti;3;Acquisto di beni e servizi;2;Acquisto di servizi;5;Utenze e canoni;1;Telefonia fissa;13-11-2018;
1364;2;2042;"74,49";"2.714,07";TELECOM ITALIA S.P.A.-TIM SPA; ;Fatt.n. 8V00464958 del 05/10/2018 6BIM 2018;12-11-2018;6040;5;390;1;Spese correnti;3;Acquisto di beni e servizi;2;Acquisto di servizi;5;Utenze e canoni;1;Telefonia fissa;13-11-2018;
1364;3;2042;"389,40";"2.714,07";TELECOM ITALIA S.P.A.-TIM SPA; ;Fatt.n. 8V00463656 del 05/10/2018 6BIM 2018;12-11-2018;6040;5;390;1;Spese correnti;3;Acquisto di beni e servizi;2;Acquisto di servizi;5;Utenze e canoni;1;Telefonia fissa;13-11-2018;
1364;4;2042;"594,01";"2.714,07";TELECOM ITALIA S.P.A.-TIM SPA; ;Fatt.n. 4220918800009659 del 05/10/2018 6BIM 2018;12-11-2018;6040;5;390;1;Spese correnti;3;Acquisto di beni e servizi;2;Acquisto di servizi;5;Utenze e canoni;1;Telefonia fissa;13-11-2018;
1364;5;2042;"816,82";"2.714,07";TELECOM ITALIA S.P.A.-TIM SPA; ;Fatt.n. 8V00464338 del 05/10/2018 6BIM 2018;12-11-2018;6040;5;390;1;Spese correnti;3;Acquisto di beni e servizi;2;Acquisto di servizi;5;Utenze e canoni;1;Telefonia fissa;13-11-2018;
1364;6;2042;"834,39";"2.714,07";TELECOM ITALIA S.P.A.-TIM SPA; ;Fatt.n. 8V00465507 del 05/10/2018 6BIM 2018;12-11-2018;6040;5;390;1;Spese correnti;3;Acquisto di beni e servizi;2;Acquisto di servizi;5;Utenze e canoni;1;Telefonia fissa;13-11-2018;
1365;1;2043;"76,40";"211,87";TELECOM ITALIA S.P.A.-TIM SPA; ;Fatt.n. 8V00462709 del 05/10/2018 6BIM 2018;12-11-2018;6040;6;391;1;Spese correnti;3;Acquisto di beni e servizi;2;Acquisto di servizi;5;Utenze e canoni;1;Telefonia fissa;13-11-2018;
1365;2;2043;"135,47";"211,87";TELECOM ITALIA S.P.A.-TIM SPA; ;Fatt.n. 4220918800009649 del 05/10/2018 6BIM 2018;12-11-2018;6040;6;391;1;Spese correnti;3;Acquisto di beni e servizi;2;Acquisto di servizi;5;Utenze e canoni;1;Telefonia fissa;13-11-2018;
1366;1;2044;"76,40";"576,86";TELECOM ITALIA S.P.A.-TIM SPA; ;Fatt.n. 8V00462591 del 05/10/2018 6BIM 2018;12-11-2018;6040;10;393;1;Spese correnti;3;Acquisto di beni e servizi;2;Acquisto di servizi;5;Utenze e canoni;1;Telefonia fissa;13-11-2018;
1366;2;2044;"500,46";"576,86";TELECOM ITALIA S.P.A.-TIM SPA; ;Fatt.n. 4220918800009659 del 05/10/2018 6BIM 2018;12-11-2018;6040;10;393;1;Spese correnti;3;Acquisto di beni e servizi;2;Acquisto di servizi;5;Utenze e canoni;1;Telefonia fissa;13-11-2018;
1367;1;2037;"115,00";"115,00";KUWAIT PETROLEUM ITALIA S.P.A.;6516542493;Fatt.n. PJ00390120 del 30/09/2018 CARBURANTE AUTOMEZZI COMUNALI SETT.2018;12-11-2018;6080;2;23;1;Spese correnti;3;Acquisto di beni e servizi;1;Acquisto di beni;2;Altri beni di consumo;2;"Carburanti, combustibili e lubrificanti";12-11-2018;
1368;1;2038;"707,00";"707,00";KUWAIT PETROLEUM ITALIA S.P.A.;6516542493;Fatt.n. PJ00390120 del 30/09/2018 CARBURANTE AUTOMEZZI COMUNALI SETT.2018;12-11-2018;6080;3;24;1;Spese correnti;3;Acquisto di beni e servizi;1;Acquisto di beni;2;Altri beni di consumo;2;"Carburanti, combustibili e lubrificanti";12-11-2018;
1369;1;2039;"432,00";"432,00";KUWAIT PETROLEUM ITALIA S.P.A.;6516542493;Fatt.n. PJ00390120 del 30/09/2018 CARBURANTE AUTOMEZZI COMUNALI SETT.2018;12-11-2018;6080;4;25;1;Spese correnti;3;Acquisto di beni e servizi;1;Acquisto di beni;2;Altri beni di consumo;2;"Carburanti, combustibili e lubrificanti";12-11-2018;
1370;1;2040;"413,00";"413,00";KUWAIT PETROLEUM ITALIA S.P.A.;6516542493;Fatt.n. PJ00390120 del 30/09/2018 CARBURANTE AUTOMEZZI COMUNALI SETT.2018;12-11-2018;6080;5;26;1;Spese correnti;3;Acquisto di beni e servizi;1;Acquisto di beni;2;Altri beni di consumo;2;"Carburanti, combustibili e lubrificanti";12-11-2018;
1371;1;2041;"203,00";"203,00";KUWAIT PETROLEUM ITALIA S.P.A.;6516542493;Fatt.n. PJ00390120 del 30/09/2018 CARBURANTE AUTOMEZZI COMUNALI SETT.2018;12-11-2018;6080;7;27;1;Spese correnti;3;Acquisto di beni e servizi;1;Acquisto di beni;2;Altri beni di consumo;2;"Carburanti, combustibili e lubrificanti";12-11-2018;
1372;1;2045;"167,90";"167,90";Ministero dell'Interno Dipartimento Servizi Demografici; ;COMUNE DI SAN PIERO PATTI-CORRISPETTIVO RILASCIO N.10 C.I.E. 16/10-31/10/2018;14-11-2018;1037;2;380;1;Spese correnti;4;Trasferimenti correnti;1;Trasferimenti correnti a Amministrazioni Pubbliche;1;Trasferimenti correnti a Amministrazioni Centrali;1;Trasferimenti correnti a Ministeri;14-11-2018;
1373;1;2079;"250,00";"250,00";FAZIO DALIA;Z36246B930;MANIFESTAZIONI ESTATE 2018-SPETTACOLO MUSICALE-SALDO RICEVUTA PRESTAZIONE OCCASIONALE N.1 DEL 08/10/2018;16-11-2018;1512;1;223;1;Spese correnti;3;Acquisto di beni e servizi;2;Acquisto di servizi;2;"Organizzazione eventi, pubblicita` e servizi per trasferta";5;Organizzazione e partecipazione a manifestazioni e convegni;16-11-2018;
1374;1;2094;"53,39";"53,39";EDISON ENERGIE S.P.A.; ;SALDO Fatt.n. FI18366000008964  del 24/10/2018 PERIODO DI FATTURAZIONE DAL 01/09 AL 30/09/2018;16-11-2018;6160;3;397;1;Spese correnti;3;Acquisto di beni e servizi;2;Acquisto di servizi;5;Utenze e canoni;6;Gas;19-11-2018;
1375;1;2110;"1.000,00";"1.000,00";RUGGERI EMANUELE; ;SALDO Fatt.n. 1/EL  del 26/10/2018 COMUNE/TIRRENO AMBIENTE;16-11-2018;1058;0;356;1;Spese correnti;3;Acquisto di beni e servizi;2;Acquisto di servizi;99;Altri servizi;2;Altre spese legali;23-11-2018;
1420;1;2095;"1.073,60";"1.073,60";SCHEPISI TINDARO;ZC424A8BBB;Fatt.n. FPA 1/18 del 16/10/2018 Affidamento lavori di adeguamento alla normativa antincendio struttura residence per anziani "Villa Maria'" ed ulteriori interventi ad altri immobili comunali.;21-11-2018;1856;0;249;1;Spese correnti;3;Acquisto di beni e servizi;2;Acquisto di servizi;9;Manutenzione ordinaria e riparazioni;8;Manutenzione ordinaria e riparazioni di beni immobili;21-11-2018;
1421;1;2096;"1.000,00";"1.000,00";SCHEPISI TINDARO;ZC424A8BBB;Fatt.n. FPA 1/18 del 16/10/2018 Affidamento lavori di adeguamento alla normativa antincendio struttura residence per anziani "Villa Maria'" ed ulteriori interventi ad altri immobili comunali.;21-11-2018;4035;0;250;2;Spese in conto capitale;2;Investimenti fissi lordi e acquisto di terreni;1;Beni materiali;9;Beni immobili;13;Altre vie di comunicazione;21-11-2018;
1422;1;2097;"417,64";"417,64";SCHEPISI TINDARO;ZC424A8BBB;Fatt.n. FPA 1/18 del 16/10/2018 Affidamento lavori di adeguamento alla normativa antincendio struttura residence per anziani "Villa Maria'" ed ulteriori interventi ad altri immobili comunali.;21-11-2018;3010;5;251;2;Spese in conto capitale;2;Investimenti fissi lordi e acquisto di terreni;1;Beni materiali;9;Beni immobili;1;Fabbricati ad uso abitativo;21-11-2018;
1423;1;2098;"880,12";"880,12";SICULA TRASPORTI S.R.L.;6150991658;ACCONTO Fatt.n. 1837/03  del 30/09/2018 conferimento rsu in discarica sett.2018;21-11-2018;1743;0;374;1;Spese correnti;3;Acquisto di beni e servizi;2;Acquisto di servizi;15;Contratti di servizio pubblico;5;Contratti di servizio per il conferimento in discarica dei rifiuti;21-11-2018;
1424;1;2099;"5.755,88";"5.755,88";SICULA TRASPORTI S.R.L.;6150991658;SALDO Fatt.n. 1837/03  del 30/09/2018 conferimento rsu in discarica sett.2018;21-11-2018;1743;0;375;1;Spese correnti;3;Acquisto di beni e servizi;2;Acquisto di servizi;15;Contratti di servizio pubblico;5;Contratti di servizio per il conferimento in discarica dei rifiuti;21-11-2018;
1425;1;2100;"783,31";"783,31";BENFATTA SALVATORE & C. S.N.C.;Z7B255994C;SALDO Fatt.n. 000007-2018-FATTURE  del 23/10/2018 DETERMINA N.207 DEL 23/10/2018-ripristino condotta fognaria Via Gallo;21-11-2018;4035;0;364;2;Spese in conto capitale;2;Investimenti fissi lordi e acquisto di terreni;1;Beni materiali;9;Beni immobili;13;Altre vie di comunicazione;21-11-2018;
1426;1;2101;"2.499,78";"4.999,56";HALLEY SUD SRL;Z1E1BB0CDE;SALDO Fatt.n. 201700188  del 07/04/2017 Servizio di informatizzazione c/o Vs.Uffici Comunali dal 01/01/2017 al 30/06/2017;21-11-2018;2100;3;305;1;Spese correnti;3;Acquisto di beni e servizi;2;Acquisto di servizi;19;Servizi informatici e di telecomunicazioni;5;Servizi per i sistemi e relativa manutenzione;21-11-2018;
1426;2;2101;"2.499,78";"4.999,56";HALLEY SUD SRL;Z1E1BB0CDE;SALDO Fatt.n. 201800676  del 23/10/2018 Servizio di informatizzazione c/o Vs.Uffici Comunali dal 01/07/2017 al 31/12/2017;21-11-2018;2100;3;305;1;Spese correnti;3;Acquisto di beni e servizi;2;Acquisto di servizi;19;Servizi informatici e di telecomunicazioni;5;Servizi per i sistemi e relativa manutenzione;21-11-2018;
1427;1;2102;"2.499,78";"4.999,56";HALLEY SUD SRL;Z1E1BB0CDE;SALDO Fatt.n. 201800677  del 23/10/2018 Servizio di informatizzazione c/o Vs.Uffici Comunali dal 01/01/2018 al 30/06/2018;21-11-2018;2100;3;305;1;Spese correnti;3;Acquisto di beni e servizi;2;Acquisto di servizi;19;Servizi informatici e di telecomunicazioni;5;Servizi per i sistemi e relativa manutenzione;21-11-2018;
1427;2;2102;"2.499,78";"4.999,56";HALLEY SUD SRL;Z1E1BB0CDE;SALDO Fatt.n. 201800678  del 23/10/2018 Servizio di informatizzazione c/o Vs.Uffici Comunali dal 01/07/2018 al 31/12/2018;21-11-2018;2100;3;305;1;Spese correnti;3;Acquisto di beni e servizi;2;Acquisto di servizi;19;Servizi informatici e di telecomunicazioni;5;Servizi per i sistemi e relativa manutenzione;21-11-2018;
1428;1;2103;"21.408,24";"21.408,24";COMUNE DI MONTALBANO ELICONA; ;CONVENZIONE SEGRETERIA COMUNALE ANNO 2018-Rimborso I SEM.2018;21-11-2018;1026;0;260;1;Spese correnti;4;Trasferimenti correnti;1;Trasferimenti correnti a Amministrazioni Pubbliche;2;Trasferimenti correnti a Amministrazioni Locali;3;Trasferimenti correnti a Comuni;21-11-2018;
1429;1;2104;"16.428,97";"16.428,97";COMUNE DI PATTI; ;ANTICIPAZIONE AL DISTRETTO SOCIO SANITARIO FONDI PAC INFANZIA;21-11-2018;2013;0;116;1;Spese correnti;3;Acquisto di beni e servizi;2;Acquisto di servizi;99;Altri servizi;999;Altri servizi diversi n.a.c.;21-11-2018;
1430;1;2105;"350,00";"350,00";ANFUSO GIUSEPPE; ;CONTRIBUTO ECONOMICO;21-11-2018;1900;0;370;1;Spese correnti;4;Trasferimenti correnti;2;Trasferimenti correnti a Famiglie;1;Interventi previdenziali;999;Altri sussidi e assegni;21-11-2018;
1431;1;2106;"350,00";"350,00";CAFFARELLI ANTONINO CARMINE; ;spazzamento strrade disciplina assistenza economica-10/09-09/10/2018;21-11-2018;1900;0;318;1;Spese correnti;4;Trasferimenti correnti;2;Trasferimenti correnti a Famiglie;1;Interventi previdenziali;999;Altri sussidi e assegni;21-11-2018;
1432;1;2107;"5.528,28";"5.528,28";Interplay Associazione musicale;Z392131D33;SALDO Fatt.n. FATTPA 2_17  del 27/12/2017 attivita' concertistica pete rugolo;21-11-2018;1477;0;417;1;Spese correnti;10;Altre spese correnti;99;Altre spese correnti n.a.c.;99;Altre spese correnti n.a.c.;999;Altre spese correnti n.a.c.;21-11-2018;
1433;1;2108;"10.751,14";"10.751,14";CITTA'  METROPOLITANA DI MESSINA; ;RIVERSAMENTO TEFA al 31/10/2018;22-11-2018;1752;1;341;1;Spese correnti;4;Trasferimenti correnti;1;Trasferimenti correnti a Amministrazioni Pubbliche;2;Trasferimenti correnti a Amministrazioni Locali;2;Trasferimenti correnti a Province;22-11-2018;
1435;1;2111;"375,59";"375,59";ECONOMO COMUNALE; ;RIMBORSO SPESE ECONOMATO REALIZZAZIONE MANIFESTZIONI ESTATE 2018;22-11-2018;1512;1;210;1;Spese correnti;3;Acquisto di beni e servizi;2;Acquisto di servizi;2;"Organizzazione eventi, pubblicita` e servizi per trasferta";5;Organizzazione e partecipazione a manifestazioni e convegni;23-11-2018;
1436;1;2112;"1.667,00";"1.667,00";ECONOMO COMUNALE; ;RIMBORSO SPESE ECONOMATO REALIZZAZIONE MANIFESTZIONI ESTATE 2018;22-11-2018;2000;1;211;1;Spese correnti;3;Acquisto di beni e servizi;2;Acquisto di servizi;2;"Organizzazione eventi, pubblicita` e servizi per trasferta";5;Organizzazione e partecipazione a manifestazioni e convegni;23-11-2018;
1443;1;2120;"184,55";"468,85";Energetic S.p.A.;7491316D84;Fatt.n. EEX21641/2018 del 15/10/2018 Servizio di fornitura Energia Elettrica settembre 2018;23-11-2018;6030;5;459;1;Spese correnti;3;Acquisto di beni e servizi;2;Acquisto di servizi;5;Utenze e canoni;4;Energia elettrica;23-11-2018;
1443;2;2120;"284,30";"468,85";Energetic S.p.A.;7491316D84;Fatt.n. EEX21647/2018 del 15/10/2018 Servizio di fornitura Energia Elettrica settembre 2018;23-11-2018;6030;5;459;1;Spese correnti;3;Acquisto di beni e servizi;2;Acquisto di servizi;5;Utenze e canoni;4;Energia elettrica;23-11-2018;
1444;1;2121;"34,64";"34,64";Energetic S.p.A.;7491316D84;Fatt.n. EEX21642/2018 del 15/10/2018 Servizio di fornitura Energia Elettrica settembre 2018;23-11-2018;6030;6;460;1;Spese correnti;3;Acquisto di beni e servizi;2;Acquisto di servizi;5;Utenze e canoni;4;Energia elettrica;23-11-2018;
1445;1;2122;"37,47";"75,55";Energetic S.p.A.;7491316D84;Fatt.n. EEX21634/2018 del 15/10/2018 Servizio di fornitura Energia Elettrica sett.2018;23-11-2018;6030;8;462;1;Spese correnti;3;Acquisto di beni e servizi;2;Acquisto di servizi;5;Utenze e canoni;4;Energia elettrica;23-11-2018;
1445;2;2122;"38,08";"75,55";Energetic S.p.A.;7491316D84;Fatt.n. EEX21656/2018 del 15/10/2018 Servizio di fornitura Energia Elettrica settembre 2018;23-11-2018;6030;8;462;1;Spese correnti;3;Acquisto di beni e servizi;2;Acquisto di servizi;5;Utenze e canoni;4;Energia elettrica;23-11-2018;
1446;1;2123;"345,10";"345,10";Energetic S.p.A.;7491316D84;Fatt.n. EEX21645/2018 del 15/10/2018 Servizio di fornitura Energia Elettrica settembre 2018;23-11-2018;6030;9;463;1;Spese correnti;3;Acquisto di beni e servizi;2;Acquisto di servizi;5;Utenze e canoni;4;Energia elettrica;23-11-2018;
1447;1;2124;"312,86";"312,86";Energetic S.p.A.;7491316D84;Fatt.n. EEX21649/2018 del 15/10/2018 Servizio di fornitura Energia Elettrica settembre 2018;23-11-2018;6030;10;464;1;Spese correnti;3;Acquisto di beni e servizi;2;Acquisto di servizi;5;Utenze e canoni;4;Energia elettrica;23-11-2018;
1448;1;2125;"77,63";"207,80";Energetic S.p.A.;7491316D84;Fatt.n. EEX21644/2018 del 15/10/2018 Servizio di fornitura Energia Elettrica settembre 2018;23-11-2018;6030;11;465;1;Spese correnti;3;Acquisto di beni e servizi;2;Acquisto di servizi;5;Utenze e canoni;4;Energia elettrica;23-11-2018;
1448;2;2125;"130,17";"207,80";Energetic S.p.A.;7491316D84;Fatt.n. EEX21639/2018 del 15/10/2018 Servizio di fornitura Energia Elettrica settembre 2018;23-11-2018;6030;11;465;1;Spese correnti;3;Acquisto di beni e servizi;2;Acquisto di servizi;5;Utenze e canoni;4;Energia elettrica;23-11-2018;
1449;1;2126;"10,85";"11.250,12";Energetic S.p.A.;7491316D84;Fatt.n. EEX21648/2018 del 15/10/2018 Servizio di fornitura Energia Elettrica sett.2018;23-11-2018;6030;12;466;1;Spese correnti;3;Acquisto di beni e servizi;2;Acquisto di servizi;5;Utenze e canoni;4;Energia elettrica;23-11-2018;
1449;2;2126;"12,29";"11.250,12";Energetic S.p.A.;7491316D84;Fatt.n. EEX21814/2018 del 15/10/2018 Servizio di fornitura Energia Elettrica sett.2018;23-11-2018;6030;12;466;1;Spese correnti;3;Acquisto di beni e servizi;2;Acquisto di servizi;5;Utenze e canoni;4;Energia elettrica;23-11-2018;
1449;3;2126;"22,36";"11.250,12";Energetic S.p.A.;7491316D84;Fatt.n. EEX21650/2018 del 15/10/2018 Servizio di fornitura Energia Elettrica sett.2018;23-11-2018;6030;12;466;1;Spese correnti;3;Acquisto di beni e servizi;2;Acquisto di servizi;5;Utenze e canoni;4;Energia elettrica;23-11-2018;
1449;4;2126;"24,89";"11.250,12";Energetic S.p.A.;7491316D84;Fatt.n. EEX21625/2018 del 15/10/2018 Servizio di fornitura Energia Elettrica;23-11-2018;6030;12;466;1;Spese correnti;3;Acquisto di beni e servizi;2;Acquisto di servizi;5;Utenze e canoni;4;Energia elettrica;23-11-2018;
1449;5;2126;"34,38";"11.250,12";Energetic S.p.A.;7491316D84;Fatt.n. EEX21737/2018 del 15/10/2018 Servizio di fornitura Energia Elettrica sett.2018;23-11-2018;6030;12;466;1;Spese correnti;3;Acquisto di beni e servizi;2;Acquisto di servizi;5;Utenze e canoni;4;Energia elettrica;23-11-2018;
1449;6;2126;"38,97";"11.250,12";Energetic S.p.A.;7491316D84;Fatt.n. EEX21726/2018 del 15/10/2018 Servizio di fornitura Energia Elettrica sett.2018;23-11-2018;6030;12;466;1;Spese correnti;3;Acquisto di beni e servizi;2;Acquisto di servizi;5;Utenze e canoni;4;Energia elettrica;23-11-2018;
1449;7;2126;"51,22";"11.250,12";Energetic S.p.A.;7491316D84;Fatt.n. EEX21893/2018 del 15/10/2018 Servizio di fornitura Energia Elettrica sett.2018;23-11-2018;6030;12;466;1;Spese correnti;3;Acquisto di beni e servizi;2;Acquisto di servizi;5;Utenze e canoni;4;Energia elettrica;23-11-2018;
1449;8;2126;"61,28";"11.250,12";Energetic S.p.A.;7491316D84;Fatt.n. EEX21654/2018 del 15/10/2018 Servizio di fornitura Energia Elettrica sett.2018;23-11-2018;6030;12;466;1;Spese correnti;3;Acquisto di beni e servizi;2;Acquisto di servizi;5;Utenze e canoni;4;Energia elettrica;23-11-2018;
1449;9;2126;"63,40";"11.250,12";Energetic S.p.A.;7491316D84;Fatt.n. EEX21896/2018 del 15/10/2018 Servizio di fornitura Energia Elettrica sett.2018;23-11-2018;6030;12;466;1;Spese correnti;3;Acquisto di beni e servizi;2;Acquisto di servizi;5;Utenze e canoni;4;Energia elettrica;23-11-2018;
1449;10;2126;"68,19";"11.250,12";Energetic S.p.A.;7491316D84;Fatt.n. EEX21889/2018 del 15/10/2018 Servizio di fornitura Energia Elettrica sett.2018;23-11-2018;6030;12;466;1;Spese correnti;3;Acquisto di beni e servizi;2;Acquisto di servizi;5;Utenze e canoni;4;Energia elettrica;23-11-2018;
1449;11;2126;"69,42";"11.250,12";Energetic S.p.A.;7491316D84;Fatt.n. EEX21669/2018 del 15/10/2018 Servizio di fornitura Energia Elettrica sett.2018;23-11-2018;6030;12;466;1;Spese correnti;3;Acquisto di beni e servizi;2;Acquisto di servizi;5;Utenze e canoni;4;Energia elettrica;23-11-2018;
1449;12;2126;"72,15";"11.250,12";Energetic S.p.A.;7491316D84;Fatt.n. EEX21890/2018 del 15/10/2018 Servizio di fornitura Energia Elettrica sett.2018;23-11-2018;6030;12;466;1;Spese correnti;3;Acquisto di beni e servizi;2;Acquisto di servizi;5;Utenze e canoni;4;Energia elettrica;23-11-2018;
1449;13;2126;"83,30";"11.250,12";Energetic S.p.A.;7491316D84;Fatt.n. EEX21667/2018 del 15/10/2018 Servizio di fornitura Energia Elettrica sett.2018;23-11-2018;6030;12;466;1;Spese correnti;3;Acquisto di beni e servizi;2;Acquisto di servizi;5;Utenze e canoni;4;Energia elettrica;23-11-2018;
1449;14;2126;"96,83";"11.250,12";Energetic S.p.A.;7491316D84;Fatt.n. EEX21721/2018 del 15/10/2018 Servizio di fornitura Energia Elettrica sett.2018;23-11-2018;6030;12;466;1;Spese correnti;3;Acquisto di beni e servizi;2;Acquisto di servizi;5;Utenze e canoni;4;Energia elettrica;23-11-2018;
1449;15;2126;"101,55";"11.250,12";Energetic S.p.A.;7491316D84;Fatt.n. EEX21668/2018 del 15/10/2018 Servizio di fornitura Energia Elettrica sett.2018;23-11-2018;6030;12;466;1;Spese correnti;3;Acquisto di beni e servizi;2;Acquisto di servizi;5;Utenze e canoni;4;Energia elettrica;23-11-2018;
1449;16;2126;"106,96";"11.250,12";Energetic S.p.A.;7491316D84;Fatt.n. EEX21723/2018 del 15/10/2018 Servizio di fornitura Energia Elettrica sett.2018;23-11-2018;6030;12;466;1;Spese correnti;3;Acquisto di beni e servizi;2;Acquisto di servizi;5;Utenze e canoni;4;Energia elettrica;23-11-2018;
1449;17;2126;"109,76";"11.250,12";Energetic S.p.A.;7491316D84;Fatt.n. EEX21725/2018 del 15/10/2018 Servizio di fornitura Energia Elettrica sett.2018;23-11-2018;6030;12;466;1;Spese correnti;3;Acquisto di beni e servizi;2;Acquisto di servizi;5;Utenze e canoni;4;Energia elettrica;23-11-2018;
1449;18;2126;"114,67";"11.250,12";Energetic S.p.A.;7491316D84;Fatt.n. EEX21623/2018 del 15/10/2018 Servizio di fornitura Energia Elettrica sett.2018;23-11-2018;6030;12;466;1;Spese correnti;3;Acquisto di beni e servizi;2;Acquisto di servizi;5;Utenze e canoni;4;Energia elettrica;23-11-2018;
1449;19;2126;"147,14";"11.250,12";Energetic S.p.A.;7491316D84;Fatt.n. EEX21666/2018 del 15/10/2018 Servizio di fornitura Energia Elettrica sett.2018;23-11-2018;6030;12;466;1;Spese correnti;3;Acquisto di beni e servizi;2;Acquisto di servizi;5;Utenze e canoni;4;Energia elettrica;23-11-2018;
1449;20;2126;"187,95";"11.250,12";Energetic S.p.A.;7491316D84;Fatt.n. EEX21620/2018 del 15/10/2018 Servizio di fornitura Energia Elettrica sett.2018;23-11-2018;6030;12;466;1;Spese correnti;3;Acquisto di beni e servizi;2;Acquisto di servizi;5;Utenze e canoni;4;Energia elettrica;23-11-2018;
1449;21;2126;"230,67";"11.250,12";Energetic S.p.A.;7491316D84;Fatt.n. EEX21635/2018 del 15/10/2018 Servizio di fornitura Energia Elettrica sett.2018;23-11-2018;6030;12;466;1;Spese correnti;3;Acquisto di beni e servizi;2;Acquisto di servizi;5;Utenze e canoni;4;Energia elettrica;23-11-2018;
1449;22;2126;"260,71";"11.250,12";Energetic S.p.A.;7491316D84;Fatt.n. EEX21894/2018 del 15/10/2018 Servizio di fornitura Energia Elettrica sett.2018;23-11-2018;6030;12;466;1;Spese correnti;3;Acquisto di beni e servizi;2;Acquisto di servizi;5;Utenze e canoni;4;Energia elettrica;23-11-2018;
1449;23;2126;"275,94";"11.250,12";Energetic S.p.A.;7491316D84;Fatt.n. EEX21674/2018 del 15/10/2018 Servizio di fornitura Energia Elettrica sett.2018;23-11-2018;6030;12;466;1;Spese correnti;3;Acquisto di beni e servizi;2;Acquisto di servizi;5;Utenze e canoni;4;Energia elettrica;23-11-2018;
1449;24;2126;"281,43";"11.250,12";Energetic S.p.A.;7491316D84;Fatt.n. EEX21670/2018 del 15/10/2018 Servizio di fornitura Energia Elettrica sett.2018;23-11-2018;6030;12;466;1;Spese correnti;3;Acquisto di beni e servizi;2;Acquisto di servizi;5;Utenze e canoni;4;Energia elettrica;23-11-2018;
1449;25;2126;"302,84";"11.250,12";Energetic S.p.A.;7491316D84;Fatt.n. EEX21661/2018 del 15/10/2018 Servizio di fornitura Energia Elettrica sett.2018;23-11-2018;6030;12;466;1;Spese correnti;3;Acquisto di beni e servizi;2;Acquisto di servizi;5;Utenze e canoni;4;Energia elettrica;23-11-2018;
1449;26;2126;"332,38";"11.250,12";Energetic S.p.A.;7491316D84;Fatt.n. EEX21895/2018 del 15/10/2018 Servizio di fornitura Energia Elettrica sett.2018;23-11-2018;6030;12;466;1;Spese correnti;3;Acquisto di beni e servizi;2;Acquisto di servizi;5;Utenze e canoni;4;Energia elettrica;23-11-2018;
1449;27;2126;"391,13";"11.250,12";Energetic S.p.A.;7491316D84;Fatt.n. EEX21891/2018 del 15/10/2018 Servizio di fornitura Energia Elettrica sett.2018;23-11-2018;6030;12;466;1;Spese correnti;3;Acquisto di beni e servizi;2;Acquisto di servizi;5;Utenze e canoni;4;Energia elettrica;23-11-2018;
1449;28;2126;"543,63";"11.250,12";Energetic S.p.A.;7491316D84;Fatt.n. EEX21736/2018 del 15/10/2018 Servizio di fornitura Energia Elettrica sett.2018;23-11-2018;6030;12;466;1;Spese correnti;3;Acquisto di beni e servizi;2;Acquisto di servizi;5;Utenze e canoni;4;Energia elettrica;23-11-2018;
1449;29;2126;"572,16";"11.250,12";Energetic S.p.A.;7491316D84;Fatt.n. EEX21892/2018 del 15/10/2018 Servizio di fornitura Energia Elettrica sett.2018;23-11-2018;6030;12;466;1;Spese correnti;3;Acquisto di beni e servizi;2;Acquisto di servizi;5;Utenze e canoni;4;Energia elettrica;23-11-2018;
1449;30;2126;"1.885,91";"11.250,12";Energetic S.p.A.;7491316D84;Fatt.n. EEX21795/2018 del 15/10/2018 Servizio di fornitura Energia Elettrica sett.2018;23-11-2018;6030;12;466;1;Spese correnti;3;Acquisto di beni e servizi;2;Acquisto di servizi;5;Utenze e canoni;4;Energia elettrica;23-11-2018;
1449;31;2126;"4.695,76";"11.250,12";Energetic S.p.A.;7491316D84;Fatt.n. EEX21643/2018 del 15/10/2018 Servizio di fornitura Energia Elettrica sett.2018;23-11-2018;6030;12;466;1;Spese correnti;3;Acquisto di beni e servizi;2;Acquisto di servizi;5;Utenze e canoni;4;Energia elettrica;23-11-2018;
1450;1;2127;"11,60";"1.550,68";Energetic S.p.A.;7491316D84;Fatt.n. EEX21653/2018 del 15/10/2018 Servizio di fornitura Energia Elettrica sett.2018;23-11-2018;6030;13;467;1;Spese correnti;3;Acquisto di beni e servizi;2;Acquisto di servizi;5;Utenze e canoni;4;Energia elettrica;23-11-2018;
1450;2;2127;"19,34";"1.550,68";Energetic S.p.A.;7491316D84;Fatt.n. EEX21621/2018 del 15/10/2018 Servizio di fornitura Energia Elettrica sett.2018;23-11-2018;6030;13;467;1;Spese correnti;3;Acquisto di beni e servizi;2;Acquisto di servizi;5;Utenze e canoni;4;Energia elettrica;23-11-2018;
1450;3;2127;"47,35";"1.550,68";Energetic S.p.A.;7491316D84;Fatt.n. EEX21618/2018 del 15/10/2018 Servizio di fornitura Energia Elettrica sett.2018;23-11-2018;6030;13;467;1;Spese correnti;3;Acquisto di beni e servizi;2;Acquisto di servizi;5;Utenze e canoni;4;Energia elettrica;23-11-2018;
1450;4;2127;"54,56";"1.550,68";Energetic S.p.A.;7491316D84;Fatt.n. EEX21652/2018 del 15/10/2018 Servizio di fornitura Energia Elettrica sett.2018;23-11-2018;6030;13;467;1;Spese correnti;3;Acquisto di beni e servizi;2;Acquisto di servizi;5;Utenze e canoni;4;Energia elettrica;23-11-2018;
1450;5;2127;"554,17";"1.550,68";Energetic S.p.A.;7491316D84;Fatt.n. EEX21671/2018 del 15/10/2018 Servizio di fornitura Energia Elettrica sett.2018;23-11-2018;6030;13;467;1;Spese correnti;3;Acquisto di beni e servizi;2;Acquisto di servizi;5;Utenze e canoni;4;Energia elettrica;23-11-2018;
1450;6;2127;"863,66";"1.550,68";Energetic S.p.A.;7491316D84;Fatt.n. EEX21651/2018 del 15/10/2018 Servizio di fornitura Energia Elettrica sett.2018;23-11-2018;6030;13;467;1;Spese correnti;3;Acquisto di beni e servizi;2;Acquisto di servizi;5;Utenze e canoni;4;Energia elettrica;23-11-2018;
1451;1;2128;"107,35";"107,35";Energetic S.p.A.;7491316D84;Fatt.n. EEX21676/2018 del 15/10/2018 Servizio di fornitura Energia Elettrica sett.2018;23-11-2018;6030;14;468;1;Spese correnti;3;Acquisto di beni e servizi;2;Acquisto di servizi;5;Utenze e canoni;4;Energia elettrica;23-11-2018;
1452;1;2129;"38,97";"96,09";Energetic S.p.A.;7491316D84;Fatt.n. EEX21637/2018 del 15/10/2018 Servizio di fornitura Energia Elettrica sett.2018;23-11-2018;6030;16;469;1;Spese correnti;3;Acquisto di beni e servizi;2;Acquisto di servizi;5;Utenze e canoni;4;Energia elettrica;23-11-2018;
1452;2;2129;"57,12";"96,09";Energetic S.p.A.;7491316D84;Fatt.n. EEX21640/2018 del 15/10/2018 Servizio di fornitura Energia Elettrica sett.2018;23-11-2018;6030;16;469;1;Spese correnti;3;Acquisto di beni e servizi;2;Acquisto di servizi;5;Utenze e canoni;4;Energia elettrica;23-11-2018;
1453;1;2130;"19,43";"19,43";Energetic S.p.A.;7491316D84;Fatt.n. EEX21714/2018 del 15/10/2018 Servizio di fornitura Energia Elettrica sett.2018;23-11-2018;6030;18;471;1;Spese correnti;3;Acquisto di beni e servizi;2;Acquisto di servizi;5;Utenze e canoni;4;Energia elettrica;23-11-2018;
1454;1;2131;"50,90";"50,90";Energetic S.p.A.;7491316D84;Fatt.n. EEX21733/2018 del 15/10/2018 Servizio di fornitura Energia Elettrica sett.2018;23-11-2018;6030;19;472;1;Spese correnti;3;Acquisto di beni e servizi;2;Acquisto di servizi;5;Utenze e canoni;4;Energia elettrica;23-11-2018;
1455;1;2132;"3.169,41";"3.169,41";IALITE ONLUS;ZA020E82FC;"SALDO Fatt.n. 159  del 24/09/2018 SERVIZIO DI ASSISTENZA DOMICILIARE IN FAVORE DI         ANZIANI,MINORI, DIVERSAMENTE ABILI E NUCLEI FAMILIARI IN CONDIZIONI DI         DISAGIO - DAL 01.09.2018 AL 15.09.2018 - CIG: ZA020E82FC";23-11-2018;1878;2;35;1;Spese correnti;3;Acquisto di beni e servizi;2;Acquisto di servizi;15;Contratti di servizio pubblico;9;Contratti di servizio di assistenza sociale domiciliare;23-11-2018;
1456;1;2135;"10.000,00";"10.000,00";ASSOCIAZIONE FRATERNITA' MISERICORDIA; ;ACCORDO DI COLLABORAZIONE PER ATTIVITA' LUDICO-EDUCATIVE IN FAVORE DEI MINORI;26-11-2018;1910;0;214;1;Spese correnti;3;Acquisto di beni e servizi;2;Acquisto di servizi;99;Altri servizi;999;Altri servizi diversi n.a.c.;26-11-2018;
1457;1;2192;"1.502,05";"1.502,05";LO PRESTI GIORGIO;Z3025599AC;SALDO Fatt.n. FATTPA 12_18  del 27/10/2018 verbale di somma urgenza del 08/10/2018 ripristino acquedotto;26-11-2018;4035;0;363;2;Spese in conto capitale;2;Investimenti fissi lordi e acquisto di terreni;1;Beni materiali;9;Beni immobili;13;Altre vie di comunicazione;28-11-2018;
1459;1;2194;"2.375,80";"2.375,80";HALLEY CONSULTING;ZE91C8D94E;ACCONTO Fatt.n. 20181377  del 01/10/2018 FATTURA ELETTRONICA;28-11-2018;2100;1;346;1;Spese correnti;3;Acquisto di beni e servizi;2;Acquisto di servizi;19;Servizi informatici e di telecomunicazioni;5;Servizi per i sistemi e relativa manutenzione;28-11-2018;
1460;1;2198;"509,50";"509,50";HALLEY CONSULTING;ZE91C8D94E;SALDO Fatt.n. 20181377  del 01/10/2018 FATTURA ELETTRONICA;28-11-2018;2100;2;347;1;Spese correnti;3;Acquisto di beni e servizi;2;Acquisto di servizi;19;Servizi informatici e di telecomunicazioni;5;Servizi per i sistemi e relativa manutenzione;30-11-2018;
1461;1;2199;"33,64";"33,64";HERA COMM S.r.l.; ;Fatt.n. 411808519554 del 11/10/2018 FORNITURA SERVIZIO ENERGIA ELETTRICA 01/09-30/09/2018;28-11-2018;6030;7;461;1;Spese correnti;3;Acquisto di beni e servizi;2;Acquisto di servizi;5;Utenze e canoni;4;Energia elettrica;30-11-2018;
1462;1;2200;"19,11";"19,11";HERA COMM S.r.l.; ;Fatt.n. 411808519552 del 11/10/2018 FORNITURA SERVIZIO ENERGIA ELETTRICA sett.2018;28-11-2018;6030;8;462;1;Spese correnti;3;Acquisto di beni e servizi;2;Acquisto di servizi;5;Utenze e canoni;4;Energia elettrica;30-11-2018;
1463;1;2201;"19,11";"239,26";HERA COMM S.r.l.; ;Fatt.n. 411808519553 del 11/10/2018 FORNITURA SERVIZIO ENERGIA ELETTRICA sett.2018;28-11-2018;6030;13;467;1;Spese correnti;3;Acquisto di beni e servizi;2;Acquisto di servizi;5;Utenze e canoni;4;Energia elettrica;30-11-2018;
1463;2;2201;"59,44";"239,26";HERA COMM S.r.l.; ;Fatt.n. 411808519551 del 11/10/2018 FORNITURA SERVIZIO ENERGIA ELETTRICA sett.2018;28-11-2018;6030;13;467;1;Spese correnti;3;Acquisto di beni e servizi;2;Acquisto di servizi;5;Utenze e canoni;4;Energia elettrica;30-11-2018;
1463;3;2201;"160,71";"239,26";HERA COMM S.r.l.; ;Fatt.n. 411809025596 del 26/10/2018 FORNITURA SERVIZIO ENERGIA ELETTRICA SETT.2018;28-11-2018;6030;13;467;1;Spese correnti;3;Acquisto di beni e servizi;2;Acquisto di servizi;5;Utenze e canoni;4;Energia elettrica;30-11-2018;
1464;1;2195;"4.601,94";"4.601,94";SIRACUSANO FABRIZIO; ;RICONOSCIMENTO DEBITO F.B. SENTENZA N.763/2017 TRIB. PATTI D.I. ING. SIRACUSANO FABRIZIO;28-11-2018;10600;27;372;1;Spese correnti;10;Altre spese correnti;99;Altre spese correnti n.a.c.;99;Altre spese correnti n.a.c.;999;Altre spese correnti n.a.c.;28-11-2018;
1465;1;2196;"4.687,41";"4.687,41";MESSINA ANTONIETTA; ;RICONOSCIMENTO DEBITO F.B. SENTENZA N.105/2018 TRIB. PATTI GIUDIZIO MESSINA ANTONIETTA;29-11-2018;10600;27;373;1;Spese correnti;10;Altre spese correnti;99;Altre spese correnti n.a.c.;99;Altre spese correnti n.a.c.;999;Altre spese correnti n.a.c.;29-11-2018;
1466;1;2202;"4.235,25";"4.235,25";IALITE ONLUS;ZA020E82FC;"SALDO Fatt.n. 165  del 22/10/2018 SERVIZIO DI ASSISTENZA DOMICILIARE IN FAVORE DI         ANZIANI,MINORI, DIVERSAMENTE ABILI E NUCLEI FAMILIARI IN CONDIZIONI DI         DISAGIO - DAL 24.09.2018 AL 20.10.2018 - CIG: ZA020E82FC";30-11-2018;1878;2;328;1;Spese correnti;3;Acquisto di beni e servizi;2;Acquisto di servizi;15;Contratti di servizio pubblico;9;Contratti di servizio di assistenza sociale domiciliare;30-11-2018;
1467;1;2203;"450,00";"450,00";UNIPOL  ASSICURAZIONI;ZDF25D9BFO;polizze assicurativa in favore anziani centro di aggregazione 2018/2018;30-11-2018;1878;9;390;1;Spese correnti;3;Acquisto di beni e servizi;1;Acquisto di beni;2;Altri beni di consumo;999;Altri beni e materiali di consumo n.a.c.;05-12-2018;
1469;1;2204;"1.518,37";"2.049,66";FIORE SALVATORE VITTORIO; ;INDENNITA' FUNZIONE NOVEMBRE 2018;05-12-2018;1001;0;18;1;Spese correnti;3;Acquisto di beni e servizi;2;Acquisto di servizi;1;Organi e incarichi istituzionali dell'amministrazione;1;Organi istituzionali dell'amministrazione - Indennità;05-12-2018;
1469;2;2205;"151,83";"2.049,66";INTERDONATO ARMANDO; ;INDENNITA' FUNZIONE NOVEMBRE 2018;05-12-2018;1001;0;18;1;Spese correnti;3;Acquisto di beni e servizi;2;Acquisto di servizi;1;Organi e incarichi istituzionali dell'amministrazione;1;Organi istituzionali dell'amministrazione - Indennità;05-12-2018;
1469;3;2206;"227,76";"2.049,66";LAMANCUSA MARCO; ;INDENNITA' FUNZIONE NOVEMBRE 2018;05-12-2018;1001;0;18;1;Spese correnti;3;Acquisto di beni e servizi;2;Acquisto di servizi;1;Organi e incarichi istituzionali dell'amministrazione;1;Organi istituzionali dell'amministrazione - Indennità;05-12-2018;
1469;4;2207;"151,70";"2.049,66";PETTINATO  ROSA SANDRA; ;INDENNITA' FUNZIONE NOVEMBRE 2018 E CONGUAGLIO OTT.2018;05-12-2018;1001;0;18;1;Spese correnti;3;Acquisto di beni e servizi;2;Acquisto di servizi;1;Organi e incarichi istituzionali dell'amministrazione;1;Organi istituzionali dell'amministrazione - Indennità;05-12-2018;
1470;1;2208;"227,76";"227,76";FORZANO GIUSEPPE; ;INDENNITA' FUNZIONE PRESIDENTE C.C. NOV. 2018;05-12-2018;1001;0;56;1;Spese correnti;3;Acquisto di beni e servizi;2;Acquisto di servizi;1;Organi e incarichi istituzionali dell'amministrazione;1;Organi istituzionali dell'amministrazione - Indennità;05-12-2018;
1471;1;2209;"217,65";"217,65";M. & D. di CANGEMI LAURA;ZF121637F3;SALDO Fatt.n. 000006-2018-FE  del 06/11/2018 FORNITURA MATERIALE D'USO PER L'ASILO NIDO RIF.DET.N.155 DEL 21/12/2017 PROT.GEN.N.16026/279 DEL 21/12/2017;05-12-2018;1776;1;510;1;Spese correnti;3;Acquisto di beni e servizi;1;Acquisto di beni;2;Altri beni di consumo;999;Altri beni e materiali di consumo n.a.c.;05-12-2018;
1472;1;2210;"656,02";"656,02";Xerox Spa;ZF21C92253;SALDO Fatt.n. 180013658 /G  del 06/11/2018 canone noleggio fotocopiatori 01/08-31/10/2018;05-12-2018;2110;3;436;1;Spese correnti;3;Acquisto di beni e servizi;2;Acquisto di servizi;7;Utilizzo di beni di terzi;8;Noleggi di impianti e macchinari;05-12-2018;
1473;1;2211;"1.563,32";"1.563,32";TRINACRIA AMBIENTE E TECNOLOGIE S.R.L.;ZCB23E55EC;SALDO Fatt.n. FATTPA 44_18  del 07/11/2018 SERV. MANUTENZ. E GESTIONE IMP. DEPURAZIONE LOC.ARABITE SETT./OTT.2018;05-12-2018;1577;1;183;1;Spese correnti;3;Acquisto di beni e servizi;2;Acquisto di servizi;9;Manutenzione ordinaria e riparazioni;11;Manutenzione ordinaria e riparazioni di altri beni materiali;05-12-2018;
1474;1;2212;"344,74";"344,74";ORIFICI CARMELO-MARTINO CARMELA; ;CANONE LOCAZIONE IMMOBILE P.M. DIC.2018;05-12-2018;2230;0;154;1;Spese correnti;3;Acquisto di beni e servizi;2;Acquisto di servizi;7;Utilizzo di beni di terzi;1;Locazione di beni immobili;05-12-2018;
1475;1;2213;"197,15";"197,15";TELECOM ITALIA S.P.A.-TIM SPA; ;SALDO Fatt.n. 8V00528556  del 09/11/2018 FATTURA 6 BIM.2018;05-12-2018;6040;9;392;1;Spese correnti;3;Acquisto di beni e servizi;2;Acquisto di servizi;5;Utenze e canoni;1;Telefonia fissa;06-12-2018;
1476;1;2214;"1.220,00";"1.220,00";HALLEY CONSULTING;ZE723F5973;SALDO Fatt.n. 20181483  del 11/10/2018 Canone servizio integrazione alla piattaforma uniopi siope + dal 01/10/18 al 30/09/2019;06-12-2018;2100;1;180;1;Spese correnti;3;Acquisto di beni e servizi;2;Acquisto di servizi;19;Servizi informatici e di telecomunicazioni;5;Servizi per i sistemi e relativa manutenzione;06-12-2018;
1477;1;2236;"350,00";"1.400,00";CAFFARELLI FIORENTINO; ;spazzamento strade disciplina assistenza economica-periodo 10/10-08/11/2018;06-12-2018;1900;0;361;1;Spese correnti;4;Trasferimenti correnti;2;Trasferimenti correnti a Famiglie;1;Interventi previdenziali;999;Altri sussidi e assegni;07-12-2018;
1477;2;2215;"350,00";"1.400,00";CALABRO' MASSIMO; ;spazzamento strade disciplina assistenza economica-periodo 10/10-08/11/2018;06-12-2018;1900;0;361;1;Spese correnti;4;Trasferimenti correnti;2;Trasferimenti correnti a Famiglie;1;Interventi previdenziali;999;Altri sussidi e assegni;06-12-2018;
1477;3;2237;"350,00";"1.400,00";MOSCHELLI DAVIDE; ;spazzamento strade disciplina assistenza economica-periodo 10/10-08/11/2018;06-12-2018;1900;0;361;1;Spese correnti;4;Trasferimenti correnti;2;Trasferimenti correnti a Famiglie;1;Interventi previdenziali;999;Altri sussidi e assegni;07-12-2018;
1477;4;2216;"350,00";"1.400,00";SCAFFIDI BENEDETTO; ;spazzamento strade disciplina assistenza economica-periodo 10/10-08/11/2018;06-12-2018;1900;0;361;1;Spese correnti;4;Trasferimenti correnti;2;Trasferimenti correnti a Famiglie;1;Interventi previdenziali;999;Altri sussidi e assegni;06-12-2018;
1478;1;2323;"7.024,87";"7.024,87";UNICREDIT-CASSA REG.LE MESSINA; ;canoni demaniali acque pubbliche anno 2018;06-12-2018;1685;0;365;1;Spese correnti;3;Acquisto di beni e servizi;2;Acquisto di servizi;7;Utilizzo di beni di terzi;999;Altre spese sostenute per utilizzo di beni di terzi n.a.c.;14-12-2018;
1479;1;2217;"0,03";"107,00";KUWAIT PETROLEUM ITALIA S.P.A.;6516542493;Fatt.n. PJ00478069 del 31/10/2018 carburante automezzi com.li ott.2018;06-12-2018;6080;2;23;1;Spese correnti;3;Acquisto di beni e servizi;1;Acquisto di beni;2;Altri beni di consumo;2;"Carburanti, combustibili e lubrificanti";06-12-2018;
1479;2;2217;"106,97";"107,00";KUWAIT PETROLEUM ITALIA S.P.A.;6516542493;Fatt.n. PJ00478069 del 31/10/2018 carburante automezzi com.li ott.2018;06-12-2018;6080;2;23;1;Spese correnti;3;Acquisto di beni e servizi;1;Acquisto di beni;2;Altri beni di consumo;2;"Carburanti, combustibili e lubrificanti";06-12-2018;
1480;1;2218;"1.479,00";"1.479,00";KUWAIT PETROLEUM ITALIA S.P.A.;6516542493;Fatt.n. PJ00478069 del 31/10/2018 carburante automezzi com.li ott.2018;06-12-2018;6080;3;24;1;Spese correnti;3;Acquisto di beni e servizi;1;Acquisto di beni;2;Altri beni di consumo;2;"Carburanti, combustibili e lubrificanti";06-12-2018;
1481;1;2219;"377,00";"377,00";KUWAIT PETROLEUM ITALIA S.P.A.;6516542493;Fatt.n. PJ00478069 del 31/10/2018 carburante automezzi com.li ott.2018;06-12-2018;6080;4;25;1;Spese correnti;3;Acquisto di beni e servizi;1;Acquisto di beni;2;Altri beni di consumo;2;"Carburanti, combustibili e lubrificanti";06-12-2018;
1482;1;2220;"260,00";"260,00";KUWAIT PETROLEUM ITALIA S.P.A.;6516542493;Fatt.n. PJ00478069 del 31/10/2018 carburante automezzi com.li ott.2018;06-12-2018;6080;5;26;1;Spese correnti;3;Acquisto di beni e servizi;1;Acquisto di beni;2;Altri beni di consumo;2;"Carburanti, combustibili e lubrificanti";06-12-2018;
1483;1;2221;"249,01";"249,01";KUWAIT PETROLEUM ITALIA S.P.A.;6516542493;Fatt.n. PJ00478069 del 31/10/2018 carburante automezzi com.li ott.2018;06-12-2018;6080;7;27;1;Spese correnti;3;Acquisto di beni e servizi;1;Acquisto di beni;2;Altri beni di consumo;2;"Carburanti, combustibili e lubrificanti";06-12-2018;
1484;1;2222;"149,85";"149,85";AUTOLINEE MAGISTRO SRL;Z2D24B2334;SALDO Fatt.n. FATTPA 146_18  del 15/11/2018 TRASPORTO STUDENTI SETT./OTT.2018;06-12-2018;2000;9;256;1;Spese correnti;3;Acquisto di beni e servizi;2;Acquisto di servizi;15;Contratti di servizio pubblico;2;Contratti di servizio di trasporto scolastico;06-12-2018;
1485;1;2223;"1.014,59";"1.014,59";T.A.I. SRL;ZF724B20C8;SALDO Fatt.n. FATTPA 17_18  del 14/11/2018;06-12-2018;2000;9;257;1;Spese correnti;3;Acquisto di beni e servizi;2;Acquisto di servizi;15;Contratti di servizio pubblico;2;Contratti di servizio di trasporto scolastico;06-12-2018;
1486;1;2224;"321,62";"678,52";Energetic S.p.A.;7491316D84;Fatt.n. EEX29211/2018 del 07/11/2018 Servizio di fornitura Energia Elettrica ottobre 2018;06-12-2018;6030;5;459;1;Spese correnti;3;Acquisto di beni e servizi;2;Acquisto di servizi;5;Utenze e canoni;4;Energia elettrica;06-12-2018;
1486;2;2224;"356,90";"678,52";Energetic S.p.A.;7491316D84;Fatt.n. EEX29217/2018 del 07/11/2018 Servizio di fornitura Energia Elettrica ottobre 2018;06-12-2018;6030;5;459;1;Spese correnti;3;Acquisto di beni e servizi;2;Acquisto di servizi;5;Utenze e canoni;4;Energia elettrica;06-12-2018;
1487;1;2225;"34,04";"34,04";Energetic S.p.A.;7491316D84;Fatt.n. EEX29212/2018 del 07/11/2018 Servizio di fornitura Energia Elettrica ottobre 2018;06-12-2018;6030;6;460;1;Spese correnti;3;Acquisto di beni e servizi;2;Acquisto di servizi;5;Utenze e canoni;4;Energia elettrica;06-12-2018;
1488;1;2226;"37,33";"75,39";Energetic S.p.A.;7491316D84;Fatt.n. EEX29204/2018 del 07/11/2018 Servizio di fornitura Energia Elettrica ottobre 2018;06-12-2018;6030;8;462;1;Spese correnti;3;Acquisto di beni e servizi;2;Acquisto di servizi;5;Utenze e canoni;4;Energia elettrica;06-12-2018;
1488;2;2226;"38,06";"75,39";Energetic S.p.A.;7491316D84;Fatt.n. EEX29226/2018 del 07/11/2018 Servizio di fornitura Energia Elettrica ottobre 2018;06-12-2018;6030;8;462;1;Spese correnti;3;Acquisto di beni e servizi;2;Acquisto di servizi;5;Utenze e canoni;4;Energia elettrica;06-12-2018;
1489;1;2227;"476,71";"476,71";Energetic S.p.A.;7491316D84;Fatt.n. EEX29215/2018 del 07/11/2018 Servizio di fornitura Energia Elettrica ottobre 2018;06-12-2018;6030;9;463;1;Spese correnti;3;Acquisto di beni e servizi;2;Acquisto di servizi;5;Utenze e canoni;4;Energia elettrica;06-12-2018;
1490;1;2228;"260,10";"260,10";Energetic S.p.A.;7491316D84;Fatt.n. EEX29219/2018 del 07/11/2018 Servizio di fornitura Energia Elettrica ottobre 2018;06-12-2018;6030;10;464;1;Spese correnti;3;Acquisto di beni e servizi;2;Acquisto di servizi;5;Utenze e canoni;4;Energia elettrica;06-12-2018;
1491;1;2229;"116,64";"335,84";Energetic S.p.A.;7491316D84;Fatt.n. EEX29214/2018 del 07/11/2018 Servizio di fornitura Energia Elettrica ottobre 2018;06-12-2018;6030;11;465;1;Spese correnti;3;Acquisto di beni e servizi;2;Acquisto di servizi;5;Utenze e canoni;4;Energia elettrica;06-12-2018;
1491;2;2229;"219,20";"335,84";Energetic S.p.A.;7491316D84;Fatt.n. EEX29209/2018 del 07/11/2018 Servizio di fornitura Energia Elettrica ottobre 2018;06-12-2018;6030;11;465;1;Spese correnti;3;Acquisto di beni e servizi;2;Acquisto di servizi;5;Utenze e canoni;4;Energia elettrica;06-12-2018;
1492;1;2230;"9,91";"13.135,79";Energetic S.p.A.;7491316D84;Fatt.n. EEX29218/2018 del 07/11/2018 Servizio di fornitura Energia Elettrica ottobre 2018;06-12-2018;6030;12;466;1;Spese correnti;3;Acquisto di beni e servizi;2;Acquisto di servizi;5;Utenze e canoni;4;Energia elettrica;06-12-2018;
1492;2;2230;"12,13";"13.135,79";Energetic S.p.A.;7491316D84;Fatt.n. EEX29378/2018 del 07/11/2018 Servizio di fornitura Energia Elettrica ottobre 2018;06-12-2018;6030;12;466;1;Spese correnti;3;Acquisto di beni e servizi;2;Acquisto di servizi;5;Utenze e canoni;4;Energia elettrica;06-12-2018;
1492;3;2230;"21,15";"13.135,79";Energetic S.p.A.;7491316D84;Fatt.n. EEX29220/2018 del 07/11/2018 Servizio di fornitura Energia Elettrica ottobre 2018;06-12-2018;6030;12;466;1;Spese correnti;3;Acquisto di beni e servizi;2;Acquisto di servizi;5;Utenze e canoni;4;Energia elettrica;06-12-2018;
1492;4;2230;"28,27";"13.135,79";Energetic S.p.A.;7491316D84;Fatt.n. EEX29195/2018 del 07/11/2018 Servizio di fornitura Energia Elettrica ottobre 2018;06-12-2018;6030;12;466;1;Spese correnti;3;Acquisto di beni e servizi;2;Acquisto di servizi;5;Utenze e canoni;4;Energia elettrica;06-12-2018;
1492;5;2230;"39,17";"13.135,79";Energetic S.p.A.;7491316D84;Fatt.n. EEX29304/2018 del 07/11/2018 Servizio di fornitura Energia Elettrica ottobre 2018;06-12-2018;6030;12;466;1;Spese correnti;3;Acquisto di beni e servizi;2;Acquisto di servizi;5;Utenze e canoni;4;Energia elettrica;06-12-2018;
1492;6;2230;"44,32";"13.135,79";Energetic S.p.A.;7491316D84;Fatt.n. EEX29294/2018 del 07/11/2018 Servizio di fornitura Energia Elettrica ottobre 2018;06-12-2018;6030;12;466;1;Spese correnti;3;Acquisto di beni e servizi;2;Acquisto di servizi;5;Utenze e canoni;4;Energia elettrica;06-12-2018;
1492;7;2230;"58,87";"13.135,79";Energetic S.p.A.;7491316D84;Fatt.n. EEX29457/2018 del 07/11/2018 Servizio di fornitura Energia Elettrica ottobre 2018;06-12-2018;6030;12;466;1;Spese correnti;3;Acquisto di beni e servizi;2;Acquisto di servizi;5;Utenze e canoni;4;Energia elettrica;06-12-2018;
1492;8;2230;"69,70";"13.135,79";Energetic S.p.A.;7491316D84;Fatt.n. EEX29224/2018 del 07/11/2018 Servizio di fornitura Energia Elettrica ottobre 2018;06-12-2018;6030;12;466;1;Spese correnti;3;Acquisto di beni e servizi;2;Acquisto di servizi;5;Utenze e canoni;4;Energia elettrica;06-12-2018;
1492;9;2230;"70,91";"13.135,79";Energetic S.p.A.;7491316D84;Fatt.n. EEX29460/2018 del 07/11/2018 Servizio di fornitura Energia Elettrica ottobre 2018;06-12-2018;6030;12;466;1;Spese correnti;3;Acquisto di beni e servizi;2;Acquisto di servizi;5;Utenze e canoni;4;Energia elettrica;06-12-2018;
1492;10;2230;"81,92";"13.135,79";Energetic S.p.A.;7491316D84;Fatt.n. EEX29239/2018 del 07/11/2018 Servizio di fornitura Energia Elettrica ottobre 2018;06-12-2018;6030;12;466;1;Spese correnti;3;Acquisto di beni e servizi;2;Acquisto di servizi;5;Utenze e canoni;4;Energia elettrica;06-12-2018;
1492;11;2230;"82,07";"13.135,79";Energetic S.p.A.;7491316D84;Fatt.n. EEX29454/2018 del 07/11/2018 Servizio di fornitura Energia Elettrica ottobre 2018;06-12-2018;6030;12;466;1;Spese correnti;3;Acquisto di beni e servizi;2;Acquisto di servizi;5;Utenze e canoni;4;Energia elettrica;06-12-2018;
1492;12;2230;"94,83";"13.135,79";Energetic S.p.A.;7491316D84;Fatt.n. EEX29237/2018 del 07/11/2018 Servizio di fornitura Energia Elettrica ottobre 2018;06-12-2018;6030;12;466;1;Spese correnti;3;Acquisto di beni e servizi;2;Acquisto di servizi;5;Utenze e canoni;4;Energia elettrica;06-12-2018;
1492;13;2230;"105,91";"13.135,79";Energetic S.p.A.;7491316D84;Fatt.n. EEX29453/2018 del 07/11/2018 Servizio di fornitura Energia Elettrica ottobre 2018;06-12-2018;6030;12;466;1;Spese correnti;3;Acquisto di beni e servizi;2;Acquisto di servizi;5;Utenze e canoni;4;Energia elettrica;06-12-2018;
1492;14;2230;"111,28";"13.135,79";Energetic S.p.A.;7491316D84;Fatt.n. EEX29289/2018 del 07/11/2018 Servizio di fornitura Energia Elettrica ottobre 2018;06-12-2018;6030;12;466;1;Spese correnti;3;Acquisto di beni e servizi;2;Acquisto di servizi;5;Utenze e canoni;4;Energia elettrica;06-12-2018;
1492;15;2230;"124,23";"13.135,79";Energetic S.p.A.;7491316D84;Fatt.n. EEX29291/2018 del 07/11/2018 Servizio di fornitura Energia Elettrica ottobre 2018;06-12-2018;6030;12;466;1;Spese correnti;3;Acquisto di beni e servizi;2;Acquisto di servizi;5;Utenze e canoni;4;Energia elettrica;06-12-2018;
1492;16;2230;"125,95";"13.135,79";Energetic S.p.A.;7491316D84;Fatt.n. EEX29293/2018 del 07/11/2018 Servizio di fornitura Energia Elettrica ottobre 2018;06-12-2018;6030;12;466;1;Spese correnti;3;Acquisto di beni e servizi;2;Acquisto di servizi;5;Utenze e canoni;4;Energia elettrica;06-12-2018;
1492;17;2230;"132,81";"13.135,79";Energetic S.p.A.;7491316D84;Fatt.n. EEX29193/2018 del 07/11/2018 Servizio di fornitura Energia Elettrica ottobre 2018;06-12-2018;6030;12;466;1;Spese correnti;3;Acquisto di beni e servizi;2;Acquisto di servizi;5;Utenze e canoni;4;Energia elettrica;06-12-2018;
1492;18;2230;"173,64";"13.135,79";Energetic S.p.A.;7491316D84;Fatt.n. EEX29236/2018 del 07/11/2018 Servizio di fornitura Energia Elettrica ottobre 2018;06-12-2018;6030;12;466;1;Spese correnti;3;Acquisto di beni e servizi;2;Acquisto di servizi;5;Utenze e canoni;4;Energia elettrica;06-12-2018;
1492;19;2230;"187,90";"13.135,79";Energetic S.p.A.;7491316D84;Fatt.n. EEX29238/2018 del 07/11/2018 Servizio di fornitura Energia Elettrica ottobre 2018;06-12-2018;6030;12;466;1;Spese correnti;3;Acquisto di beni e servizi;2;Acquisto di servizi;5;Utenze e canoni;4;Energia elettrica;06-12-2018;
1492;20;2230;"250,58";"13.135,79";Energetic S.p.A.;7491316D84;Fatt.n. EEX29190/2018 del 07/11/2018 Servizio di fornitura Energia Elettrica ottobre 2018;06-12-2018;6030;12;466;1;Spese correnti;3;Acquisto di beni e servizi;2;Acquisto di servizi;5;Utenze e canoni;4;Energia elettrica;06-12-2018;
1492;21;2230;"263,42";"13.135,79";Energetic S.p.A.;7491316D84;Fatt.n. EEX29205/2018 del 07/11/2018 Servizio di fornitura Energia Elettrica ottobre 2018;06-12-2018;6030;12;466;1;Spese correnti;3;Acquisto di beni e servizi;2;Acquisto di servizi;5;Utenze e canoni;4;Energia elettrica;06-12-2018;
1492;22;2230;"293,06";"13.135,79";Energetic S.p.A.;7491316D84;Fatt.n. EEX29458/2018 del 07/11/2018 Servizio di fornitura Energia Elettrica ottobre 2018;06-12-2018;6030;12;466;1;Spese correnti;3;Acquisto di beni e servizi;2;Acquisto di servizi;5;Utenze e canoni;4;Energia elettrica;06-12-2018;
1492;23;2230;"347,21";"13.135,79";Energetic S.p.A.;7491316D84;Fatt.n. EEX29231/2018 del 07/11/2018 Servizio di fornitura Energia Elettrica ottobre 2018;06-12-2018;6030;12;466;1;Spese correnti;3;Acquisto di beni e servizi;2;Acquisto di servizi;5;Utenze e canoni;4;Energia elettrica;06-12-2018;
1492;24;2230;"364,73";"13.135,79";Energetic S.p.A.;7491316D84;Fatt.n. EEX29240/2018 del 07/11/2018 Servizio di fornitura Energia Elettrica ottobre 2018;06-12-2018;6030;12;466;1;Spese correnti;3;Acquisto di beni e servizi;2;Acquisto di servizi;5;Utenze e canoni;4;Energia elettrica;06-12-2018;
1492;25;2230;"393,69";"13.135,79";Energetic S.p.A.;7491316D84;Fatt.n. EEX29459/2018 del 07/11/2018 Servizio di fornitura Energia Elettrica ottobre 2018;06-12-2018;6030;12;466;1;Spese correnti;3;Acquisto di beni e servizi;2;Acquisto di servizi;5;Utenze e canoni;4;Energia elettrica;06-12-2018;
1492;26;2230;"469,27";"13.135,79";Energetic S.p.A.;7491316D84;Fatt.n. EEX29455/2018 del 07/11/2018 Servizio di fornitura Energia Elettrica ottobre 2018;06-12-2018;6030;12;466;1;Spese correnti;3;Acquisto di beni e servizi;2;Acquisto di servizi;5;Utenze e canoni;4;Energia elettrica;06-12-2018;
1492;27;2230;"616,67";"13.135,79";Energetic S.p.A.;7491316D84;Fatt.n. EEX29303/2018 del 07/11/2018 Servizio di fornitura Energia Elettrica ottobre 2018;06-12-2018;6030;12;466;1;Spese correnti;3;Acquisto di beni e servizi;2;Acquisto di servizi;5;Utenze e canoni;4;Energia elettrica;06-12-2018;
1492;28;2230;"679,55";"13.135,79";Energetic S.p.A.;7491316D84;Fatt.n. EEX29456/2018 del 07/11/2018 Servizio di fornitura Energia Elettrica ottobre 2018;06-12-2018;6030;12;466;1;Spese correnti;3;Acquisto di beni e servizi;2;Acquisto di servizi;5;Utenze e canoni;4;Energia elettrica;06-12-2018;
1492;29;2230;"2.222,02";"13.135,79";Energetic S.p.A.;7491316D84;Fatt.n. EEX29359/2018 del 07/11/2018 Servizio di fornitura Energia Elettrica ottobre 2018;06-12-2018;6030;12;466;1;Spese correnti;3;Acquisto di beni e servizi;2;Acquisto di servizi;5;Utenze e canoni;4;Energia elettrica;06-12-2018;
1492;30;2230;"5.660,62";"13.135,79";Energetic S.p.A.;7491316D84;Fatt.n. EEX29213/2018 del 07/11/2018 Servizio di fornitura Energia Elettrica ottobre 2018;06-12-2018;6030;12;466;1;Spese correnti;3;Acquisto di beni e servizi;2;Acquisto di servizi;5;Utenze e canoni;4;Energia elettrica;06-12-2018;
1493;1;2231;"9,64";"1.923,06";Energetic S.p.A.;7491316D84;Fatt.n. EEX29223/2018 del 07/11/2018 Servizio di fornitura Energia Elettrica ottobre 2018;06-12-2018;6030;13;467;1;Spese correnti;3;Acquisto di beni e servizi;2;Acquisto di servizi;5;Utenze e canoni;4;Energia elettrica;06-12-2018;
1493;2;2231;"19,13";"1.923,06";Energetic S.p.A.;7491316D84;Fatt.n. EEX29191/2018 del 07/11/2018 Servizio di fornitura Energia Elettrica ottobre 2018;06-12-2018;6030;13;467;1;Spese correnti;3;Acquisto di beni e servizi;2;Acquisto di servizi;5;Utenze e canoni;4;Energia elettrica;06-12-2018;
1493;3;2231;"35,09";"1.923,06";Energetic S.p.A.;7491316D84;Fatt.n. EEX29222/2018 del 07/11/2018 Servizio di fornitura Energia Elettrica ottobre 2018;06-12-2018;6030;13;467;1;Spese correnti;3;Acquisto di beni e servizi;2;Acquisto di servizi;5;Utenze e canoni;4;Energia elettrica;06-12-2018;
1493;4;2231;"47,68";"1.923,06";Energetic S.p.A.;7491316D84;Fatt.n. EEX29188/2018 del 07/11/2018 Servizio di fornitura Energia Elettrica;06-12-2018;6030;13;467;1;Spese correnti;3;Acquisto di beni e servizi;2;Acquisto di servizi;5;Utenze e canoni;4;Energia elettrica;06-12-2018;
1493;5;2231;"862,71";"1.923,06";Energetic S.p.A.;7491316D84;Fatt.n. EEX29241/2018 del 07/11/2018 Servizio di fornitura Energia Elettrica ottobre 2018;06-12-2018;6030;13;467;1;Spese correnti;3;Acquisto di beni e servizi;2;Acquisto di servizi;5;Utenze e canoni;4;Energia elettrica;06-12-2018;
1493;6;2231;"948,81";"1.923,06";Energetic S.p.A.;7491316D84;Fatt.n. EEX29221/2018 del 07/11/2018 Servizio di fornitura Energia Elettrica ottobre 2018;06-12-2018;6030;13;467;1;Spese correnti;3;Acquisto di beni e servizi;2;Acquisto di servizi;5;Utenze e canoni;4;Energia elettrica;06-12-2018;
1494;1;2232;"119,57";"119,57";Energetic S.p.A.;7491316D84;Fatt.n. EEX29245/2018 del 07/11/2018 Servizio di fornitura Energia Elettrica ottobre 2018;06-12-2018;6030;14;468;1;Spese correnti;3;Acquisto di beni e servizi;2;Acquisto di servizi;5;Utenze e canoni;4;Energia elettrica;06-12-2018;
1495;1;2233;"64,92";"420,75";Energetic S.p.A.;7491316D84;Fatt.n. EEX29210/2018 del 07/11/2018 Servizio di fornitura Energia Elettrica ottobre 2018;06-12-2018;6030;16;469;1;Spese correnti;3;Acquisto di beni e servizi;2;Acquisto di servizi;5;Utenze e canoni;4;Energia elettrica;06-12-2018;
1495;2;2233;"65,37";"420,75";Energetic S.p.A.;7491316D84;Fatt.n. EEX29207/2018 del 07/11/2018 Servizio di fornitura Energia Elettrica ottobre 2018;06-12-2018;6030;16;469;1;Spese correnti;3;Acquisto di beni e servizi;2;Acquisto di servizi;5;Utenze e canoni;4;Energia elettrica;06-12-2018;
1495;3;2233;"290,46";"420,75";Energetic S.p.A.;7491316D84;Fatt.n. EEX29243/2018 del 07/11/2018 Servizio di fornitura Energia Elettrica ottobre 2018;06-12-2018;6030;16;469;1;Spese correnti;3;Acquisto di beni e servizi;2;Acquisto di servizi;5;Utenze e canoni;4;Energia elettrica;06-12-2018;
1496;1;2234;"19,14";"19,14";Energetic S.p.A.;7491316D84;Fatt.n. EEX29282/2018 del 07/11/2018 Servizio di fornitura Energia Elettrica ottobre 2018;06-12-2018;6030;18;471;1;Spese correnti;3;Acquisto di beni e servizi;2;Acquisto di servizi;5;Utenze e canoni;4;Energia elettrica;06-12-2018;
1497;1;2235;"55,73";"55,73";Energetic S.p.A.;7491316D84;Fatt.n. EEX29300/2018 del 07/11/2018 Servizio di fornitura Energia Elettrica ottobre 2018;06-12-2018;6030;19;472;1;Spese correnti;3;Acquisto di beni e servizi;2;Acquisto di servizi;5;Utenze e canoni;4;Energia elettrica;06-12-2018;
1500;1;2240;"1.241,60";"1.241,60";COMUNE DI LIBRIZZI; ;GESTIONE ASSOCIATA IMP. DEPURAZIONE MURMARI E RELATIVO COLLETTORE;07-12-2018;1577;2;391;1;Spese correnti;3;Acquisto di beni e servizi;2;Acquisto di servizi;9;Manutenzione ordinaria e riparazioni;11;Manutenzione ordinaria e riparazioni di altri beni materiali;07-12-2018;
1501;1;2241;"12,39";"69,96";AUTOSTRADE PER L'ITALIA S.p.A.; ;ACCONTO Fatt.n. 900023892D  del 30/11/2018;07-12-2018;1017;0;28;1;Spese correnti;3;Acquisto di beni e servizi;2;Acquisto di servizi;99;Altri servizi;999;Altri servizi diversi n.a.c.;07-12-2018;
1501;2;2197;"56,31";"69,96";AUTOSTRADE PER L'ITALIA S.p.A.; ;SALDO Fatt.n. 900023892D  del 30/11/2018;07-12-2018;1017;0;28;1;Spese correnti;3;Acquisto di beni e servizi;2;Acquisto di servizi;99;Altri servizi;999;Altri servizi diversi n.a.c.;07-12-2018;
1501;3;2242;"0,23";"69,96";TELEPASS SPA; ;ACCONTO Fatt.n. 900023868T  del 30/11/2018;07-12-2018;1017;0;28;1;Spese correnti;3;Acquisto di beni e servizi;2;Acquisto di servizi;99;Altri servizi;999;Altri servizi diversi n.a.c.;07-12-2018;
1501;4;2242;"1,03";"69,96";TELEPASS SPA; ;SALDO Fatt.n. 900023868T  del 30/11/2018;07-12-2018;1017;0;28;1;Spese correnti;3;Acquisto di beni e servizi;2;Acquisto di servizi;99;Altri servizi;999;Altri servizi diversi n.a.c.;07-12-2018;
1502;1;2243;"474,86";"474,86";POSTEL S.P.A.;Z5F25110B8;SALDO Fatt.n. 2018115831  del 20/11/2018 POSTALIZZAZIONE BOLLETTE TARI;07-12-2018;1043;4;329;1;Spese correnti;3;Acquisto di beni e servizi;2;Acquisto di servizi;16;Servizi amministrativi;2;Spese postali;07-12-2018;
1503;1;2244;"19.752,85";"19.752,85";ECOLANDIA SRL;75280149AB;"ACCONTO Fatt.n. 199/PA  del 31/10/2018 SERVIZIO DI SPAZZAMENTO, RACCOLTA E TRASPORTO ALLO SMALTIMENTO DEI RIFIUTI SOLIDI URBANI DIFFERENZIATI E INDIFFERENZIATI, PER IL COMUNE DI SAN PIERO PATTI (ME) ED ESTENSIONE SERVIZIO PORTA A PORTA NEL";07-12-2018;1744;0;385;1;Spese correnti;3;Acquisto di beni e servizi;2;Acquisto di servizi;15;Contratti di servizio pubblico;5;Contratti di servizio per il conferimento in discarica dei rifiuti;07-12-2018;
1504;1;2245;"3.105,39";"3.105,39";ECOLANDIA SRL;75280149AB;"SALDO Fatt.n. 199/PA  del 31/10/2018 SERVIZIO DI SPAZZAMENTO, RACCOLTA E TRASPORTO ALLO SMALTIMENTO DEI RIFIUTI SOLIDI URBANI DIFFERENZIATI E INDIFFERENZIATI, PER IL COMUNE DI SAN PIERO PATTI (ME) ED ESTENSIONE SERVIZIO PORTA A PORTA NEL";07-12-2018;1744;0;386;1;Spese correnti;3;Acquisto di beni e servizi;2;Acquisto di servizi;15;Contratti di servizio pubblico;5;Contratti di servizio per il conferimento in discarica dei rifiuti;07-12-2018;
1505;1;2246;"4.997,82";"4.997,82";SICULA TRASPORTI S.R.L.;6150991658;SALDO Fatt.n. 2041/03  del 31/10/2018 conferimento rifiuti in discarica ottobre 2018;07-12-2018;1743;0;384;1;Spese correnti;3;Acquisto di beni e servizi;2;Acquisto di servizi;15;Contratti di servizio pubblico;5;Contratti di servizio per il conferimento in discarica dei rifiuti;07-12-2018;
1507;1;2248;"100,00";"100,00";YAGHI AHMED; ;CONTRIBUTO ECONOMICO;07-12-2018;1900;0;454;1;Spese correnti;4;Trasferimenti correnti;2;Trasferimenti correnti a Famiglie;1;Interventi previdenziali;999;Altri sussidi e assegni;07-12-2018;
1508;1;2249;"150,00";"150,00";YAGHI AHMED; ;CONTRIBUTO ECONOMICO;07-12-2018;1900;0;455;1;Spese correnti;4;Trasferimenti correnti;2;Trasferimenti correnti a Famiglie;1;Interventi previdenziali;999;Altri sussidi e assegni;07-12-2018;
1509;1;2250;"1.500,00";"1.500,00";GALLO CIRINO; ;SALDO Fatt.n. FATTPA 7_18  del 23/11/2018 ONORARIO;07-12-2018;1058;0;349;1;Spese correnti;3;Acquisto di beni e servizi;2;Acquisto di servizi;99;Altri servizi;2;Altre spese legali;07-12-2018;
1510;1;2251;"926,61";"926,61";SCAFIDI GIUSEPPE;Z1D2165AF9;Fatt.n. 000026-2018-FE del 13/11/2018 RIFERIMENTO PREVENTIVO 87/2018 DEL 27/09/2018 SU P.I.K. TG CN190JJ;10-12-2018;6070;5;544;1;Spese correnti;3;Acquisto di beni e servizi;2;Acquisto di servizi;9;Manutenzione ordinaria e riparazioni;1;"Manutenzione ordinaria e riparazioni di mezzi di trasporto ad uso civile, di sicurezza e ordine pubblico";10-12-2018;
1511;1;2252;"212,80";"212,80";SCAFIDI GIUSEPPE;Z1D2165AF9;Fatt.n. 000029-2018-FE del 13/11/2018 RIFERIMENTO PREVENTIVO 76/2018 DEL 04/09/18 SU FIAT PANDA TG CZ832XJ;10-12-2018;6070;7;545;1;Spese correnti;3;Acquisto di beni e servizi;2;Acquisto di servizi;9;Manutenzione ordinaria e riparazioni;1;"Manutenzione ordinaria e riparazioni di mezzi di trasporto ad uso civile, di sicurezza e ordine pubblico";10-12-2018;
1512;1;2253;"432,75";"1.139,33";SCAFIDI GIUSEPPE;Z1D2165AF9;Fatt.n. 000028-2018-FE del 13/11/2018 RIFERIMENTO PREVENTIVO 84/2018 DEL 27/09/18 SU SCUOLABUS IVECO DAILY TG CW015TH;10-12-2018;6070;9;546;1;Spese correnti;3;Acquisto di beni e servizi;2;Acquisto di servizi;9;Manutenzione ordinaria e riparazioni;1;"Manutenzione ordinaria e riparazioni di mezzi di trasporto ad uso civile, di sicurezza e ordine pubblico";10-12-2018;
1512;2;2253;"706,58";"1.139,33";SCAFIDI GIUSEPPE;Z1D2165AF9;Fatt.n. 000027-2018-FE del 13/11/2018 RIFERIMENTO PREVENTIVO 86/2018 DEL 27/09/2018 SU SCUOLABUS IVECO DAILY TG CT940ML;10-12-2018;6070;9;546;1;Spese correnti;3;Acquisto di beni e servizi;2;Acquisto di servizi;9;Manutenzione ordinaria e riparazioni;1;"Manutenzione ordinaria e riparazioni di mezzi di trasporto ad uso civile, di sicurezza e ordine pubblico";10-12-2018;
1513;1;2254;"348,09";"348,09";SCAFIDI GIUSEPPE;Z1D2165AF9;Fatt.n. 000028-2018-FE del 13/11/2018 RIFERIMENTO PREVENTIVO 84/2018 DEL 27/09/18 SU SCUOLABUS IVECO DAILY TG CW015TH;10-12-2018;6070;9;487;1;Spese correnti;3;Acquisto di beni e servizi;2;Acquisto di servizi;9;Manutenzione ordinaria e riparazioni;1;"Manutenzione ordinaria e riparazioni di mezzi di trasporto ad uso civile, di sicurezza e ordine pubblico";10-12-2018;
1514;1;2255;"600,00";"600,00";Nalis Federico Giuseppe;Z65204DB02;Saldo competenze incarico medico competente;10-12-2018;1011;0;517;1;Spese correnti;3;Acquisto di beni e servizi;2;Acquisto di servizi;10;Consulenze;1;"Incarichi libero professionali di studi, ricerca e consulenza";10-12-2018;
1515;1;2256;"287,09";"9.329,68";ANFUSO MICHELE; ;D.LVO 65/13.04.2017 - CONTRIBUTO ALLE FAMIGLIE;11-12-2018;1777;0;368;1;Spese correnti;4;Trasferimenti correnti;2;Trasferimenti correnti a Famiglie;5;Altri trasferimenti a famiglie;999;Altri trasferimenti a famiglie n.a.c.;11-12-2018;
1515;2;2294;"469,37";"9.329,68";BALLARINO STEFANIA; ;D.LVO 65/13.04.2017 - CONTRIBUTO ALLE FAMIGLIE;11-12-2018;1777;0;368;1;Spese correnti;4;Trasferimenti correnti;2;Trasferimenti correnti a Famiglie;5;Altri trasferimenti a famiglie;999;Altri trasferimenti a famiglie n.a.c.;13-12-2018;
1515;3;2257;"175,77";"9.329,68";CAFFARELLI MARIKA; ;D.LVO 65/13.04.2017 - CONTRIBUTO ALLE FAMIGLIE;11-12-2018;1777;0;368;1;Spese correnti;4;Trasferimenti correnti;2;Trasferimenti correnti a Famiglie;5;Altri trasferimenti a famiglie;999;Altri trasferimenti a famiglie n.a.c.;11-12-2018;
1515;4;2258;"175,77";"9.329,68";CALABRO' GIULIA; ;D.LVO 65/13.04.2017 - CONTRIBUTO ALLE FAMIGLIE;11-12-2018;1777;0;368;1;Spese correnti;4;Trasferimenti correnti;2;Trasferimenti correnti a Famiglie;5;Altri trasferimenti a famiglie;999;Altri trasferimenti a famiglie n.a.c.;11-12-2018;
1515;5;2259;"300,76";"9.329,68";CANZONIERI DAVIDE; ;D.LVO 65/13.04.2017 - CONTRIBUTO ALLE FAMIGLIE;11-12-2018;1777;0;368;1;Spese correnti;4;Trasferimenti correnti;2;Trasferimenti correnti a Famiglie;5;Altri trasferimenti a famiglie;999;Altri trasferimenti a famiglie n.a.c.;11-12-2018;
1515;6;2260;"259,64";"9.329,68";CASTELLINO GIUSEPPE; ;D.LVO 65/13.04.2017 - CONTRIBUTO ALLE FAMIGLIE;11-12-2018;1777;0;368;1;Spese correnti;4;Trasferimenti correnti;2;Trasferimenti correnti a Famiglie;5;Altri trasferimenti a famiglie;999;Altri trasferimenti a famiglie n.a.c.;11-12-2018;
1515;7;2261;"449,64";"9.329,68";CATALANO MANUELA; ;D.LVO 65/13.04.2017 - CONTRIBUTO ALLE FAMIGLIE;11-12-2018;1777;0;368;1;Spese correnti;4;Trasferimenti correnti;2;Trasferimenti correnti a Famiglie;5;Altri trasferimenti a famiglie;999;Altri trasferimenti a famiglie n.a.c.;11-12-2018;
1515;8;2262;"187,49";"9.329,68";CIUBOTARIU ELENA; ;D.LVO 65/13.04.2017 - CONTRIBUTO ALLE FAMIGLIE;11-12-2018;1777;0;368;1;Spese correnti;4;Trasferimenti correnti;2;Trasferimenti correnti a Famiglie;5;Altri trasferimenti a famiglie;999;Altri trasferimenti a famiglie n.a.c.;11-12-2018;
1515;9;2263;"478,49";"9.329,68";DI LERNIA LORENA; ;D.LVO 65/13.04.2017 - CONTRIBUTO ALLE FAMIGLIE;11-12-2018;1777;0;368;1;Spese correnti;4;Trasferimenti correnti;2;Trasferimenti correnti a Famiglie;5;Altri trasferimenti a famiglie;999;Altri trasferimenti a famiglie n.a.c.;11-12-2018;
1515;10;2264;"597,62";"9.329,68";GAGLIO LAURA; ;D.LVO 65/13.04.2017 - CONTRIBUTO ALLE FAMIGLIE;11-12-2018;1777;0;368;1;Spese correnti;4;Trasferimenti correnti;2;Trasferimenti correnti a Famiglie;5;Altri trasferimenti a famiglie;999;Altri trasferimenti a famiglie n.a.c.;11-12-2018;
1515;11;2265;"182,13";"9.329,68";LO PRESTI ELISA; ;D.LVO 65/13.04.2017 - CONTRIBUTO ALLE FAMIGLIE;11-12-2018;1777;0;368;1;Spese correnti;4;Trasferimenti correnti;2;Trasferimenti correnti a Famiglie;5;Altri trasferimenti a famiglie;999;Altri trasferimenti a famiglie n.a.c.;11-12-2018;
1515;12;2266;"624,18";"9.329,68";MAGISTRO MARIA CONCETTA; ;D.LVO 65/13.04.2017 - CONTRIBUTO ALLE FAMIGLIE;11-12-2018;1777;0;368;1;Spese correnti;4;Trasferimenti correnti;2;Trasferimenti correnti a Famiglie;5;Altri trasferimenti a famiglie;999;Altri trasferimenti a famiglie n.a.c.;11-12-2018;
1515;13;2267;"449,64";"9.329,68";MILLEO CATIA; ;D.LVO 65/13.04.2017 - CONTRIBUTO ALLE FAMIGLIE;11-12-2018;1777;0;368;1;Spese correnti;4;Trasferimenti correnti;2;Trasferimenti correnti a Famiglie;5;Altri trasferimenti a famiglie;999;Altri trasferimenti a famiglie n.a.c.;11-12-2018;
1515;14;2268;"624,31";"9.329,68";MONDELLO ADRIANA; ;D.LVO 65/13.04.2017 - CONTRIBUTO ALLE FAMIGLIE;11-12-2018;1777;0;368;1;Spese correnti;4;Trasferimenti correnti;2;Trasferimenti correnti a Famiglie;5;Altri trasferimenti a famiglie;999;Altri trasferimenti a famiglie n.a.c.;11-12-2018;
1515;15;2269;"447,10";"9.329,68";NATOLI CARMEN; ;D.LVO 65/13.04.2017 - CONTRIBUTO ALLE FAMIGLIE;11-12-2018;1777;0;368;1;Spese correnti;4;Trasferimenti correnti;2;Trasferimenti correnti a Famiglie;5;Altri trasferimenti a famiglie;999;Altri trasferimenti a famiglie n.a.c.;11-12-2018;
1515;16;2270;"439,43";"9.329,68";NEGURITA MIHAELA; ;D.LVO 65/13.04.2017 - CONTRIBUTO ALLE FAMIGLIE;11-12-2018;1777;0;368;1;Spese correnti;4;Trasferimenti correnti;2;Trasferimenti correnti a Famiglie;5;Altri trasferimenti a famiglie;999;Altri trasferimenti a famiglie n.a.c.;11-12-2018;
1515;17;2271;"167,40";"9.329,68";NIGIDO JESSICA; ;D.LVO 65/13.04.2017 - CONTRIBUTO ALLE FAMIGLIE;11-12-2018;1777;0;368;1;Spese correnti;4;Trasferimenti correnti;2;Trasferimenti correnti a Famiglie;5;Altri trasferimenti a famiglie;999;Altri trasferimenti a famiglie n.a.c.;11-12-2018;
1515;18;2296;"461,90";"9.329,68";PANESSIDI SARA; ;D.LVO 65/13.04.2017 - CONTRIBUTO ALLE FAMIGLIE;11-12-2018;1777;0;368;1;Spese correnti;4;Trasferimenti correnti;2;Trasferimenti correnti a Famiglie;5;Altri trasferimenti a famiglie;999;Altri trasferimenti a famiglie n.a.c.;13-12-2018;
1515;19;2272;"248,59";"9.329,68";SANTONOCITO GIUSI; ;D.LVO 65/13.04.2017 - CONTRIBUTO ALLE FAMIGLIE;11-12-2018;1777;0;368;1;Spese correnti;4;Trasferimenti correnti;2;Trasferimenti correnti a Famiglie;5;Altri trasferimenti a famiglie;999;Altri trasferimenti a famiglie n.a.c.;11-12-2018;
1515;20;2273;"520,21";"9.329,68";STARVAGI GIANFRANCO; ;D.LVO 65/13.04.2017 - CONTRIBUTO ALLE FAMIGLIE;11-12-2018;1777;0;368;1;Spese correnti;4;Trasferimenti correnti;2;Trasferimenti correnti a Famiglie;5;Altri trasferimenti a famiglie;999;Altri trasferimenti a famiglie n.a.c.;11-12-2018;
1515;21;2274;"436,42";"9.329,68";STUPPIA VALERIA; ;D.LVO 65/13.04.2017 - CONTRIBUTO ALLE FAMIGLIE;11-12-2018;1777;0;368;1;Spese correnti;4;Trasferimenti correnti;2;Trasferimenti correnti a Famiglie;5;Altri trasferimenti a famiglie;999;Altri trasferimenti a famiglie n.a.c.;11-12-2018;
1515;22;2275;"641,89";"9.329,68";TRICOLI FILIPPO; ;D.LVO 65/13.04.2017 - CONTRIBUTO ALLE FAMIGLIE;11-12-2018;1777;0;368;1;Spese correnti;4;Trasferimenti correnti;2;Trasferimenti correnti a Famiglie;5;Altri trasferimenti a famiglie;999;Altri trasferimenti a famiglie n.a.c.;11-12-2018;
1515;23;2276;"633,42";"9.329,68";TRICOLI GRAZIELLA; ;D.LVO 65/13.04.2017 - CONTRIBUTO ALLE FAMIGLIE;11-12-2018;1777;0;368;1;Spese correnti;4;Trasferimenti correnti;2;Trasferimenti correnti a Famiglie;5;Altri trasferimenti a famiglie;999;Altri trasferimenti a famiglie n.a.c.;11-12-2018;
1515;24;2277;"71,42";"9.329,68";TRUGLIO SELENE; ;D.LVO 65/13.04.2017 - CONTRIBUTO ALLE FAMIGLIE;11-12-2018;1777;0;368;1;Spese correnti;4;Trasferimenti correnti;2;Trasferimenti correnti a Famiglie;5;Altri trasferimenti a famiglie;999;Altri trasferimenti a famiglie n.a.c.;11-12-2018;
1516;1;2278;"2.891,58";"2.891,58";CONSORZIO INTERCOMUNALE TINDARI-NEBRODI; ;QUOTA ADESIONE ANNO 2018;11-12-2018;1060;7;396;1;Spese correnti;4;Trasferimenti correnti;1;Trasferimenti correnti a Amministrazioni Pubbliche;2;Trasferimenti correnti a Amministrazioni Locali;3;Trasferimenti correnti a Comuni;11-12-2018;
1517;1;2279;"7.000,00";"7.000,00";CONSORZIO INTERCOMUNALE TINDARI-NEBRODI; ;QUOTA CONSORTILE ANNO 2018;11-12-2018;1060;5;399;1;Spese correnti;4;Trasferimenti correnti;1;Trasferimenti correnti a Amministrazioni Pubbliche;2;Trasferimenti correnti a Amministrazioni Locali;5;Trasferimenti correnti a Unioni di Comuni;11-12-2018;
1518;1;2280;"2.500,00";"2.500,00";PARROCCHIA S.MARIA E SAN PANCRAZIO; ;Contributo Parrocchia S.Maria e San Pancrazio per festa San Biagio;11-12-2018;1520;2;397;1;Spese correnti;3;Acquisto di beni e servizi;2;Acquisto di servizi;15;Contratti di servizio pubblico;999;Altre spese per contratti di servizio pubblico;11-12-2018;
1519;1;2281;"8.926,40";"8.926,40";SUDIMPIANTI DI ARDIRI FILIPPO;Z2824A8CD3;ACCONTO Fatt.n. FATTPA 13_18  del 23/11/2018 Vs. dare per interventi necessari per l'adeguamento alla normativa antincendio della struttura residence per anziani "Villa MariÃ ".;11-12-2018;1856;0;247;1;Spese correnti;3;Acquisto di beni e servizi;2;Acquisto di servizi;9;Manutenzione ordinaria e riparazioni;8;Manutenzione ordinaria e riparazioni di beni immobili;11-12-2018;
1520;1;2282;"10.846,40";"10.846,40";SUDIMPIANTI DI ARDIRI FILIPPO;Z2824A8CD3;SALDO Fatt.n. FATTPA 13_18  del 23/11/2018 Vs. dare per interventi necessari per l'adeguamento alla normativa antincendio della struttura residence per anziani "Villa MariÃ ".;11-12-2018;3010;5;248;2;Spese in conto capitale;2;Investimenti fissi lordi e acquisto di terreni;1;Beni materiali;9;Beni immobili;1;Fabbricati ad uso abitativo;11-12-2018;
1521;1;2283;"805,87";"1.681,43";AL CENTESIMO SOC. COOP. S.R.L.;ZAF20DE63B;SALDO Fatt.n. 15/E  del 31/10/2018 generi alimentari per asilo nido sett.2018;11-12-2018;1776;1;408;1;Spese correnti;3;Acquisto di beni e servizi;1;Acquisto di beni;2;Altri beni di consumo;999;Altri beni e materiali di consumo n.a.c.;11-12-2018;
1521;2;2283;"875,56";"1.681,43";AL CENTESIMO SOC. COOP. S.R.L.;ZAF20DE63B;SALDO Fatt.n. 17/E  del 31/10/2018 generi alimentari per asilo nido ott.2018;11-12-2018;1776;1;408;1;Spese correnti;3;Acquisto di beni e servizi;1;Acquisto di beni;2;Altri beni di consumo;999;Altri beni e materiali di consumo n.a.c.;11-12-2018;
1522;1;2284;"141,11";"307,95";AL CENTESIMO SOC. COOP. S.R.L.;ZC12122971;SALDO Fatt.n. 16/E  del 31/10/2018 carne per asilo nido sett.2018;11-12-2018;1776;1;454;1;Spese correnti;3;Acquisto di beni e servizi;1;Acquisto di beni;2;Altri beni di consumo;999;Altri beni e materiali di consumo n.a.c.;11-12-2018;
1522;2;2284;"166,84";"307,95";AL CENTESIMO SOC. COOP. S.R.L.;ZC12122971;SALDO Fatt.n. 18/E  del 31/10/2018 carneper asilo nido ott.2018;11-12-2018;1776;1;454;1;Spese correnti;3;Acquisto di beni e servizi;1;Acquisto di beni;2;Altri beni di consumo;999;Altri beni e materiali di consumo n.a.c.;11-12-2018;
1523;1;2285;"711,50";"711,50";Libreria Capitolo18 di Teodoro Cafarelli;Z0A255CA42;SALDO Fatt.n. 000021-2018-PA  del 17/11/2018 CIG Z0A255CA42-FORNITURA LIBRI;11-12-2018;1477;0;355;1;Spese correnti;10;Altre spese correnti;99;Altre spese correnti n.a.c.;99;Altre spese correnti n.a.c.;999;Altre spese correnti n.a.c.;11-12-2018;
1524;1;2286;"34,49";"34,49";HERA COMM S.r.l.; ;Fatt.n. 411809428360 del 10/11/2018 FORNITURA SERVIZIO ENERGIA ELETTRICA ottobre 2018;11-12-2018;6030;7;461;1;Spese correnti;3;Acquisto di beni e servizi;2;Acquisto di servizi;5;Utenze e canoni;4;Energia elettrica;11-12-2018;
1525;1;2287;"19,11";"19,11";HERA COMM S.r.l.; ;Fatt.n. 411809428358 del 10/11/2018 FORNITURA SERVIZIO ENERGIA ELETTRICA ottobre 2018;11-12-2018;6030;8;462;1;Spese correnti;3;Acquisto di beni e servizi;2;Acquisto di servizi;5;Utenze e canoni;4;Energia elettrica;11-12-2018;
1526;1;2288;"19,11";"78,55";HERA COMM S.r.l.; ;Fatt.n. 411809428359 del 10/11/2018 FORNITURA SERVIZIO ENERGIA ELETTRICA ottobre 2018;11-12-2018;6030;13;467;1;Spese correnti;3;Acquisto di beni e servizi;2;Acquisto di servizi;5;Utenze e canoni;4;Energia elettrica;11-12-2018;
1526;2;2288;"59,44";"78,55";HERA COMM S.r.l.; ;Fatt.n. 411809428357 del 10/11/2018 FORNITURA SERVIZIO ENERGIA ELETTRICA ottobre 2018;11-12-2018;6030;13;467;1;Spese correnti;3;Acquisto di beni e servizi;2;Acquisto di servizi;5;Utenze e canoni;4;Energia elettrica;11-12-2018;
1527;1;2289;"146,19";"146,19";HERA COMM S.r.l.; ;SALDO Fatt.n. 411809962217  del 26/11/2018 FORNITURA SERVIZIO ENERGIA ELETTRICA OTT.2018;11-12-2018;6030;13;467;1;Spese correnti;3;Acquisto di beni e servizi;2;Acquisto di servizi;5;Utenze e canoni;4;Energia elettrica;11-12-2018;
1528;1;2291;"167,90";"167,90";Ministero dell'Interno Dipartimento Servizi Demografici; ;COMUNE DI SAN PIERO PATTI-CORRISPETTIVO RILASCIO N.10 C.I.E. 01/11-15/11/2018;12-12-2018;1037;2;512;1;Spese correnti;4;Trasferimenti correnti;1;Trasferimenti correnti a Amministrazioni Pubbliche;1;Trasferimenti correnti a Amministrazioni Centrali;1;Trasferimenti correnti a Ministeri;12-12-2018;
1529;1;2292;"134,32";"134,32";Ministero dell'Interno Dipartimento Servizi Demografici; ;COMUNE DI SAN PIERO PATTI-CORRISPETTIVO RILASCIO N.8 C.I.E. 16/11-30/11/2018;12-12-2018;1037;2;513;1;Spese correnti;4;Trasferimenti correnti;1;Trasferimenti correnti a Amministrazioni Pubbliche;1;Trasferimenti correnti a Amministrazioni Centrali;1;Trasferimenti correnti a Ministeri;12-12-2018;
1530;1;2290;"69,66";"69,66";CASSA PER I SERVIZI ENERGETICI E AMBIENTALI; ;S.I.I.-COMPONENTI TARIFFARIE UI1-UI2-UI3-VERSAMENTO REC 2018 BIM.3;12-12-2018;1687;0;511;1;Spese correnti;4;Trasferimenti correnti;3;Trasferimenti correnti a Imprese;99;Trasferimenti correnti a altre imprese;999;Trasferimenti correnti a altre imprese;12-12-2018;
1531;1;2293;"134,20";"134,20";PARAVIA ELEVATORS SERVICE SRL;ZFA23B1668;SALDO Fatt.n. 20181400183  del 22/11/2018 CANONE MANUTENZIONE ASCENSORE IST. COMPRENSIVO 01/11-31/12/18;12-12-2018;3010;5;338;2;Spese in conto capitale;2;Investimenti fissi lordi e acquisto di terreni;1;Beni materiali;9;Beni immobili;1;Fabbricati ad uso abitativo;12-12-2018;
1532;1;2297;"14.869,27";"14.869,27";PIZZO PIPPO;7376806CE0;"ACCONTO Fatt.n. 47|2018  del 30/06/2018 SERV. SPAZZAMENTO,RACCOLTA,TRASPORTO RSU GIU.2018";13-12-2018;1744;0;118;1;Spese correnti;3;Acquisto di beni e servizi;2;Acquisto di servizi;15;Contratti di servizio pubblico;5;Contratti di servizio per il conferimento in discarica dei rifiuti;13-12-2018;
1533;1;2298;"6.566,37";"6.566,37";PIZZO PIPPO;7376806CE0;"ACCONTO Fatt.n. 47|2018  del 30/06/2018 SERV. SPAZZAMENTO,RACCOLTA,TRASPORTO RSU GIU.2018";13-12-2018;1744;0;226;1;Spese correnti;3;Acquisto di beni e servizi;2;Acquisto di servizi;15;Contratti di servizio pubblico;5;Contratti di servizio per il conferimento in discarica dei rifiuti;13-12-2018;
1534;1;2299;"20.360,10";"20.360,10";PIZZO PIPPO;7376806CE0;"SALDO Fatt.n. 37|2018  del 31/05/2018 SERVIZIO SPAZZAMENTO,RACCOLTA E TRASPORTO RSU MAGGIO 2018";13-12-2018;1744;0;118;1;Spese correnti;3;Acquisto di beni e servizi;2;Acquisto di servizi;15;Contratti di servizio pubblico;5;Contratti di servizio per il conferimento in discarica dei rifiuti;13-12-2018;
1535;1;2295;"30,00";"30,00";ANAC AUTORITA' NAZIONALE ANTICORRUZIONE;75280149AB;"servizio spazzamento,raccolta e trasporto rifiuti s.u. fino al 30/09/2018-CONTRIBUTO ANAC";13-12-2018;1744;0;229;1;Spese correnti;3;Acquisto di beni e servizi;2;Acquisto di servizi;15;Contratti di servizio pubblico;5;Contratti di servizio per il conferimento in discarica dei rifiuti;13-12-2018;
1536;1;2300;"479,51";"479,51";BENFATTA SALVATORE & C. S.N.C.;ZB425734C5;SALDO Fatt.n. 000008-2018-FATTURE  del 09/11/2018 DETERMINA N.220 DEL 08/11/2018-LAVORI PULITURA MURO CONTENIMENTO SOTTOSTANTE VIA N.DANTE;13-12-2018;4035;0;379;2;Spese in conto capitale;2;Investimenti fissi lordi e acquisto di terreni;1;Beni materiali;9;Beni immobili;13;Altre vie di comunicazione;13-12-2018;
1537;1;2301;"250,00";"1.000,00";GULINO SANTINA TINDARA; ;interventi in favore soggetti portatori di handicap 2018;13-12-2018;1878;1;520;1;Spese correnti;4;Trasferimenti correnti;2;Trasferimenti correnti a Famiglie;1;Interventi previdenziali;999;Altri sussidi e assegni;13-12-2018;
1537;2;2302;"250,00";"1.000,00";INTERDONATO GIANCARLO; ;interventi in favore soggetti portatori di handicap 2018;13-12-2018;1878;1;520;1;Spese correnti;4;Trasferimenti correnti;2;Trasferimenti correnti a Famiglie;1;Interventi previdenziali;999;Altri sussidi e assegni;13-12-2018;
1537;3;2303;"250,00";"1.000,00";LEONE ALBA; ;interventi in favore soggetti portatori di handicap 2018;13-12-2018;1878;1;520;1;Spese correnti;4;Trasferimenti correnti;2;Trasferimenti correnti a Famiglie;1;Interventi previdenziali;999;Altri sussidi e assegni;13-12-2018;
1537;4;2304;"250,00";"1.000,00";TRICOLI CATENA; ;interventi in favore soggetti portatori di handicap 2018;13-12-2018;1878;1;520;1;Spese correnti;4;Trasferimenti correnti;2;Trasferimenti correnti a Famiglie;1;Interventi previdenziali;999;Altri sussidi e assegni;13-12-2018;
1538;1;2305;"350,00";"350,00";STARVAGGI DANIELA; ;spazzamento strade disciplina assistenza economica 12/11-11/12/2018;13-12-2018;1900;0;381;1;Spese correnti;4;Trasferimenti correnti;2;Trasferimenti correnti a Famiglie;1;Interventi previdenziali;999;Altri sussidi e assegni;13-12-2018;
1539;1;2306;"350,00";"350,00";SCAFFIDI BENEDETTO; ;spazzamento strade disciplina assistenza economica 12/11-11/12/2018;13-12-2018;1900;0;382;1;Spese correnti;4;Trasferimenti correnti;2;Trasferimenti correnti a Famiglie;1;Interventi previdenziali;999;Altri sussidi e assegni;13-12-2018;
1540;1;2321;"141,59";"141,59";EDISON ENERGIE S.P.A.; ;SALDO Fatt.n. FI18366000009385  del 27/11/2018 FATTURAZIONE PERIODO 18/09-12/11/2018;13-12-2018;6160;0;394;1;Spese correnti;3;Acquisto di beni e servizi;2;Acquisto di servizi;5;Utenze e canoni;6;Gas;14-12-2018;
1541;1;2322;"38,58";"38,58";EDISON ENERGIE S.P.A.; ;SALDO Fatt.n. FI18366000009384  del 27/11/2018 FATTURAZIONE PERIODO 22/08-13/11/2018;13-12-2018;6160;1;395;1;Spese correnti;3;Acquisto di beni e servizi;2;Acquisto di servizi;5;Utenze e canoni;999;Utenze e canoni per altri servizi n.a.c.;14-12-2018;
1542;1;2428;"6.194,45";"6.194,45";TOMEO KATIA;Z3B24C6B83;SALDO Fatt.n. 1/E / FE  del 20/11/2018 c.t. catastazione immobili comunali;13-12-2018;2220;3;387;2;Spese in conto capitale;2;Investimenti fissi lordi e acquisto di terreni;3;Beni immateriali;5;Incarichi professionali per la realizzazione di investimenti;1;Incarichi professionali per la realizzazione di investimenti;20-12-2018;
1543;1;2440;"1.817,90";"1.817,90";INTERDONATO GIACOMO S.N.C.; ;SALDO Fatt.n. 000003-2018-FE  del 21/11/2018 BUONI LIBRO A.S.2018/2018;13-12-2018;2000;10;497;1;Spese correnti;3;Acquisto di beni e servizi;2;Acquisto di servizi;99;Altri servizi;999;Altri servizi diversi n.a.c.;21-12-2018;
1544;1;2464;"735,97";"735,97";LO PRESTI GIORGIO;ZB7257114D;SALDO Fatt.n. FATTPA 13_18  del 24/11/2018 LAVORI SISTEMAZIONE PALI SEGNALETICA STRADALE;13-12-2018;4035;0;388;2;Spese in conto capitale;2;Investimenti fissi lordi e acquisto di terreni;1;Beni materiali;9;Beni immobili;13;Altre vie di comunicazione;24-12-2018;
1545;1;2412;"1.518,37";"1.822,00";FIORE SALVATORE VITTORIO; ;INDENNITA' FUNZIONE DICEMBRE 2018;13-12-2018;1001;0;18;1;Spese correnti;3;Acquisto di beni e servizi;2;Acquisto di servizi;1;Organi e incarichi istituzionali dell'amministrazione;1;Organi istituzionali dell'amministrazione - Indennità;19-12-2018;
1545;2;2413;"151,83";"1.822,00";INTERDONATO ARMANDO; ;INDENNITA' FUNZIONE DICEMBRE 2018;13-12-2018;1001;0;18;1;Spese correnti;3;Acquisto di beni e servizi;2;Acquisto di servizi;1;Organi e incarichi istituzionali dell'amministrazione;1;Organi istituzionali dell'amministrazione - Indennità;19-12-2018;
1545;3;2414;"151,80";"1.822,00";PETTINATO  ROSA SANDRA; ;INDENNITA' FUNZIONE DICEMBRE 2018;13-12-2018;1001;0;18;1;Spese correnti;3;Acquisto di beni e servizi;2;Acquisto di servizi;1;Organi e incarichi istituzionali dell'amministrazione;1;Organi istituzionali dell'amministrazione - Indennità;19-12-2018;
1546;1;2415;"68,31";"68,31";FORZANO GIUSEPPE; ;INDENNITA' FUNZIONE PRESIDENTE C.C. 01/12-09/12/2018;13-12-2018;1001;0;56;1;Spese correnti;3;Acquisto di beni e servizi;2;Acquisto di servizi;1;Organi e incarichi istituzionali dell'amministrazione;1;Organi istituzionali dell'amministrazione - Indennità;19-12-2018;
1591;1;2496;"1.669,06";"1.669,06";Q8 QUASER SRL;ZD425D9026;SALDO Fatt.n. 0030039874  del 30/11/2018 GASOLIO RISCALDAMENTO;14-12-2018;6060;5;527;1;Spese correnti;3;Acquisto di beni e servizi;1;Acquisto di beni;2;Altri beni di consumo;2;"Carburanti, combustibili e lubrificanti";28-12-2018;
1592;1;2324;"2.500,00";"2.500,00";ARDIRI GAETANO; ;RISARCIMENTO DANNI;14-12-2018;1058;6;532;1;Spese correnti;4;Trasferimenti correnti;2;Trasferimenti correnti a Famiglie;5;Altri trasferimenti a famiglie;999;Altri trasferimenti a famiglie n.a.c.;14-12-2018;
1593;1;2325;"1.044,85";"1.044,85";GILIFORTI GIUSEPPA; ;RISARCIMENTO DANNI;14-12-2018;1058;6;533;1;Spese correnti;4;Trasferimenti correnti;2;Trasferimenti correnti a Famiglie;5;Altri trasferimenti a famiglie;999;Altri trasferimenti a famiglie n.a.c.;14-12-2018;
1595;1;2327;"480,00";"480,00";ECONOMO COMUNALE; ;RIMBORSO SPESE ECONOMATO PER REALIZZAZIONE MANIFESTAZIONE ESTATE 2018;14-12-2018;1512;1;314;1;Spese correnti;3;Acquisto di beni e servizi;2;Acquisto di servizi;2;"Organizzazione eventi, pubblicita` e servizi per trasferta";5;Organizzazione e partecipazione a manifestazioni e convegni;14-12-2018;
1596;1;2328;"800,00";"800,00";ECONOMO COMUNALE; ;RIMBORSO SPESE ECONOMATO PER REALIZZAZIONE MANIFESTAZIONE ESTATE 2018;14-12-2018;1512;1;367;1;Spese correnti;3;Acquisto di beni e servizi;2;Acquisto di servizi;2;"Organizzazione eventi, pubblicita` e servizi per trasferta";5;Organizzazione e partecipazione a manifestazioni e convegni;14-12-2018;
1597;1;2416;"201,48";"201,48";Ministero dell'Interno Dipartimento Servizi Demografici; ;COMUNE DI SAN PIERO PATTI-CORRISPETTIVO RILASCIO N.12 C.I.E. 01/15 DIC.2018;19-12-2018;1037;2;543;1;Spese correnti;4;Trasferimenti correnti;1;Trasferimenti correnti a Amministrazioni Pubbliche;1;Trasferimenti correnti a Amministrazioni Centrali;1;Trasferimenti correnti a Ministeri;19-12-2018;
1598;1;2417;"18,00";"18,00";CITTA'  METROPOLITANA DI MESSINA; ;QUOTA 20% TESSERINO RACCOLTA FUNGHI ANNO 2018;19-12-2018;1200;0;539;1;Spese correnti;4;Trasferimenti correnti;1;Trasferimenti correnti a Amministrazioni Pubbliche;2;Trasferimenti correnti a Amministrazioni Locali;2;Trasferimenti correnti a Province;19-12-2018;
1599;1;2418;"27,00";"27,00";UNICREDIT-CASSA REG.LE MESSINA; ;QUOTA 30% TESSERINO RACCOLTA FUNGHI ANNO 2018;19-12-2018;1200;1;540;1;Spese correnti;4;Trasferimenti correnti;1;Trasferimenti correnti a Amministrazioni Pubbliche;2;Trasferimenti correnti a Amministrazioni Locali;1;Trasferimenti correnti a Regioni e province autonome;19-12-2018;
1600;1;2419;"8.795,42";"8.795,42";ECONOMO COMUNALE; ;RIMBORSO SPESE ECONOMATO PER SPESE POSTALI E TELEGRAFICHE ANNO 2018;19-12-2018;1043;3;441;1;Spese correnti;3;Acquisto di beni e servizi;2;Acquisto di servizi;16;Servizi amministrativi;2;Spese postali;19-12-2018;
1601;1;2420;"250,00";"250,00";ECONOMO COMUNALE; ;RIMBORSO SPESE ECONOMATO PER SERVIZIO DI CATTURA E CUSTODIA CANI RANDAGI;19-12-2018;1766;0;342;1;Spese correnti;3;Acquisto di beni e servizi;2;Acquisto di servizi;99;Altri servizi;999;Altri servizi diversi n.a.c.;19-12-2018;
1602;1;2421;"223,80";"223,80";ECONOMO COMUNALE; ;RIMBORSO SPESE ECONOMATO PER ACQUISTO DI MATERIALE DI PRIMO PRONTO SOCCORSO E MATERIALE VARIO PER L'ASILO NIDO COMUNALE;19-12-2018;1776;1;42;1;Spese correnti;3;Acquisto di beni e servizi;1;Acquisto di beni;2;Altri beni di consumo;999;Altri beni e materiali di consumo n.a.c.;19-12-2018;
1603;1;2429;"41,32";"41,32";Filoramo Paolo; ;SALDO Fatt.n. 68/PA  del 05/12/2018 BUONI LIBRO A.S.2017/2018;20-12-2018;2000;10;515;1;Spese correnti;3;Acquisto di beni e servizi;2;Acquisto di servizi;99;Altri servizi;999;Altri servizi diversi n.a.c.;20-12-2018;
1604;1;2430;"41,32";"392,53";"Libreria Mosca sas di Mosca Antonio &amp; C."; ;SALDO Fatt.n. 1054  del 05/12/2018 BUONI LIBRO A.S. 2018/2019;20-12-2018;2000;10;514;1;Spese correnti;3;Acquisto di beni e servizi;2;Acquisto di servizi;99;Altri servizi;999;Altri servizi diversi n.a.c.;20-12-2018;
1604;2;2430;"41,32";"392,53";"Libreria Mosca sas di Mosca Antonio &amp; C."; ;SALDO Fatt.n. 1049  del 04/12/2018 BUONI LIBRO A.S.2018/2019;20-12-2018;2000;10;514;1;Spese correnti;3;Acquisto di beni e servizi;2;Acquisto di servizi;99;Altri servizi;999;Altri servizi diversi n.a.c.;20-12-2018;
1604;3;2430;"309,89";"392,53";"Libreria Mosca sas di Mosca Antonio &amp; C."; ;SALDO Fatt.n. 1046  del 03/12/2018 BUONI LIBRO A.S.2018/2019;20-12-2018;2000;10;514;1;Spese correnti;3;Acquisto di beni e servizi;2;Acquisto di servizi;99;Altri servizi;999;Altri servizi diversi n.a.c.;20-12-2018;
1605;1;2431;"99,90";"99,90";AUTOLINEE MAGISTRO SRL;Z2D24B2334;SALDO Fatt.n. FATTPA 152_18  del 04/12/2018 TRASPORTO STUDENTI NOV.2018;20-12-2018;2000;9;256;1;Spese correnti;3;Acquisto di beni e servizi;2;Acquisto di servizi;15;Contratti di servizio pubblico;2;Contratti di servizio di trasporto scolastico;20-12-2018;
1606;1;2432;"767,20";"767,20";T.A.I. SRL;ZF724B20C8;SALDO Fatt.n. FATTPA 20_18  del 04/12/2018 TRASPORTO ALUNNI NOV.2018;20-12-2018;2000;9;257;1;Spese correnti;3;Acquisto di beni e servizi;2;Acquisto di servizi;15;Contratti di servizio pubblico;2;Contratti di servizio di trasporto scolastico;20-12-2018;
1607;1;2433;"509,34";"509,34";Tiro a Segno Nazionale - Sezione di Milazzo;ZEC26506B0;SALDO Fatt.n. 15/E  del 19/11/2018 TIRO A SEGNO AGENTI P.M.;20-12-2018;1267;0;153;1;Spese correnti;3;Acquisto di beni e servizi;2;Acquisto di servizi;99;Altri servizi;999;Altri servizi diversi n.a.c.;20-12-2018;
1608;1;2434;"601,55";"601,55";SCAFIDI GIUSEPPE;Z1D2165AF9;Fatt.n. 000033-2018-FE del 06/12/2018 RIFERIMENTO PREVENTIVO 99/2018 DEL 26/11/2018 SU SUZUKI  TG CN409JZ;20-12-2018;6070;4;543;1;Spese correnti;3;Acquisto di beni e servizi;2;Acquisto di servizi;9;Manutenzione ordinaria e riparazioni;1;"Manutenzione ordinaria e riparazioni di mezzi di trasporto ad uso civile, di sicurezza e ordine pubblico";20-12-2018;
1609;1;2435;"331,28";"1.439,33";SCAFIDI GIUSEPPE;Z1D2165AF9;Fatt.n. 000031-2018-FE del 27/11/2018 RIFERIMENTO PREVENTIVO 82/2018 DEL 27/09/2018 SU AUTOBOTTE TG ME394965;20-12-2018;6070;5;544;1;Spese correnti;3;Acquisto di beni e servizi;2;Acquisto di servizi;9;Manutenzione ordinaria e riparazioni;1;"Manutenzione ordinaria e riparazioni di mezzi di trasporto ad uso civile, di sicurezza e ordine pubblico";20-12-2018;
1609;2;2435;"1.108,05";"1.439,33";SCAFIDI GIUSEPPE;Z1D2165AF9;Fatt.n. 000030-2018-FE del 27/11/2018 RIFERIMENTO PREVENTIVO 85/2018 DEL 27/09/2018 SU FIAT PANDA TG BE181ZH;20-12-2018;6070;5;544;1;Spese correnti;3;Acquisto di beni e servizi;2;Acquisto di servizi;9;Manutenzione ordinaria e riparazioni;1;"Manutenzione ordinaria e riparazioni di mezzi di trasporto ad uso civile, di sicurezza e ordine pubblico";20-12-2018;
1610;1;2436;"849,60";"849,60";SCAFIDI GIUSEPPE;Z1D2165AF9;Fatt.n. 000032-2018-FE del 27/11/2018 RIFERIMENTO PREVENTIVO 83/2018 DEL 27/09/2018 SU SCUOLABUS IVECO DAILY TG CT914ML;20-12-2018;6070;9;487;1;Spese correnti;3;Acquisto di beni e servizi;2;Acquisto di servizi;9;Manutenzione ordinaria e riparazioni;1;"Manutenzione ordinaria e riparazioni di mezzi di trasporto ad uso civile, di sicurezza e ordine pubblico";20-12-2018;
1611;1;2437;"22.858,24";"22.858,24";ECOLANDIA SRL;75280149AB;"SALDO Fatt.n. 211/PA  del 30/11/2018 SERVIZIO DI SPAZZAMENTO, RACCOLTA E TRASPORTO ALLO SMALTIMENTO DEI RIFIUTI SOLIDI URBANI DIFFERENZIATI E INDIFFERENZIATI,  ED ESTENSIONE SERVIZIO PORTA A PORTA FRAZIONI";20-12-2018;1744;0;386;1;Spese correnti;3;Acquisto di beni e servizi;2;Acquisto di servizi;15;Contratti di servizio pubblico;5;Contratti di servizio per il conferimento in discarica dei rifiuti;20-12-2018;
1612;1;2441;"6.000,00";"6.000,00";SUDIMPIANTI DI ARDIRI FILIPPO;Z3E20D35AF;"Fatt.n. FATTPA 14_18 del 30/11/2018 VS. DARE PER M.S. AGLI IMPIANTI DI RISCALDAMENTO E CONDIZIONATORI, A SERVIZIO DEGLI EDIFICI COM. LI, ATTREZZATURE DELLA CUCINA PER LA MENSA SCOLASTICA E A.C.S. DELLA CASA DI RIPOSO VILLA MARIA'.";20-12-2018;1025;0;117;1;Spese correnti;3;Acquisto di beni e servizi;2;Acquisto di servizi;9;Manutenzione ordinaria e riparazioni;8;Manutenzione ordinaria e riparazioni di beni immobili;21-12-2018;
1613;1;2442;"1.445,72";"1.445,72";SUDIMPIANTI DI ARDIRI FILIPPO;Z3E20D35AF;"Fatt.n. FATTPA 14_18 del 30/11/2018 VS. DARE PER M.S. AGLI IMPIANTI DI RISCALDAMENTO E CONDIZIONATORI, A SERVIZIO DEGLI EDIFICI COM. LI, ATTREZZATURE DELLA CUCINA PER LA MENSA SCOLASTICA E A.C.S. DELLA CASA DI RIPOSO VILLA MARIA'.";20-12-2018;4035;0;382;2;Spese in conto capitale;2;Investimenti fissi lordi e acquisto di terreni;1;Beni materiali;9;Beni immobili;13;Altre vie di comunicazione;21-12-2018;
1614;1;2443;"2.692,53";"2.692,53";SUDIMPIANTI DI ARDIRI FILIPPO;Z3E20D35AF;"Fatt.n. FATTPA 14_18 del 30/11/2018 VS. DARE PER M.S. AGLI IMPIANTI DI RISCALDAMENTO E CONDIZIONATORI, A SERVIZIO DEGLI EDIFICI COM. LI, ATTREZZATURE DELLA CUCINA PER LA MENSA SCOLASTICA E A.C.S. DELLA CASA DI RIPOSO VILLA MARIA'.";20-12-2018;3010;5;400;2;Spese in conto capitale;2;Investimenti fissi lordi e acquisto di terreni;1;Beni materiali;9;Beni immobili;1;Fabbricati ad uso abitativo;21-12-2018;
1615;1;2438;"1.500,00";"1.500,00";ASSOCIAZIONE C.S.T. SPORT; ;CONTRIBUTO MANIFESTAZIONE 3 rally TINDARI NEBRODI 2017;20-12-2018;2000;7;474;1;Spese correnti;4;Trasferimenti correnti;4;Trasferimenti correnti a Istituzioni Sociali Private;1;Trasferimenti correnti a Istituzioni Sociali Private;1;Trasferimenti correnti a Istituzioni Sociali Private;20-12-2018;
1616;1;2439;"250,00";"250,00";ARDIRI PIPPO; ;RIMBORSO SPESE RINNOVO CQC AUTISTA COMUNALE;20-12-2018;2176;4;542;1;Spese correnti;3;Acquisto di beni e servizi;2;Acquisto di servizi;4;Acquisto di servizi per formazione e addestramento del personale dell'ente;4;Acquisto di servizi per formazione obbligatoria;20-12-2018;
1617;1;2444;"238,03";"1.049,76";Energetic S.p.A.;7491316D84;Fatt.n. EEX37164/2018 del 05/12/2018 Servizio di fornitura Energia Elettrica nov.2018;21-12-2018;6030;5;459;1;Spese correnti;3;Acquisto di beni e servizi;2;Acquisto di servizi;5;Utenze e canoni;4;Energia elettrica;21-12-2018;
1617;2;2444;"811,73";"1.049,76";Energetic S.p.A.;7491316D84;Fatt.n. EEX37170/2018 del 05/12/2018 Servizio di fornitura Energia Elettrica nov.2018;21-12-2018;6030;5;459;1;Spese correnti;3;Acquisto di beni e servizi;2;Acquisto di servizi;5;Utenze e canoni;4;Energia elettrica;21-12-2018;
1618;1;2445;"32,94";"32,94";Energetic S.p.A.;7491316D84;Fatt.n. EEX37165/2018 del 05/12/2018 Servizio di fornitura Energia Elettrica nov.2018;21-12-2018;6030;6;460;1;Spese correnti;3;Acquisto di beni e servizi;2;Acquisto di servizi;5;Utenze e canoni;4;Energia elettrica;21-12-2018;
1619;1;2446;"38,63";"38,63";Energetic S.p.A.;7491316D84;Fatt.n. EEX37179/2018 del 05/12/2018 Servizio di fornitura Energia Elettrica NOV.2018;21-12-2018;6030;7;461;1;Spese correnti;3;Acquisto di beni e servizi;2;Acquisto di servizi;5;Utenze e canoni;4;Energia elettrica;21-12-2018;
1620;1;2447;"37,32";"37,32";Energetic S.p.A.;7491316D84;Fatt.n. EEX37157/2018 del 05/12/2018 Servizio di fornitura Energia Elettrica nov.2018;21-12-2018;6030;8;462;1;Spese correnti;3;Acquisto di beni e servizi;2;Acquisto di servizi;5;Utenze e canoni;4;Energia elettrica;21-12-2018;
1621;1;2448;"443,14";"443,14";Energetic S.p.A.;7491316D84;Fatt.n. EEX37168/2018 del 05/12/2018 Servizio di fornitura Energia Elettrica nov.2018;21-12-2018;6030;9;463;1;Spese correnti;3;Acquisto di beni e servizi;2;Acquisto di servizi;5;Utenze e canoni;4;Energia elettrica;21-12-2018;
1622;1;2449;"302,26";"302,26";Energetic S.p.A.;7491316D84;Fatt.n. EEX37172/2018 del 05/12/2018 Servizio di fornitura Energia Elettrica nov.2018;21-12-2018;6030;10;464;1;Spese correnti;3;Acquisto di beni e servizi;2;Acquisto di servizi;5;Utenze e canoni;4;Energia elettrica;21-12-2018;
1623;1;2450;"180,24";"442,70";Energetic S.p.A.;7491316D84;Fatt.n. EEX37167/2018 del 05/12/2018 Servizio di fornitura Energia Elettrica NOV.2018;21-12-2018;6030;11;465;1;Spese correnti;3;Acquisto di beni e servizi;2;Acquisto di servizi;5;Utenze e canoni;4;Energia elettrica;21-12-2018;
1623;2;2450;"262,46";"442,70";Energetic S.p.A.;7491316D84;Fatt.n. EEX37162/2018 del 05/12/2018 Servizio di fornitura Energia Elettrica nov.2018;21-12-2018;6030;11;465;1;Spese correnti;3;Acquisto di beni e servizi;2;Acquisto di servizi;5;Utenze e canoni;4;Energia elettrica;21-12-2018;
1624;1;2451;"12,26";"13.761,99";Energetic S.p.A.;7491316D84;Fatt.n. EEX37331/2018 del 05/12/2018 Servizio di fornitura Energia Elettrica nov.2018;21-12-2018;6030;12;466;1;Spese correnti;3;Acquisto di beni e servizi;2;Acquisto di servizi;5;Utenze e canoni;4;Energia elettrica;21-12-2018;
1624;2;2451;"13,63";"13.761,99";Energetic S.p.A.;7491316D84;Fatt.n. EEX37171/2018 del 05/12/2018 Servizio di fornitura Energia Elettrica NOV.2018;21-12-2018;6030;12;466;1;Spese correnti;3;Acquisto di beni e servizi;2;Acquisto di servizi;5;Utenze e canoni;4;Energia elettrica;21-12-2018;
1624;3;2451;"17,92";"13.761,99";Energetic S.p.A.;7491316D84;Fatt.n. EEX37173/2018 del 05/12/2018 Servizio di fornitura Energia Elettrica nov.2018;21-12-2018;6030;12;466;1;Spese correnti;3;Acquisto di beni e servizi;2;Acquisto di servizi;5;Utenze e canoni;4;Energia elettrica;21-12-2018;
1624;4;2451;"29,76";"13.761,99";Energetic S.p.A.;7491316D84;Fatt.n. EEX37148/2018 del 05/12/2018 Servizio di fornitura Energia Elettrica nov.2018;21-12-2018;6030;12;466;1;Spese correnti;3;Acquisto di beni e servizi;2;Acquisto di servizi;5;Utenze e canoni;4;Energia elettrica;21-12-2018;
1624;5;2451;"40,24";"13.761,99";Energetic S.p.A.;7491316D84;Fatt.n. EEX37257/2018 del 05/12/2018 Servizio di fornitura Energia Elettrica nov.2018;21-12-2018;6030;12;466;1;Spese correnti;3;Acquisto di beni e servizi;2;Acquisto di servizi;5;Utenze e canoni;4;Energia elettrica;21-12-2018;
1624;6;2451;"46,38";"13.761,99";Energetic S.p.A.;7491316D84;Fatt.n. EEX37247/2018 del 05/12/2018 Servizio di fornitura Energia Elettrica nov.2018;21-12-2018;6030;12;466;1;Spese correnti;3;Acquisto di beni e servizi;2;Acquisto di servizi;5;Utenze e canoni;4;Energia elettrica;21-12-2018;
1624;7;2451;"72,29";"13.761,99";Energetic S.p.A.;7491316D84;Fatt.n. EEX37177/2018 del 05/12/2018 Servizio di fornitura Energia Elettrica nov.2018;21-12-2018;6030;12;466;1;Spese correnti;3;Acquisto di beni e servizi;2;Acquisto di servizi;5;Utenze e canoni;4;Energia elettrica;21-12-2018;
1624;8;2451;"75,04";"13.761,99";Energetic S.p.A.;7491316D84;Fatt.n. EEX37413/2018 del 05/12/2018 Servizio di fornitura Energia Elettrica nov.2018;21-12-2018;6030;12;466;1;Spese correnti;3;Acquisto di beni e servizi;2;Acquisto di servizi;5;Utenze e canoni;4;Energia elettrica;21-12-2018;
1624;9;2451;"75,44";"13.761,99";Energetic S.p.A.;7491316D84;Fatt.n. EEX37190/2018 del 05/12/2018 Servizio di fornitura Energia Elettrica nov.2018;21-12-2018;6030;12;466;1;Spese correnti;3;Acquisto di beni e servizi;2;Acquisto di servizi;5;Utenze e canoni;4;Energia elettrica;21-12-2018;
1624;10;2451;"81,11";"13.761,99";Energetic S.p.A.;7491316D84;Fatt.n. EEX37192/2018 del 05/12/2018 Servizio di fornitura Energia Elettrica NOV.2018;21-12-2018;6030;12;466;1;Spese correnti;3;Acquisto di beni e servizi;2;Acquisto di servizi;5;Utenze e canoni;4;Energia elettrica;21-12-2018;
1624;11;2451;"81,30";"13.761,99";Energetic S.p.A.;7491316D84;Fatt.n. EEX37406/2018 del 05/12/2018 Servizio di fornitura Energia Elettrica nov.2018;21-12-2018;6030;12;466;1;Spese correnti;3;Acquisto di beni e servizi;2;Acquisto di servizi;5;Utenze e canoni;4;Energia elettrica;21-12-2018;
1624;12;2451;"85,60";"13.761,99";Energetic S.p.A.;7491316D84;Fatt.n. EEX37407/2018 del 05/12/2018 Servizio di fornitura Energia Elettrica nov.2018;21-12-2018;6030;12;466;1;Spese correnti;3;Acquisto di beni e servizi;2;Acquisto di servizi;5;Utenze e canoni;4;Energia elettrica;21-12-2018;
1624;13;2451;"94,06";"13.761,99";Energetic S.p.A.;7491316D84;Fatt.n. EEX37410/2018 del 05/12/2018 Servizio di fornitura Energia Elettrica nov.2018;21-12-2018;6030;12;466;1;Spese correnti;3;Acquisto di beni e servizi;2;Acquisto di servizi;5;Utenze e canoni;4;Energia elettrica;21-12-2018;
1624;14;2451;"115,72";"13.761,99";Energetic S.p.A.;7491316D84;Fatt.n. EEX37242/2018 del 05/12/2018 Servizio di fornitura Energia Elettrica nov.2018;21-12-2018;6030;12;466;1;Spese correnti;3;Acquisto di beni e servizi;2;Acquisto di servizi;5;Utenze e canoni;4;Energia elettrica;21-12-2018;
1624;15;2451;"116,90";"13.761,99";Energetic S.p.A.;7491316D84;Fatt.n. EEX37246/2018 del 05/12/2018 Servizio di fornitura Energia Elettrica nov.2018;21-12-2018;6030;12;466;1;Spese correnti;3;Acquisto di beni e servizi;2;Acquisto di servizi;5;Utenze e canoni;4;Energia elettrica;21-12-2018;
1624;16;2451;"118,79";"13.761,99";Energetic S.p.A.;7491316D84;Fatt.n. EEX37191/2018 del 05/12/2018 Servizio di fornitura Energia Elettrica nov.2018;21-12-2018;6030;12;466;1;Spese correnti;3;Acquisto di beni e servizi;2;Acquisto di servizi;5;Utenze e canoni;4;Energia elettrica;21-12-2018;
1624;17;2451;"130,63";"13.761,99";Energetic S.p.A.;7491316D84;Fatt.n. EEX37244/2018 del 05/12/2018 Servizio di fornitura Energia Elettrica nov.2018;21-12-2018;6030;12;466;1;Spese correnti;3;Acquisto di beni e servizi;2;Acquisto di servizi;5;Utenze e canoni;4;Energia elettrica;21-12-2018;
1624;18;2451;"138,13";"13.761,99";Energetic S.p.A.;7491316D84;Fatt.n. EEX37146/2018 del 05/12/2018 Servizio di fornitura Energia Elettrica nov.2018;21-12-2018;6030;12;466;1;Spese correnti;3;Acquisto di beni e servizi;2;Acquisto di servizi;5;Utenze e canoni;4;Energia elettrica;21-12-2018;
1624;19;2451;"200,93";"13.761,99";Energetic S.p.A.;7491316D84;Fatt.n. EEX37189/2018 del 05/12/2018 Servizio di fornitura Energia Elettrica nov.2018;21-12-2018;6030;12;466;1;Spese correnti;3;Acquisto di beni e servizi;2;Acquisto di servizi;5;Utenze e canoni;4;Energia elettrica;21-12-2018;
1624;20;2451;"274,10";"13.761,99";Energetic S.p.A.;7491316D84;Fatt.n. EEX37196/2018 del 05/12/2018 Servizio di fornitura Energia Elettrica nov.2018;21-12-2018;6030;12;466;1;Spese correnti;3;Acquisto di beni e servizi;2;Acquisto di servizi;5;Utenze e canoni;4;Energia elettrica;21-12-2018;
1624;21;2451;"275,98";"13.761,99";Energetic S.p.A.;7491316D84;Fatt.n. EEX37143/2018 del 05/12/2018 Servizio di fornitura Energia Elettrica nov.2018;21-12-2018;6030;12;466;1;Spese correnti;3;Acquisto di beni e servizi;2;Acquisto di servizi;5;Utenze e canoni;4;Energia elettrica;21-12-2018;
1624;22;2451;"276,95";"13.761,99";Energetic S.p.A.;7491316D84;Fatt.n. EEX37158/2018 del 05/12/2018 Servizio di fornitura Energia Elettrica nov.2018;21-12-2018;6030;12;466;1;Spese correnti;3;Acquisto di beni e servizi;2;Acquisto di servizi;5;Utenze e canoni;4;Energia elettrica;21-12-2018;
1624;23;2451;"303,62";"13.761,99";Energetic S.p.A.;7491316D84;Fatt.n. EEX37193/2018 del 05/12/2018 Servizio di fornitura Energia Elettrica nov.2018;21-12-2018;6030;12;466;1;Spese correnti;3;Acquisto di beni e servizi;2;Acquisto di servizi;5;Utenze e canoni;4;Energia elettrica;21-12-2018;
1624;24;2451;"328,11";"13.761,99";Energetic S.p.A.;7491316D84;Fatt.n. EEX37411/2018 del 05/12/2018 Servizio di fornitura Energia Elettrica nov.2018;21-12-2018;6030;12;466;1;Spese correnti;3;Acquisto di beni e servizi;2;Acquisto di servizi;5;Utenze e canoni;4;Energia elettrica;21-12-2018;
1624;25;2451;"343,42";"13.761,99";Energetic S.p.A.;7491316D84;Fatt.n. EEX37184/2018 del 05/12/2018 Servizio di fornitura Energia Elettrica NOV.2018;21-12-2018;6030;12;466;1;Spese correnti;3;Acquisto di beni e servizi;2;Acquisto di servizi;5;Utenze e canoni;4;Energia elettrica;21-12-2018;
1624;26;2451;"399,20";"13.761,99";Energetic S.p.A.;7491316D84;Fatt.n. EEX37412/2018 del 05/12/2018 Servizio di fornitura Energia Elettrica nov.2018;21-12-2018;6030;12;466;1;Spese correnti;3;Acquisto di beni e servizi;2;Acquisto di servizi;5;Utenze e canoni;4;Energia elettrica;21-12-2018;
1624;27;2451;"473,38";"13.761,99";Energetic S.p.A.;7491316D84;Fatt.n. EEX37408/2018 del 05/12/2018 Servizio di fornitura Energia Elettrica nov.2018;21-12-2018;6030;12;466;1;Spese correnti;3;Acquisto di beni e servizi;2;Acquisto di servizi;5;Utenze e canoni;4;Energia elettrica;21-12-2018;
1624;28;2451;"626,34";"13.761,99";Energetic S.p.A.;7491316D84;Fatt.n. EEX37256/2018 del 05/12/2018 Servizio di fornitura Energia Elettrica nov.2018;21-12-2018;6030;12;466;1;Spese correnti;3;Acquisto di beni e servizi;2;Acquisto di servizi;5;Utenze e canoni;4;Energia elettrica;21-12-2018;
1624;29;2451;"724,12";"13.761,99";Energetic S.p.A.;7491316D84;Fatt.n. EEX37409/2018 del 05/12/2018 Servizio di fornitura Energia Elettrica nov.2018;21-12-2018;6030;12;466;1;Spese correnti;3;Acquisto di beni e servizi;2;Acquisto di servizi;5;Utenze e canoni;4;Energia elettrica;21-12-2018;
1624;30;2451;"765,83";"13.761,99";Energetic S.p.A.;7491316D84;Fatt.n. EEX37174/2018 del 05/12/2018 Servizio di fornitura Energia Elettrica nov.2018;21-12-2018;6030;12;466;1;Spese correnti;3;Acquisto di beni e servizi;2;Acquisto di servizi;5;Utenze e canoni;4;Energia elettrica;21-12-2018;
1624;31;2451;"2.287,74";"13.761,99";Energetic S.p.A.;7491316D84;Fatt.n. EEX37312/2018 del 05/12/2018 Servizio di fornitura Energia Elettrica nov.2018;21-12-2018;6030;12;466;1;Spese correnti;3;Acquisto di beni e servizi;2;Acquisto di servizi;5;Utenze e canoni;4;Energia elettrica;21-12-2018;
1624;32;2451;"5.137,07";"13.761,99";Energetic S.p.A.;7491316D84;Fatt.n. EEX37166/2018 del 05/12/2018 Servizio di fornitura Energia Elettrica nov.2018;21-12-2018;6030;12;466;1;Spese correnti;3;Acquisto di beni e servizi;2;Acquisto di servizi;5;Utenze e canoni;4;Energia elettrica;21-12-2018;
1625;1;2452;"13,60";"680,14";Energetic S.p.A.;7491316D84;Fatt.n. EEX37176/2018 del 05/12/2018 Servizio di fornitura Energia Elettrica NOV.2018;21-12-2018;6030;13;467;1;Spese correnti;3;Acquisto di beni e servizi;2;Acquisto di servizi;5;Utenze e canoni;4;Energia elettrica;21-12-2018;
1625;2;2452;"19,12";"680,14";Energetic S.p.A.;7491316D84;Fatt.n. EEX37144/2018 del 05/12/2018 Servizio di fornitura Energia Elettrica nov.2018;21-12-2018;6030;13;467;1;Spese correnti;3;Acquisto di beni e servizi;2;Acquisto di servizi;5;Utenze e canoni;4;Energia elettrica;21-12-2018;
1625;3;2452;"34,21";"680,14";Energetic S.p.A.;7491316D84;Fatt.n. EEX37175/2018 del 05/12/2018 Servizio di fornitura Energia Elettrica nov.2018;21-12-2018;6030;13;467;1;Spese correnti;3;Acquisto di beni e servizi;2;Acquisto di servizi;5;Utenze e canoni;4;Energia elettrica;21-12-2018;
1625;4;2452;"47,34";"680,14";Energetic S.p.A.;7491316D84;Fatt.n. EEX37141/2018 del 05/12/2018 Servizio di fornitura Energia Elettrica nov.2018;21-12-2018;6030;13;467;1;Spese correnti;3;Acquisto di beni e servizi;2;Acquisto di servizi;5;Utenze e canoni;4;Energia elettrica;21-12-2018;
1625;5;2452;"565,87";"680,14";Energetic S.p.A.;7491316D84;Fatt.n. EEX37194/2018 del 05/12/2018 Servizio di fornitura Energia Elettrica nov.2018;21-12-2018;6030;13;467;1;Spese correnti;3;Acquisto di beni e servizi;2;Acquisto di servizi;5;Utenze e canoni;4;Energia elettrica;21-12-2018;
1626;1;2453;"150,51";"150,51";Energetic S.p.A.;7491316D84;Fatt.n. EEX37198/2018 del 05/12/2018 Servizio di fornitura Energia Elettrica;21-12-2018;6030;14;468;1;Spese correnti;3;Acquisto di beni e servizi;2;Acquisto di servizi;5;Utenze e canoni;4;Energia elettrica;21-12-2018;
1627;1;2454;"61,81";"61,81";Energetic S.p.A.;7491316D84;Fatt.n. EEX37163/2018 del 05/12/2018 Servizio di fornitura Energia Elettrica nov.2018;21-12-2018;6030;16;469;1;Spese correnti;3;Acquisto di beni e servizi;2;Acquisto di servizi;5;Utenze e canoni;4;Energia elettrica;21-12-2018;
1628;1;2455;"49,52";"49,52";Energetic S.p.A.;7491316D84;Fatt.n. EEX37160/2018 del 05/12/2018 Servizio di fornitura Energia Elettrica nov.2018;21-12-2018;6030;17;470;1;Spese correnti;3;Acquisto di beni e servizi;2;Acquisto di servizi;5;Utenze e canoni;4;Energia elettrica;21-12-2018;
1629;1;2456;"19,13";"19,13";Energetic S.p.A.;7491316D84;Fatt.n. EEX37235/2018 del 05/12/2018 Servizio di fornitura Energia Elettrica nov.2018;21-12-2018;6030;18;471;1;Spese correnti;3;Acquisto di beni e servizi;2;Acquisto di servizi;5;Utenze e canoni;4;Energia elettrica;21-12-2018;
1630;1;2457;"53,28";"53,28";Energetic S.p.A.;7491316D84;Fatt.n. EEX37253/2018 del 05/12/2018 Servizio di fornitura Energia Elettrica nov.2018;21-12-2018;6030;19;472;1;Spese correnti;3;Acquisto di beni e servizi;2;Acquisto di servizi;5;Utenze e canoni;4;Energia elettrica;21-12-2018;
1631;1;2458;"3.667,64";"3.667,64";SICULA TRASPORTI S.R.L.;6150991658;SALDO Fatt.n. 2210/03  del 30/11/2018 CONFERIMENTO RSU NOV.2018;21-12-2018;1743;0;384;1;Spese correnti;3;Acquisto di beni e servizi;2;Acquisto di servizi;15;Contratti di servizio pubblico;5;Contratti di servizio per il conferimento in discarica dei rifiuti;21-12-2018;
1632;1;2459;"427,00";"427,00";IMMEDIA S.P.A.;Z3E254A468;SALDO Fatt.n. 20181759  del 28/11/2018 intervento teleassistenza n.63277 del 09/11/187 servizio win pagamenti acquedotto saldo 2017;21-12-2018;1686;0;340;1;Spese correnti;3;Acquisto di beni e servizi;2;Acquisto di servizi;99;Altri servizi;999;Altri servizi diversi n.a.c.;21-12-2018;
1633;1;2460;"43,79";"43,79";HERA COMM S.r.l.; ;Fatt.n. 411810433072 del 11/12/2018 FORNITURA SERVIZIO ENERGIA ELETTRICA NOV.2018;21-12-2018;6030;7;461;1;Spese correnti;3;Acquisto di beni e servizi;2;Acquisto di servizi;5;Utenze e canoni;4;Energia elettrica;21-12-2018;
1634;1;2461;"19,11";"19,11";HERA COMM S.r.l.; ;Fatt.n. 411810433070 del 11/12/2018 FORNITURA SERVIZIO ENERGIA ELETTRICA NOV.2018;21-12-2018;6030;8;462;1;Spese correnti;3;Acquisto di beni e servizi;2;Acquisto di servizi;5;Utenze e canoni;4;Energia elettrica;21-12-2018;
1635;1;2462;"19,11";"19,11";HERA COMM S.r.l.; ;Fatt.n. 411810433071 del 11/12/2018 FORNITURA SERVIZIO ENERGIA ELETTRICA NOV.2018;21-12-2018;6030;13;467;1;Spese correnti;3;Acquisto di beni e servizi;2;Acquisto di servizi;5;Utenze e canoni;4;Energia elettrica;21-12-2018;
1636;1;2463;"32,09";"32,09";AUTOMOBILE CLUB D'ITALIA; ;SALDO Fatt.n. 0000030863  del 05/12/2018 CONSULTAZIONE PRA FEB./OTT.2018;21-12-2018;1272;0;113;1;Spese correnti;3;Acquisto di beni e servizi;2;Acquisto di servizi;99;Altri servizi;999;Altri servizi diversi n.a.c.;21-12-2018;
1637;1;0;"1.633,95";"1.633,95";CASSA DEPOSITI E PRESTITI S.P.A.; ;QUOTA INTERESSI MUTUI IN AMMORTAMENTO  II SEM.2018;31-12-2018;2240;0;132;1;Spese correnti;7;Interessi passivi;5;Interessi su Mutui e altri finanziamenti a medio lungo termine;5;Interessi passivi su mutui e altri finanziamenti a medio lungo termine ad altri soggetti;999;Interessi passivi su mutui e altri finanziamenti a medio lungo termine ad altri soggetti;31-12-2018;
1638;1;0;"3.789,27";"3.789,27";CASSA DEPOSITI E PRESTITI S.P.A.; ;QUOTA INTERESSI MUTUI IN AMMORTAMENTO  II SEM.2018;31-12-2018;1580;0;134;1;Spese correnti;7;Interessi passivi;5;Interessi su Mutui e altri finanziamenti a medio lungo termine;5;Interessi passivi su mutui e altri finanziamenti a medio lungo termine ad altri soggetti;999;Interessi passivi su mutui e altri finanziamenti a medio lungo termine ad altri soggetti;31-12-2018;
1639;1;0;"1.477,49";"1.477,49";CASSA DEPOSITI E PRESTITI S.P.A.; ;QUOTA INTERESSI MUTUI IN AMMORTAMENTO II SEM.2018;31-12-2018;1610;0;135;1;Spese correnti;7;Interessi passivi;5;Interessi su Mutui e altri finanziamenti a medio lungo termine;5;Interessi passivi su mutui e altri finanziamenti a medio lungo termine ad altri soggetti;999;Interessi passivi su mutui e altri finanziamenti a medio lungo termine ad altri soggetti;31-12-2018;
1640;1;0;"19.644,89";"19.644,89";CASSA DEPOSITI E PRESTITI S.P.A.; ;QUOTA INTERESSI MUTUI IN AMMORTAMENTO  II SEM.2018;31-12-2018;1942;0;136;1;Spese correnti;7;Interessi passivi;5;Interessi su Mutui e altri finanziamenti a medio lungo termine;5;Interessi passivi su mutui e altri finanziamenti a medio lungo termine ad altri soggetti;999;Interessi passivi su mutui e altri finanziamenti a medio lungo termine ad altri soggetti;31-12-2018;
1641;1;0;"2.644,27";"2.644,27";CASSA DEPOSITI E PRESTITI S.P.A.; ;QUOTA INTERESSI MUTUI IN AMMORTAMENTO  II SEM.2018;31-12-2018;1885;0;137;1;Spese correnti;7;Interessi passivi;5;Interessi su Mutui e altri finanziamenti a medio lungo termine;5;Interessi passivi su mutui e altri finanziamenti a medio lungo termine ad altri soggetti;999;Interessi passivi su mutui e altri finanziamenti a medio lungo termine ad altri soggetti;31-12-2018;
1642;1;0;"26.234,40";"26.234,40";CASSA DEPOSITI E PRESTITI S.P.A.; ;QUOTA INTERESSI MUTUI IN AMMORTAMENTO  II SEM.2018;31-12-2018;1941;0;138;1;Spese correnti;7;Interessi passivi;5;Interessi su Mutui e altri finanziamenti a medio lungo termine;5;Interessi passivi su mutui e altri finanziamenti a medio lungo termine ad altri soggetti;999;Interessi passivi su mutui e altri finanziamenti a medio lungo termine ad altri soggetti;31-12-2018;
1643;1;0;"1.142,22";"1.142,22";CASSA DEPOSITI E PRESTITI S.P.A.; ;QUOTA INTERESSI MUTUI IN AMMORTAMENTO  II SEM.2018;31-12-2018;1837;1;139;1;Spese correnti;7;Interessi passivi;5;Interessi su Mutui e altri finanziamenti a medio lungo termine;5;Interessi passivi su mutui e altri finanziamenti a medio lungo termine ad altri soggetti;999;Interessi passivi su mutui e altri finanziamenti a medio lungo termine ad altri soggetti;31-12-2018;
1644;1;0;"2.235,24";"2.235,24";CASSA DEPOSITI E PRESTITI S.P.A.; ;QUOTA INTERESSI MUTUI IN AMMORTAMENTO  II SEM.2018;31-12-2018;2162;0;140;1;Spese correnti;7;Interessi passivi;5;Interessi su Mutui e altri finanziamenti a medio lungo termine;4;Interessi passivi su finanziamenti a medio lungo termine a Imprese;999;Interessi passivi a altre imprese su finanziamenti a medio lungo termine;31-12-2018;
1645;1;0;"1.219,85";"1.219,85";CASSA DEPOSITI E PRESTITI S.P.A.; ;QUOTA INTERESSI MUTUI IN AMMORTAMENTO  II SEM.2018;31-12-2018;1742;0;141;1;Spese correnti;7;Interessi passivi;5;Interessi su Mutui e altri finanziamenti a medio lungo termine;5;Interessi passivi su mutui e altri finanziamenti a medio lungo termine ad altri soggetti;999;Interessi passivi su mutui e altri finanziamenti a medio lungo termine ad altri soggetti;31-12-2018;
1646;1;0;"927,21";"927,21";CASSA DEPOSITI E PRESTITI S.P.A.; ;QUOTA INTERESSI MUTUI IN AMMORTAMENTO  II SEM.2018;31-12-2018;1491;0;142;1;Spese correnti;7;Interessi passivi;5;Interessi su Mutui e altri finanziamenti a medio lungo termine;5;Interessi passivi su mutui e altri finanziamenti a medio lungo termine ad altri soggetti;999;Interessi passivi su mutui e altri finanziamenti a medio lungo termine ad altri soggetti;31-12-2018;
1647;1;0;"144,65";"144,65";CASSA DEPOSITI E PRESTITI S.P.A.; ;QUOTA INTERESSI MUTUI IN AMMORTAMENTO  II SEM.2018;31-12-2018;1745;0;144;1;Spese correnti;7;Interessi passivi;5;Interessi su Mutui e altri finanziamenti a medio lungo termine;5;Interessi passivi su mutui e altri finanziamenti a medio lungo termine ad altri soggetti;999;Interessi passivi su mutui e altri finanziamenti a medio lungo termine ad altri soggetti;31-12-2018;
1648;1;0;"83,43";"83,43";CASSA DEPOSITI E PRESTITI S.P.A.; ;QUOTA INTERESSI MUTUI IN AMMORTAMENTO  II SEM.2018;31-12-2018;1746;0;145;1;Spese correnti;7;Interessi passivi;5;Interessi su Mutui e altri finanziamenti a medio lungo termine;5;Interessi passivi su mutui e altri finanziamenti a medio lungo termine ad altri soggetti;999;Interessi passivi su mutui e altri finanziamenti a medio lungo termine ad altri soggetti;31-12-2018;
1649;1;0;"1.940,70";"1.940,70";CASSA DEPOSITI E PRESTITI S.P.A.; ;QUOTA INTERESSI MUTUI IN AMMORTAMENTO  II SEM.2018;31-12-2018;1943;0;146;1;Spese correnti;7;Interessi passivi;5;Interessi su Mutui e altri finanziamenti a medio lungo termine;5;Interessi passivi su mutui e altri finanziamenti a medio lungo termine ad altri soggetti;999;Interessi passivi su mutui e altri finanziamenti a medio lungo termine ad altri soggetti;31-12-2018;
1653;1;0;"1.781,69";"1.781,69";CASSA DEPOSITI E PRESTITI S.P.A.; ;QUOTA INTERESSI MUTUI IN AMMORTAMENTO  II SEM.2018;31-12-2018;2240;0;133;1;Spese correnti;7;Interessi passivi;5;Interessi su Mutui e altri finanziamenti a medio lungo termine;5;Interessi passivi su mutui e altri finanziamenti a medio lungo termine ad altri soggetti;999;Interessi passivi su mutui e altri finanziamenti a medio lungo termine ad altri soggetti;31-12-2018;
1654;1;0;"238,68";"238,68";CASSA DEPOSITI E PRESTITI S.P.A.; ;QUOTA INTERESSI MUTUI IN AMMORTAMENTO  II SEM.2018;31-12-2018;1574;0;143;1;Spese correnti;7;Interessi passivi;5;Interessi su Mutui e altri finanziamenti a medio lungo termine;5;Interessi passivi su mutui e altri finanziamenti a medio lungo termine ad altri soggetti;999;Interessi passivi su mutui e altri finanziamenti a medio lungo termine ad altri soggetti;31-12-2018;
1655;1;0;"35,33";"36,36";AUTOSTRADE PER L'ITALIA S.p.A.; ;SALDO Fatt.n. 900026256D  del 30/12/2018;31-12-2018;1017;0;28;1;Spese correnti;3;Acquisto di beni e servizi;2;Acquisto di servizi;99;Altri servizi;999;Altri servizi diversi n.a.c.;31-12-2018;
1655;2;0;"1,03";"36,36";TELEPASS SPA; ;SALDO Fatt.n. 900026384T  del 30/12/2018;31-12-2018;1017;0;28;1;Spese correnti;3;Acquisto di beni e servizi;2;Acquisto di servizi;99;Altri servizi;999;Altri servizi diversi n.a.c.;31-12-2018;
